Workbook

Sheet SolCotizacion
A1: Solicitud de Cotización - Productos y Servicios Microsoft
A3: Versión: 49 | B3: 2017-08-03
A4: Información de la Entidad Compradora
A6: Nombre de la Entidad: | C6: Dirección Nacional de Derecho de Autor | J6: NIT: | K6: 800185929
A8: Dirección de la Entidad: | C8: Calle 28 13A 15 Piso 17 | J8: Correo de contacto: | K8: sistemas@derechodeautor.gov.co
A10: Municipio: | C10: Bogotá D.C. | J10: Teléfono de contacto: | K10: 3418177 | M10: 142
A12: Fecha Creación del evento: | C12: 2017-09-18 | E12: Fecha de inicio del servicio: | F12: 2017-10-11 | G12: Fecha de finalización del servicio: | H12: 2017-11-11 | J12: Nombre funcionario Comprador: | L12: Gloria Triviño
A14: Solicitud de Cotización
B16: Filas a agregar o eliminar:
B18: 1 | J18: Categoría: | K18: Categoría 1
A20: Item | B20: Tipo | C20: Región | D20: Familia | E20: Nombre Producto | J20: Cantidad de medida | K20: Unidad de medida | L20: Cantidad del servicio | M20: Unidad de cantidad | N20: Número de parte
A21: 1 | B21: Producto | C21: Región Todas | D21: Office 365 | E21: Office365E3Open ShrdSvr SubscriptionVL Government OLP 1License NoLevel Qualified Annual 1 Licencia por usuario | J21: 60 | K21: Und | L21: 1 | M21: Und | N21: Q5Y-00006
A23: Gravámenes adicionales
A25: Si los hay, indique los gravámenes adicionales a los que está sujeta la Orden de Compra (por ejemplo; estampillas y demás impuestos territoriales):
A27: Gravámenes adicionales (estampillas)
A28: No | B28: Descripción | F28: Porcentaje
A29: 1
D30: Total porcentaje: | F30: 0
B31: Filas a agregar o eliminar Gravámenes:
B32: 1

Sheet Anexo
B1: Con el objetivo de complementar el entendimiento sobre la solicitud de Productos y Servicios Microsoft , por favor diligencie la totalidad de la información que se pide a continuación.
B3: Tenga en cuenta que esta información es de utilidad para que el Proveedor pueda cotizar de la manera más precisa posible los Productos y Servicios Microsoft solicitados, por lo cual la exactitud y completitud es muy importante.
A4: No | B4: Requerimiento adicional | C4: Descripción | D4: INFORMACION SUMINISTRADA POR LA ENTIDAD COMPRADORA
A5: 1 | B5: Lugar de entrega de los Productos y Servicios Microsoft. (Especificar dirección y ciudad de entrega). | D5: Bogotá D.C. Calle 28 13 A 15 Piso 17
A6: 2 | B6: Datos Contacto de entrega (Especificar nombre, teléfono y correo electrónico). | D6: Gonzalo Muñoz Ortega, Tel 3418177 Ext 124/142 sistemas@derechodeautor.gov.co
A7: 3 | B7: Funciones a realizar el soporte en sitio. | D7: Activación licencias
A8: 4 | B8: Área de conocimiento de las personas que prestan el servicio de soporte técnico proactivo. | D8: Administración correo electrónico Office 365
A9: 5 | B9: Área de conocimiento de las personas que prestan el servicio de soporte técnico reactivo. | D9: Administración correo electrónico Office 365
A10: 6 | B10: Mecanismo de solicitud del soporte reactivo. | D10: Telefónico, correo electrónico
A11: 7 | B11: Especificar que información o que bases de datos se van a migrar. Aplica en el caso que la Entidad Compradora solicite el servicio de migración de información o de bases de datos. | D11: NA
A12: 8 | B12: Actividades del gerente de cuenta. | D12: Confirmación activación del servicio, facturación, documentos pago
A13: 9 | B13: Indique número de personas que requieren de capacitación. En caso que la Entidad Compradora solicite el servicio de capacitación usuario final o usuario técnico. | D13: 2
A14: 10 | B14: Especificar características de configuración y descripción de las tareas a realizar. En caso que la Entidad Compradora solicite el servicio de configuración y parametrización. | D14: Renovación de las 60 licencias
A15: 11 | B15: Nombre y Nit de la Entidad Estatal a la cual se le entregará la titularidad de las licencias adquiridas. | D15: Dirección Nacional de Derecho de Autor - 800185929-2
A16: 12 | B16: Establecer las políticas de respaldo de información. | D16: Se tiene copia local de la información

Sheet ResumenCotizacion
A1: Resumen de Cotización - Productos y Servicios Microsoft | R1: 0
A4: Información de la Entidad Compradora
A6: Nombre de la Entidad: | C6: =IF(SolCotizacion!C6="","",SolCotizacion!C6) -> Dirección Nacional de Derecho de Autor | J6: NIT: | K6: =IF(SolCotizacion!K6="","",SolCotizacion!K6) -> 800185929
A8: Dirección de la Entidad: | C8: =IF(SolCotizacion!C8="","",SolCotizacion!C8) -> Calle 28 13A 15 Piso 17 | J8: Correo de contacto: | K8: =IF(SolCotizacion!K8="","",SolCotizacion!K8) -> sistemas@derechodeautor.gov.co
A10: Municipio: | C10: =IF(SolCotizacion!C10="","",SolCotizacion!C10) -> Bogotá D.C. | J10: Teléfono de contacto: | K10: =IF(SolCotizacion!K10="","",SolCotizacion!K10) -> 3418177 | M10: =IF(SolCotizacion!M10="","",SolCotizacion!M10) -> 142
A12: Fecha Creación del evento: | C12: =IF(SolCotizacion!C12="","",SolCotizacion!C12) -> 2017-09-18 | J12: Nombre funcionario Comprador: | L12: =IF(SolCotizacion!L12="","",SolCotizacion!L12) -> Gloria Triviño
A14: Solicitud de Cotización
B18: Categoría: | C18: =SolCotizacion!K18 -> Categoría 1
A22: Item | B22: Tipo | C22: Región | D22: Familia | E22: Nombre Producto | I22: Unidad de Medida | J22: Cantidad de medida | K22: Número de parte | L22: Valor Unitario (Incluye gravámenes adicionales) | M22: Valor Unitario * Und Cantidad | N22: Total | O22: IVA | P22: Cantidad de servicio | Q22: Excento de IVA
A23: 1 | B23: Producto | C23: Región Todas | D23: Office 365 | E23: Office365E3Open ShrdSvr SubscriptionVL Government OLP 1License NoLevel Qualified Annual 1 Licencia por usuario - 1 - Und | I23: Und | J23: 60 | K23: Q5Y-00006 | L23: 563434 | M23: 563434 | N23: =J23*L23*P23 -> 33806040 | O23: =IF(Q23="NO",N23*0.19,0) -> 0 | P23: 1 | Q23: SI
A25: Gravámenes adicionales (estampillas) | K25: Totales
A26: No | B26: Descripción | F26: Porcentaje | K26: Total Productos y Servicios: | M26: =SUM(N23:N23) -> 33806040
A27: 1 | K27: Total IVA: | M27: =SUM(O23:O23) -> 0
D28: Total porcentaje: | F28: =SUM(F27:F27) -> 0 | K28: Valor total de la cotización: | M28: =SUM(M26:M27) -> 33806040

Sheet Cotizacion
A1: Resumen de Cotización - Productos y Servicios Microsoft | R1: 0 | S1: 0
A4: Información de la Entidad Compradora
A6: Nombre de la Entidad: | C6: =IF(ResumenCotizacion!C6="","",ResumenCotizacion!C6) -> Dirección Nacional de Derecho de Autor | J6: NIT: | K6: =IF(ResumenCotizacion!K6="","",ResumenCotizacion!K6) -> 800185929
A8: Dirección de la Entidad: | C8: =IF(ResumenCotizacion!C8="","",ResumenCotizacion!C8) -> Calle 28 13A 15 Piso 17 | J8: Correo de contacto: | K8: =IF(ResumenCotizacion!K8="","",ResumenCotizacion!K8) -> sistemas@derechodeautor.gov.co
A10: Municipio: | C10: =IF(ResumenCotizacion!C10="","",ResumenCotizacion!C10) -> Bogotá D.C. | J10: Teléfono de contacto: | K10: =IF(ResumenCotizacion!K10="","",ResumenCotizacion!K10) -> 3418177 | M10: =IF(ResumenCotizacion!M10="","",ResumenCotizacion!M10) -> 142
A12: Fecha Creación del evento: | C12: =IF(ResumenCotizacion!C12="","",ResumenCotizacion!C12) -> 2017-09-18 | J12: Nombre funcionario Comprador: | L12: =IF(ResumenCotizacion!L12="","",ResumenCotizacion!L12) -> Gloria Triviño
A14: Solicitud de Cotización
B18: Proveedor: | J18: Categoría: | K18: =IF(SolCotizacion!K18="","",SolCotizacion!K18) -> Categoría 1
A22: Item | B22: Tipo | C22: Región | D22: Familia | E22: Nombre Producto | I22: Unidad de Medida | J22: Cantidad de medida | K22: Número de parte | L22: Valor Unitario (Incluye gravámenes adicionales) | M22: Valor Unitario * Und Cantidad | N22: Descuento | O22: Total | P22: IVA | Q22: Cantidad de servicio | R22: Excento de IVA
A23: 1 | B23: Producto | C23: Región Todas | D23: Office 365 | E23: Office365E3Open ShrdSvr SubscriptionVL Government OLP 1License NoLevel Qualified Annual 1 Licencia por usuario - 1 - Und | I23: Und | J23: 60 | K23: Q5Y-00006 | O23: =J23*L23*Q23-(L23*N23%*J23*Q23) -> 0 | P23: =IF(R23="NO",O23*0.19,0) -> 0 | Q23: 1 | R23: SI
A25: Gravámenes adicionales (estampillas) | K25: Totales
A26: No | B26: Descripción | F26: Porcentaje | K26: Total Productos y Servicios: | M26: =SUM(O23:O23) -> 0
A27: 1 | K27: Total IVA: | M27: =SUM(P23:P23) -> 0
D28: Total porcentaje: | F28: =SUM(F27:F27) -> 0 | K28: Valor total de la cotización: | M28: =SUM(M26:M27) -> 0

Sheet Version 48 13-06-2017 (hidden)
A1: Version | B1: Fecha | C1: Obseraviones
A2: V38 | B2: 2016/15/12
A3: V39 | B3: 2016/26/12 | C3: IVA 19 Actualizado
A4: V40 | B4: 2017-01-10 | C4: Arreglo error con la lista de office365 y ajuste IPC 2016 5,75%.
A5: V41 | B5: 2017-03-03 | C5: Actualización productos sin IVA
A6: V42 | B6: 2017-03-14 | C6: Actualización productos, eliminación palabra Microssoft.
A7: V43 | B7: 2017-03-30 | C7: Corrección listas y catálogo
A8: V45 | B8: 2017-04-20 | C8: Actualización de productos abril
A9: V46 | B9: 2017-05-11 | C9: Actualización de productos mayo
A10: 48 | B10: 2017-06-13 | C10: Actualización IVA

Sheet CSV (hidden)
A1: Tipo (servicio o artÃ­culo) | B1: Cantidad | C1: CÃ³digo de unidad de medida* | D1: PosiciÃ³n | E1: Precio base | F1: Divisa | G1: DescripciÃ³n | H1: MercancÃ­a
A2: item | B2: 60 | C2: Und | E2: "563434" | F2: COP | G2: Producto - RegiÃ³n Todas - Office 365 - Office365E3Open ShrdSvr SubscriptionVL Government OLP 1License NoLevel Qualified Annual 1 Licencia por usuario - 1 - Und - Q5Y-00006
A3: item | B3: 1 | C3: Und | E3: "0" | F3: COP | G3: IVA

Sheet Categoría 1 (hidden)
A1: Código matriz | B1: Excento de IVA | C1: Region | D1: Categoria | E1: Familia | F1: Nombre Producto | G1: Unidad de Medida | H1: Unidad de Servicio | I1: Tipo | J1: Precio | K1: Proveedor | L1: Número de parte | N1: Menor valor | O1: proveedor 1 | P1: proveedor 2 | Q1: proveedor 3 | R1: proveedor 4 | S1: proveedor 5
A2: 1 | B2: NO | C2: Región Todas | D2: Categoría 1 | E2: Azure | F2: AzureInfoProtPremP1Open ShrdSvr SubscriptionVL Government OLP 1License NoLevel Qualified Annual 1 Licencia por Unidad de Cómputo | G2: Und | H2: Und | I2: Producto | J2: 65061 | K2: Controles Empresariales LTDA | L2: N/A | N2: =MIN(IF(O2=0,1000000000000,O2),IF(P2=0,1000000000000,P2),IF(Q2=0,1000000000000,Q2),IF(R2=0,1000000000000,R2),IF(S2=0,1000000000000,S2)) -> 563434 | O2: =SUM(IF($M:$M=1,$J:$J,0)) -> 630949 | P2: =SUM(IF($M:$M=2,$J:$J,0)) -> 563434 | Q2: =SUM(IF($M:$M=3,$J:$J,0)) -> 0 | R2: =SUM(IF($M:$M=4,$J:$J,0)) -> 0 | S2: =SUM(IF($M:$M=5,$J:$J,0)) -> 0
A3: 1 | B3: NO | C3: Región Todas | D3: Categoría 1 | E3: Azure | F3: AzureInfoProtPremP1Open ShrdSvr SubscriptionVL Government OLP 1License NoLevel Qualified Annual 1 Licencia por Unidad de Cómputo | G3: Und | H3: Und | I3: Producto | J3: 58097 | K3: UT Soft-IG | L3: N/A
A4: 2 | B4: SI | C4: Región Todas | D4: Categoría 1 | E4: Azure | F4: AzureSubscriptionServicesOpen ShrdSvr SubscriptionVL Government OLP 1License NoLevel Qualified Annual 1 Licencia por Unidad de Cómputo | G4: Und | H4: Und | I4: Producto | J4: 309580 | K4: Controles Empresariales LTDA | L4: 5S2-00006
A5: 2 | B5: SI | C5: Región Todas | D5: Categoría 1 | E5: Azure | F5: AzureSubscriptionServicesOpen ShrdSvr SubscriptionVL Government OLP 1License NoLevel Qualified Annual 1 Licencia por Unidad de Cómputo | G5: Und | H5: Und | I5: Producto | J5: 276453 | K5: UT Soft-IG | L5: 5S2-00006
A6: 3 | B6: NO | C6: Región Todas | D6: Categoría 1 | E6: Bases de Datos SQL Server | F6: SQLCAL 2016 Government OLP 1License NoLevel DvcCAL Región 1 a 4 Una sola vez 1 Licencia por Dispositivo 1 Licencia por Dispositivo | G6: Und | H6: Und | I6: Producto | J6: 490787 | K6: Controles Empresariales LTDA | L6: 359-06353
A7: 3 | B7: NO | C7: Región Todas | D7: Categoría 1 | E7: Bases de Datos SQL Server | F7: SQLCAL 2016 Government OLP 1License NoLevel DvcCAL Región 1 a 4 Una sola vez 1 Licencia por Dispositivo 1 Licencia por Dispositivo | G7: Und | H7: Und | I7: Producto | J7: 438270 | K7: UT Soft-IG | L7: 359-06353
A8: 4 | B8: NO | C8: Región Todas | D8: Categoría 1 | E8: Bases de Datos SQL Server | F8: SQLCAL 2016 Government OLP 1License NoLevel UsrCAL Región 1 a 4 Una sola vez 1 Licencia por Usuario 1 Licencia por Usuario | G8: Und | H8: Und | I8: Producto | J8: 490787 | K8: Controles Empresariales LTDA | L8: 359-06354
A9: 4 | B9: NO | C9: Región Todas | D9: Categoría 1 | E9: Bases de Datos SQL Server | F9: SQLCAL 2016 Government OLP 1License NoLevel UsrCAL Región 1 a 4 Una sola vez 1 Licencia por Usuario 1 Licencia por Usuario | G9: Und | H9: Und | I9: Producto | J9: 438270 | K9: UT Soft-IG | L9: 359-06354
A10: 5 | B10: NO | C10: Región Todas | D10: Categoría 1 | E10: Bases de Datos SQL Server | F10: SQLCAL License/SoftwareAssurancePack Government OLP 1License NoLevel DvcCAL Región 1 a 4 Una sola vez 1 Licencia por Dispositivo 1 Licencia por Dispositivo | G10: Und | H10: Und | I10: Producto | J10: 736179 | K10: Controles Empresariales LTDA | L10: 359-01387
A11: 5 | B11: NO | C11: Región Todas | D11: Categoría 1 | E11: Bases de Datos SQL Server | F11: SQLCAL License/SoftwareAssurancePack Government OLP 1License NoLevel DvcCAL Región 1 a 4 Una sola vez 1 Licencia por Dispositivo 1 Licencia por Dispositivo | G11: Und | H11: Und | I11: Producto | J11: 657405 | K11: UT Soft-IG | L11: 359-01387
A12: 6 | B12: NO | C12: Región Todas | D12: Categoría 1 | E12: Bases de Datos SQL Server | F12: SQLCAL License/SoftwareAssurancePack Government OLP 1License NoLevel UsrCAL Región 1 a 4 Una sola vez 1 Licencia por Usuario 1 Licencia por Usuario | G12: Und | H12: Und | I12: Producto | J12: 736179 | K12: Controles Empresariales LTDA | L12: 359-01386
A13: 6 | B13: NO | C13: Región Todas | D13: Categoría 1 | E13: Bases de Datos SQL Server | F13: SQLCAL License/SoftwareAssurancePack Government OLP 1License NoLevel UsrCAL Región 1 a 4 Una sola vez 1 Licencia por Usuario 1 Licencia por Usuario | G13: Und | H13: Und | I13: Producto | J13: 657405 | K13: UT Soft-IG | L13: 359-01386
A14: 7 | B14: NO | C14: Región Todas | D14: Categoría 1 | E14: Bases de Datos SQL Server | F14: SQLCAL SoftwareAssurance Government OLP 1License NoLevel DvcCAL Región 1 a 4 Una sola vez 1 Licencia por Dispositivo 1 Licencia por Dispositivo | G14: Und | H14: Und | I14: Producto | J14: 245393 | K14: Controles Empresariales LTDA | L14: 359-01385
A15: 7 | B15: NO | C15: Región Todas | D15: Categoría 1 | E15: Bases de Datos SQL Server | F15: SQLCAL SoftwareAssurance Government OLP 1License NoLevel DvcCAL Región 1 a 4 Una sola vez 1 Licencia por Dispositivo 1 Licencia por Dispositivo | G15: Und | H15: Und | I15: Producto | J15: 219135 | K15: UT Soft-IG | L15: 359-01385
A16: 8 | B16: NO | C16: Región Todas | D16: Categoría 1 | E16: Bases de Datos SQL Server | F16: SQLCAL SoftwareAssurance Government OLP 1License NoLevel UsrCAL Región 1 a 4 Una sola vez 1 Licencia por Usuario 1 Licencia por Usuario | G16: Und | H16: Und | I16: Producto | J16: 245393 | K16: Controles Empresariales LTDA | L16: 359-01384
A17: 8 | B17: NO | C17: Región Todas | D17: Categoría 1 | E17: Bases de Datos SQL Server | F17: SQLCAL SoftwareAssurance Government OLP 1License NoLevel UsrCAL Región 1 a 4 Una sola vez 1 Licencia por Usuario 1 Licencia por Usuario | G17: Und | H17: Und | I17: Producto | J17: 219135 | K17: UT Soft-IG | L17: 359-01384
A18: 9 | B18: NO | C18: Región Todas | D18: Categoría 1 | E18: Bases de Datos SQL Server | F18: SQLServerEnterpriseEdition SoftwareAssurance Government OLP 1License NoLevel Región 1 a 4 Una sola vez 1 Licencia por Servidor 1 Licencia por Servidor | G18: Und | H18: Und | I18: Producto | J18: 10096928 | K18: Controles Empresariales LTDA | L18: 810-04848
A19: 9 | B19: NO | C19: Región Todas | D19: Categoría 1 | E19: Bases de Datos SQL Server | F19: SQLServerEnterpriseEdition SoftwareAssurance Government OLP 1License NoLevel Región 1 a 4 Una sola vez 1 Licencia por Servidor 1 Licencia por Servidor | G19: Und | H19: Und | I19: Producto | J19: 9016517 | K19: UT Soft-IG | L19: 810-04848
A20: 10 | B20: NO | C20: Región Todas | D20: Categoría 1 | E20: Bases de Datos SQL Server | F20: SQLSvrEnterpriseCore 2016 Government OLP 2Licenses NoLevel CoreLic Qualified Región 1 a 4 Una sola vez 1 Licencia por cada 2 Cores 1 Licencia por cada 2 Cores | G20: Und | H20: Und | I20: Producto | J20: 32314623 | K20: Controles Empresariales LTDA | L20: 7JQ-01038
A21: 10 | B21: NO | C21: Región Todas | D21: Categoría 1 | E21: Bases de Datos SQL Server | F21: SQLSvrEnterpriseCore 2016 Government OLP 2Licenses NoLevel CoreLic Qualified Región 1 a 4 Una sola vez 1 Licencia por cada 2 Cores 1 Licencia por cada 2 Cores | G21: Und | H21: Und | I21: Producto | J21: 28856832 | K21: UT Soft-IG | L21: 7JQ-01038
A22: 11 | B22: NO | C22: Región Todas | D22: Categoría 1 | E22: Bases de Datos SQL Server | F22: SQLSvrEnterpriseCore License/SoftwareAssurancePack Government OLP 2Licenses NoLevel CoreLic Qualified Región 1 a 4 Una sola vez 1 Licencia por cada 2 Cores 1 Licencia por cada 2 Cores | G22: Und | H22: Und | I22: Producto | J22: 48472151 | K22: Controles Empresariales LTDA | L22: 7JQ-00314
A23: 11 | B23: NO | C23: Región Todas | D23: Categoría 1 | E23: Bases de Datos SQL Server | F23: SQLSvrEnterpriseCore License/SoftwareAssurancePack Government OLP 2Licenses NoLevel CoreLic Qualified Región 1 a 4 Una sola vez 1 Licencia por cada 2 Cores 1 Licencia por cada 2 Cores | G23: Und | H23: Und | I23: Producto | J23: 43285442 | K23: UT Soft-IG | L23: 7JQ-00314
A24: 12 | B24: NO | C24: Región Todas | D24: Categoría 1 | E24: Bases de Datos SQL Server | F24: SQLSvrEnterpriseCore SoftwareAssurance Government OLP 2Licenses NoLevel CoreLic Qualified Región 1 a 4 Una sola vez 1 Licencia por cada 2 Cores 1 Licencia por cada 2 Cores | G24: Und | H24: Und | I24: Producto | J24: 16157531 | K24: Controles Empresariales LTDA | L24: 7JQ-00315
A25: 12 | B25: NO | C25: Región Todas | D25: Categoría 1 | E25: Bases de Datos SQL Server | F25: SQLSvrEnterpriseCore SoftwareAssurance Government OLP 2Licenses NoLevel CoreLic Qualified Región 1 a 4 Una sola vez 1 Licencia por cada 2 Cores 1 Licencia por cada 2 Cores | G25: Und | H25: Und | I25: Producto | J25: 14428610 | K25: UT Soft-IG | L25: 7JQ-00315
A26: 13 | B26: NO | C26: Región Todas | D26: Categoría 1 | E26: Bases de Datos SQL Server | F26: SQLServerStandardEdition 2016 Government OLP 1License NoLevel Región 1 a 4 Una sola vez 1 Licencia por Servidor 1 Licencia por Servidor | G26: Und | H26: Und | I26: Producto | J26: 2108984 | K26: Controles Empresariales LTDA | L26: 228-10833
A27: 13 | B27: NO | C27: Región Todas | D27: Categoría 1 | E27: Bases de Datos SQL Server | F27: SQLServerStandardEdition 2016 Government OLP 1License NoLevel Región 1 a 4 Una sola vez 1 Licencia por Servidor 1 Licencia por Servidor | G27: Und | H27: Und | I27: Producto | J27: 1883313 | K27: UT Soft-IG | L27: 228-10833
A28: 14 | B28: NO | C28: Región Todas | D28: Categoría 1 | E28: Bases de Datos SQL Server | F28: SQLServerStandardEdition License/SoftwareAssurancePack Government OLP 1License NoLevel Región 1 a 4 Una sola vez 1 Licencia por Servidor 1 Licencia por Servidor | G28: Und | H28: Und | I28: Producto | J28: 3163041 | K28: Controles Empresariales LTDA | L28: 228-04513
A29: 14 | B29: NO | C29: Región Todas | D29: Categoría 1 | E29: Bases de Datos SQL Server | F29: SQLServerStandardEdition License/SoftwareAssurancePack Government OLP 1License NoLevel Región 1 a 4 Una sola vez 1 Licencia por Servidor 1 Licencia por Servidor | G29: Und | H29: Und | I29: Producto | J29: 2824581 | K29: UT Soft-IG | L29: 228-04513
A30: 15 | B30: NO | C30: Región Todas | D30: Categoría 1 | E30: Bases de Datos SQL Server | F30: SQLServerStandardEdition SoftwareAssurance Government OLP 1License NoLevel Región 1 a 4 Una sola vez 1 Licencia por Servidor 1 Licencia por Servidor | G30: Und | H30: Und | I30: Producto | J30: 1054056 | K30: Controles Empresariales LTDA | L30: 228-04510
A31: 15 | B31: NO | C31: Región Todas | D31: Categoría 1 | E31: Bases de Datos SQL Server | F31: SQLServerStandardEdition SoftwareAssurance Government OLP 1License NoLevel Región 1 a 4 Una sola vez 1 Licencia por Servidor 1 Licencia por Servidor | G31: Und | H31: Und | I31: Producto | J31: 941267 | K31: UT Soft-IG | L31: 228-04510
A32: 16 | B32: NO | C32: Región Todas | D32: Categoría 1 | E32: Bases de Datos SQL Server | F32: SQLSvrStandardCore 2016 Government OLP 2Licenses NoLevel CoreLic Qualified Región 1 a 4 Una sola vez 1 Licencia por cada 2 Cores 1 Licencia por cada 2 Cores | G32: Und | H32: Und | I32: Producto | J32: 8427206 | K32: Controles Empresariales LTDA | L32: 7NQ-00831
A33: 16 | B33: NO | C33: Región Todas | D33: Categoría 1 | E33: Bases de Datos SQL Server | F33: SQLSvrStandardCore 2016 Government OLP 2Licenses NoLevel CoreLic Qualified Región 1 a 4 Una sola vez 1 Licencia por cada 2 Cores 1 Licencia por cada 2 Cores | G33: Und | H33: Und | I33: Producto | J33: 7525461 | K33: UT Soft-IG | L33: 7NQ-00831
A34: 17 | B34: NO | C34: Región Todas | D34: Categoría 1 | E34: Bases de Datos SQL Server | F34: SQLSvrStandardCore License/SoftwareAssurancePack Government OLP 2Licenses NoLevel CoreLic Qualified Región 1 a 4 Una sola vez 1 Licencia por cada 2 Cores 1 Licencia por cada 2 Cores | G34: Und | H34: Und | I34: Producto | J34: 12640808 | K34: Controles Empresariales LTDA | L34: 7NQ-00266
A35: 17 | B35: NO | C35: Región Todas | D35: Categoría 1 | E35: Bases de Datos SQL Server | F35: SQLSvrStandardCore License/SoftwareAssurancePack Government OLP 2Licenses NoLevel CoreLic Qualified Región 1 a 4 Una sola vez 1 Licencia por cada 2 Cores 1 Licencia por cada 2 Cores | G35: Und | H35: Und | I35: Producto | J35: 11288192 | K35: UT Soft-IG | L35: 7NQ-00266
A36: 18 | B36: NO | C36: Región Todas | D36: Categoría 1 | E36: Bases de Datos SQL Server | F36: SQLSvrStandardCore SoftwareAssurance Government OLP 2Licenses NoLevel CoreLic Qualified Región 1 a 4 Una sola vez 1 Licencia por cada 2 Cores 1 Licencia por cada 2 Cores | G36: Und | H36: Und | I36: Producto | J36: 4213602 | K36: Controles Empresariales LTDA | L36: 7NQ-00267
A37: 18 | B37: NO | C37: Región Todas | D37: Categoría 1 | E37: Bases de Datos SQL Server | F37: SQLSvrStandardCore SoftwareAssurance Government OLP 2Licenses NoLevel CoreLic Qualified Región 1 a 4 Una sola vez 1 Licencia por cada 2 Cores 1 Licencia por cada 2 Cores | G37: Und | H37: Und | I37: Producto | J37: 3762731 | K37: UT Soft-IG | L37: 7NQ-00267
A38: 73 | B38: NO | C38: Región Todas | D38: Categoría 1 | E38: CoreCAL Suite | F38: CoreCALClientAccessLicense License/SoftwareAssurancePack Government OLP 1License NoLevel DvcCAL Región 1 a 4 Una sola vez 1 Licencia por Dispositivo 1 Licencia por Dispositivo | G38: Und | H38: Und | I38: Producto | J38: 767619 | K38: Controles Empresariales LTDA | L38: W06-00622
A39: 73 | B39: NO | C39: Región Todas | D39: Categoría 1 | E39: CoreCAL Suite | F39: CoreCALClientAccessLicense License/SoftwareAssurancePack Government OLP 1License NoLevel DvcCAL Región 1 a 4 Una sola vez 1 Licencia por Dispositivo 1 Licencia por Dispositivo | G39: Und | H39: Und | I39: Producto | J39: 685480 | K39: UT Soft-IG | L39: W06-00622
A40: 74 | B40: NO | C40: Región Todas | D40: Categoría 1 | E40: CoreCAL Suite | F40: CoreCALClientAccessLicense License/SoftwareAssurancePack Government OLP 1License NoLevel UsrCAL Región 1 a 4 Una sola vez 1 Licencia por Usuario 1 Licencia por Usuario | G40: Und | H40: Und | I40: Producto | J40: 882455 | K40: Controles Empresariales LTDA | L40: W06-00623
A41: 74 | B41: NO | C41: Región Todas | D41: Categoría 1 | E41: CoreCAL Suite | F41: CoreCALClientAccessLicense License/SoftwareAssurancePack Government OLP 1License NoLevel UsrCAL Región 1 a 4 Una sola vez 1 Licencia por Usuario 1 Licencia por Usuario | G41: Und | H41: Und | I41: Producto | J41: 890471 | K41: UT Soft-IG | L41: W06-00623
A42: 75 | B42: NO | C42: Región Todas | D42: Categoría 1 | E42: CoreCAL Suite | F42: CoreCALClientAccessLicense SoftwareAssurance Government OLP 1License NoLevel DvcCAL Región 1 a 4 Una sola vez 1 Licencia por Dispositivo 1 Licencia por Dispositivo | G42: Und | H42: Und | I42: Producto | J42: 269845 | K42: Controles Empresariales LTDA | L42: W06-00621
A43: 75 | B43: NO | C43: Región Todas | D43: Categoría 1 | E43: CoreCAL Suite | F43: CoreCALClientAccessLicense SoftwareAssurance Government OLP 1License NoLevel DvcCAL Región 1 a 4 Una sola vez 1 Licencia por Dispositivo 1 Licencia por Dispositivo | G43: Und | H43: Und | I43: Producto | J43: 240970 | K43: UT Soft-IG | L43: W06-00621
A44: 76 | B44: NO | C44: Región Todas | D44: Categoría 1 | E44: CoreCAL Suite | F44: CoreCALClientAccessLicense SoftwareAssurance Government OLP 1License NoLevel UsrCAL Región 1 a 4 Una sola vez 1 Licencia por Usuario 1 Licencia por Usuario | G44: Und | H44: Und | I44: Producto | J44: 310017 | K44: Controles Empresariales LTDA | L44: W06-00624
A45: 76 | B45: NO | C45: Región Todas | D45: Categoría 1 | E45: CoreCAL Suite | F45: CoreCALClientAccessLicense SoftwareAssurance Government OLP 1License NoLevel UsrCAL Región 1 a 4 Una sola vez 1 Licencia por Usuario 1 Licencia por Usuario | G45: Und | H45: Und | I45: Producto | J45: 357127 | K45: UT Soft-IG | L45: W06-00624
A46: 121 | B46: NO | C46: Región Todas | D46: Categoría 1 | E46: Gestión de Identidades MIM | F46: IdentityManager-CAL 2016 Government OLP 1License NoLevel UsrCAL 1 Licencia por Usuario | G46: Und | H46: Und | I46: Producto | J46: 41917 | K46: Controles Empresariales LTDA | L46: N/A
A47: 121 | B47: NO | C47: Región Todas | D47: Categoría 1 | E47: Gestión de Identidades MIM | F47: IdentityManager-CAL 2016 Government OLP 1License NoLevel UsrCAL 1 Licencia por Usuario | G47: Und | H47: Und | I47: Producto | J47: 37431 | K47: UT Soft-IG | L47: N/A
A48: 122 | B48: NO | C48: Región Todas | D48: Categoría 1 | E48: Gestión de Identidades MIM | F48: IdentityManager-CAL License/SoftwareAssurancePack Government OLP 1License NoLevel UsrCAL 1 Licencia por Usuario | G48: Und | H48: Und | I48: Producto | J48: 62876 | K48: Controles Empresariales LTDA | L48: N/A
A49: 122 | B49: NO | C49: Región Todas | D49: Categoría 1 | E49: Gestión de Identidades MIM | F49: IdentityManager-CAL License/SoftwareAssurancePack Government OLP 1License NoLevel UsrCAL 1 Licencia por Usuario | G49: Und | H49: Und | I49: Producto | J49: 56148 | K49: UT Soft-IG | L49: N/A
A50: 123 | B50: NO | C50: Región Todas | D50: Categoría 1 | E50: Gestión de Identidades MIM | F50: IdentityManager-CAL SoftwareAssurance Government OLP 1License NoLevel UsrCAL 1 Licencia por Usuario | G50: Und | H50: Und | I50: Producto | J50: 20959 | K50: Controles Empresariales LTDA | L50: N/A
A51: 123 | B51: NO | C51: Región Todas | D51: Categoría 1 | E51: Gestión de Identidades MIM | F51: IdentityManager-CAL SoftwareAssurance Government OLP 1License NoLevel UsrCAL 1 Licencia por Usuario | G51: Und | H51: Und | I51: Producto | J51: 18717 | K51: UT Soft-IG | L51: N/A
A52: 124 | B52: NO | C52: Región Todas | D52: Categoría 1 | E52: Gestión de Identidades MIM | F52: IdentityManagerExternalConnector 2016 Government OLP 1License NoLevel Qualified 1 Licencia por Servidor | G52: Und | H52: Und | I52: Producto | J52: 43023722 | K52: Controles Empresariales LTDA | L52: N/A
A53: 124 | B53: NO | C53: Región Todas | D53: Categoría 1 | E53: Gestión de Identidades MIM | F53: IdentityManagerExternalConnector 2016 Government OLP 1License NoLevel Qualified 1 Licencia por Servidor | G53: Und | H53: Und | I53: Producto | J53: 38420016 | K53: UT Soft-IG | L53: N/A
A54: 125 | B54: NO | C54: Región Todas | D54: Categoría 1 | E54: Gestión de Identidades MIM | F54: IdentityManagerExternalConnector License/SoftwareAssurancePack Government OLP 1License NoLevel Qualified 1 Licencia por Servidor | G54: Und | H54: Und | I54: Producto | J54: 64535366 | K54: Controles Empresariales LTDA | L54: N/A
A55: 125 | B55: NO | C55: Región Todas | D55: Categoría 1 | E55: Gestión de Identidades MIM | F55: IdentityManagerExternalConnector License/SoftwareAssurancePack Government OLP 1License NoLevel Qualified 1 Licencia por Servidor | G55: Und | H55: Und | I55: Producto | J55: 57629830 | K55: UT Soft-IG | L55: N/A
A56: 126 | B56: NO | C56: Región Todas | D56: Categoría 1 | E56: Gestión de Identidades MIM | F56: IdentityManagerExternalConnector SoftwareAssurance Government OLP 1License NoLevel Qualified 1 Licencia por Servidor | G56: Und | H56: Und | I56: Producto | J56: 21511644 | K56: Controles Empresariales LTDA | L56: N/A
A57: 126 | B57: NO | C57: Región Todas | D57: Categoría 1 | E57: Gestión de Identidades MIM | F57: IdentityManagerExternalConnector SoftwareAssurance Government OLP 1License NoLevel Qualified 1 Licencia por Servidor | G57: Und | H57: Und | I57: Producto | J57: 19209812 | K57: UT Soft-IG | L57: N/A
A58: 187 | B58: NO | C58: Región Todas | D58: Categoría 1 | E58: Office | F58: OfficeMacStandard 2011 Government OLP 1License NoLevel Región 1 a 4 Una sola vez 1 Licencia por Dispositivo 1 Licencia por Dispositivo | G58: Und | H58: Und | I58: Producto | J58: 874596 | K58: Controles Empresariales LTDA | L58: 3YF-00542
A59: 187 | B59: NO | C59: Región Todas | D59: Categoría 1 | E59: Office | F59: OfficeMacStandard 2011 Government OLP 1License NoLevel Región 1 a 4 Una sola vez 1 Licencia por Dispositivo 1 Licencia por Dispositivo | G59: Und | H59: Und | I59: Producto | J59: 781009 | K59: UT Soft-IG | L59: 3YF-00542
A60: 188 | B60: NO | C60: Región Todas | D60: Categoría 1 | E60: Office | F60: OfficeMacStandard License/SoftwareAssurancePack Government OLP 1License NoLevel Región 1 a 4 Una sola vez 1 Licencia por Dispositivo 1 Licencia por Dispositivo | G60: Und | H60: Und | I60: Producto | J60: 1381975 | K60: Controles Empresariales LTDA | L60: 3YF-00123
A61: 188 | B61: NO | C61: Región Todas | D61: Categoría 1 | E61: Office | F61: OfficeMacStandard License/SoftwareAssurancePack Government OLP 1License NoLevel Región 1 a 4 Una sola vez 1 Licencia por Dispositivo 1 Licencia por Dispositivo | G61: Und | H61: Und | I61: Producto | J61: 1234098 | K61: UT Soft-IG | L61: 3YF-00123
A62: 189 | B62: NO | C62: Región Todas | D62: Categoría 1 | E62: Office | F62: OfficeMacStandard SoftwareAssurance Government OLP 1License NoLevel Región 1 a 4 Una sola vez 1 Licencia por Dispositivo 1 Licencia por Dispositivo | G62: Und | H62: Und | I62: Producto | J62: 507378 | K62: Controles Empresariales LTDA | L62: 3YF-00124
A63: 189 | B63: NO | C63: Región Todas | D63: Categoría 1 | E63: Office | F63: OfficeMacStandard SoftwareAssurance Government OLP 1License NoLevel Región 1 a 4 Una sola vez 1 Licencia por Dispositivo 1 Licencia por Dispositivo | G63: Und | H63: Und | I63: Producto | J63: 453087 | K63: UT Soft-IG | L63: 3YF-00124
A64: 190 | B64: NO | C64: Región Todas | D64: Categoría 1 | E64: Office | F64: OfficeProfessionalPlus 2016 Government OLP 1License NoLevel Región 1 a 4 Una sola vez 1 Licencia por Dispositivo 1 Licencia por Dispositivo | G64: Und | H64: Und | I64: Producto | J64: 1194218 | K64: Controles Empresariales LTDA | L64: 79P-05572
A65: 190 | B65: NO | C65: Región Todas | D65: Categoría 1 | E65: Office | F65: OfficeProfessionalPlus 2016 Government OLP 1License NoLevel Región 1 a 4 Una sola vez 1 Licencia por Dispositivo 1 Licencia por Dispositivo | G65: Und | H65: Und | I65: Producto | J65: 1066431 | K65: UT Soft-IG | L65: 79P-05572
A66: 191 | B66: NO | C66: Región Todas | D66: Categoría 1 | E66: Office | F66: OfficeProfessionalPlus License/SoftwareAssurancePack Government OLP 1License NoLevel Región 1 a 4 Una sola vez 1 Licencia por Dispositivo 1 Licencia por Dispositivo | G66: Und | H66: Und | I66: Producto | J66: 1886733 | K66: Controles Empresariales LTDA | L66: 269-08812
A67: 191 | B67: NO | C67: Región Todas | D67: Categoría 1 | E67: Office | F67: OfficeProfessionalPlus License/SoftwareAssurancePack Government OLP 1License NoLevel Región 1 a 4 Una sola vez 1 Licencia por Dispositivo 1 Licencia por Dispositivo | G67: Und | H67: Und | I67: Producto | J67: 1684845 | K67: UT Soft-IG | L67: 269-08812
A68: 193 | B68: NO | C68: Región Todas | D68: Categoría 1 | E68: Office | F68: OfficeProfessionalPlus SoftwareAssurance Government OLP 1License NoLevel Región 1 a 4 Una sola vez 1 Licencia por Dispositivo 1 Licencia por Dispositivo | G68: Und | H68: Und | I68: Producto | J68: 692516 | K68: Controles Empresariales LTDA | L68: 269-08814
A69: 193 | B69: NO | C69: Región Todas | D69: Categoría 1 | E69: Office | F69: OfficeProfessionalPlus SoftwareAssurance Government OLP 1License NoLevel Región 1 a 4 Una sola vez 1 Licencia por Dispositivo 1 Licencia por Dispositivo | G69: Und | H69: Und | I69: Producto | J69: 618412 | K69: UT Soft-IG | L69: 269-08814
A70: 194 | B70: NO | C70: Región Todas | D70: Categoría 1 | E70: Office | F70: Office 2016 Government OLP 1License NoLevel Región 1 a 4 Una sola vez 1 Licencia por Dispositivo 1 Licencia por Dispositivo | G70: Und | H70: Und | I70: Producto | J70: 874596 | K70: Controles Empresariales LTDA | L70: 021-10583
A71: 194 | B71: NO | C71: Región Todas | D71: Categoría 1 | E71: Office | F71: Office 2016 Government OLP 1License NoLevel Región 1 a 4 Una sola vez 1 Licencia por Dispositivo 1 Licencia por Dispositivo | G71: Und | H71: Und | I71: Producto | J71: 781009 | K71: UT Soft-IG | L71: 021-10583
A72: 195 | B72: NO | C72: Región Todas | D72: Categoría 1 | E72: Office | F72: Office License/SoftwareAssurancePack Government OLP 1License NoLevel Región 1 a 4 Una sola vez 1 Licencia por Dispositivo 1 Licencia por Dispositivo | G72: Und | H72: Und | I72: Producto | J72: 1381975 | K72: Controles Empresariales LTDA | L72: 021-07160
A73: 195 | B73: NO | C73: Región Todas | D73: Categoría 1 | E73: Office | F73: Office License/SoftwareAssurancePack Government OLP 1License NoLevel Región 1 a 4 Una sola vez 1 Licencia por Dispositivo 1 Licencia por Dispositivo | G73: Und | H73: Und | I73: Producto | J73: 1234098 | K73: UT Soft-IG | L73: 021-07160
A74: 197 | B74: NO | C74: Región Todas | D74: Categoría 1 | E74: Office | F74: Office SoftwareAssurance Government OLP 1License NoLevel Región 1 a 4 Una sola vez 1 Licencia por Dispositivo 1 Licencia por Dispositivo | G74: Und | H74: Und | I74: Producto | J74: 507378 | K74: Controles Empresariales LTDA | L74: 021-07161
A75: 197 | B75: NO | C75: Región Todas | D75: Categoría 1 | E75: Office | F75: Office SoftwareAssurance Government OLP 1License NoLevel Región 1 a 4 Una sola vez 1 Licencia por Dispositivo 1 Licencia por Dispositivo | G75: Und | H75: Und | I75: Producto | J75: 453087 | K75: UT Soft-IG | L75: 021-07161
A76: 198 | B76: SI | C76: Región Todas | D76: Categoría 1 | E76: Office 365 | F76: O365ProPlusOpen ShrdSvr SubscriptionVL Government OLP 1License NoLevel Qualified Annual Región 1 a 4 Pago Anual Anticipado 1 Licencia por usuario 1 Licencia por usuario | G76: Und | H76: Und | I76: Producto | J76: 381190 | K76: Controles Empresariales LTDA | L76: Q7Y-00006
A77: 198 | B77: SI | C77: Región Todas | D77: Categoría 1 | E77: Office 365 | F77: O365ProPlusOpen ShrdSvr SubscriptionVL Government OLP 1License NoLevel Qualified Annual Región 1 a 4 Pago Anual Anticipado 1 Licencia por usuario 1 Licencia por usuario | G77: Und | H77: Und | I77: Producto | J77: 340400 | K77: UT Soft-IG | L77: Q7Y-00006
A78: 199 | B78: SI | C78: Región Todas | D78: Categoría 1 | E78: Office 365 | F78: O365ExtraFileStorageOpen ShrdSvr SubscriptionVL Government OLP 1License NoLevel Addon Qualified Annual Región 1 a 4 Pago Anual Anticipado 1 Licencia por usuario 1 Licencia por usuario | G78: Und | H78: Und | I78: Producto | J78: 8733 | K78: Controles Empresariales LTDA | L78: 5A5-00006
A79: 199 | B79: SI | C79: Región Todas | D79: Categoría 1 | E79: Office 365 | F79: O365ExtraFileStorageOpen ShrdSvr SubscriptionVL Government OLP 1License NoLevel Addon Qualified Annual Región 1 a 4 Pago Anual Anticipado 1 Licencia por usuario 1 Licencia por usuario | G79: Und | H79: Und | I79: Producto | J79: 7798 | K79: UT Soft-IG | L79: 5A5-00006
A80: 201 | B80: SI | C80: Región Todas | D80: Categoría 1 | E80: Office 365 | F80: Office365PlanE1Archiving ShrdSvr SubscriptionVL Government OLP 1License NoLevel Qualified Annual Región 1 a 4 Pago Anual Anticipado 1 Licencia por usuario 1 Licencia por usuario | G80: Und | H80: Und | I80: Producto | J80: 296916 | K80: Controles Empresariales LTDA | L80: 7JT-00003
A81: 201 | B81: SI | C81: Región Todas | D81: Categoría 1 | E81: Office 365 | F81: Office365PlanE1Archiving ShrdSvr SubscriptionVL Government OLP 1License NoLevel Qualified Annual Región 1 a 4 Pago Anual Anticipado 1 Licencia por usuario 1 Licencia por usuario | G81: Und | H81: Und | I81: Producto | J81: 265145 | K81: UT Soft-IG | L81: 7JT-00003
A82: 202 | B82: SI | C82: Región Todas | D82: Categoría 1 | E82: Office 365 | F82: Office365E1Open ShrdSvr SubscriptionVL Government OLP 1License NoLevel Qualified Annual 1 Licencia por usuario | G82: Und | H82: Und | I82: Producto | J82: 222688 | K82: Controles Empresariales LTDA | L82: Q4Y-00006
A83: 202 | B83: SI | C83: Región Todas | D83: Categoría 1 | E83: Office 365 | F83: Office365E1Open ShrdSvr SubscriptionVL Government OLP 1License NoLevel Qualified Annual 1 Licencia por usuario | G83: Und | H83: Und | I83: Producto | J83: 198859 | K83: UT Soft-IG | L83: Q4Y-00006
A84: 203 | B84: SI | C84: Región Todas | D84: Categoría 1 | E84: Office 365 | F84: Office365E3Open ShrdSvr SubscriptionVL Government OLP 1License NoLevel Qualified Annual 1 Licencia por usuario | G84: Und | H84: Und | I84: Producto | J84: 630949 | K84: Controles Empresariales LTDA | L84: Q5Y-00006 | M84: 1
A85: 203 | B85: SI | C85: Región Todas | D85: Categoría 1 | E85: Office 365 | F85: Office365E3Open ShrdSvr SubscriptionVL Government OLP 1License NoLevel Qualified Annual 1 Licencia por usuario | G85: Und | H85: Und | I85: Producto | J85: 563434 | K85: UT Soft-IG | L85: Q5Y-00006 | M85: 2
A86: 205 | B86: NO | C86: Región Todas | D86: Categoría 1 | E86: Office 365 | F86: PowerBIProOpen ShrdSvr SubscriptionVL Government OLP 1License NoLevel Qualified Annual 1 Licencia por usuario | G86: Und | H86: Und | I86: Producto | J86: 580735 | K86: Controles Empresariales LTDA | L86: DW6-00006
A87: 205 | B87: NO | C87: Región Todas | D87: Categoría 1 | E87: Office 365 | F87: PowerBIProOpen ShrdSvr SubscriptionVL Government OLP 1License NoLevel Qualified Annual 1 Licencia por usuario | G87: Und | H87: Und | I87: Producto | J87: 518595 | K87: UT Soft-IG | L87: DW6-00006
A88: 226 | B88: NO | C88: Región Todas | D88: Categoría 1 | E88: Remote Desktop | F88: WinRmtDsktpSvcsCAL 2016 Government OLP 1License NoLevel DvcCAL 1 Licencia por Dispositivo | G88: Und | H88: Und | I88: Producto | J88: 237970 | K88: Controles Empresariales LTDA | L88: 6VC-03259
A89: 226 | B89: NO | C89: Región Todas | D89: Categoría 1 | E89: Remote Desktop | F89: WinRmtDsktpSvcsCAL 2016 Government OLP 1License NoLevel DvcCAL 1 Licencia por Dispositivo | G89: Und | H89: Und | I89: Producto | J89: 212507 | K89: UT Soft-IG | L89: 6VC-03259
A90: 227 | B90: NO | C90: Región Todas | D90: Categoría 1 | E90: Remote Desktop | F90: WinRmtDsktpSvcsCAL 2016 Government OLP 1License NoLevel UsrCAL 1 Licencia por Usuario | G90: Und | H90: Und | I90: Producto | J90: 273775 | K90: Controles Empresariales LTDA | L90: 6VC-03260
A91: 227 | B91: NO | C91: Región Todas | D91: Categoría 1 | E91: Remote Desktop | F91: WinRmtDsktpSvcsCAL 2016 Government OLP 1License NoLevel UsrCAL 1 Licencia por Usuario | G91: Und | H91: Und | I91: Producto | J91: 276262 | K91: UT Soft-IG | L91: 6VC-03260
A92: 228 | B92: NO | C92: Región Todas | D92: Categoría 1 | E92: Remote Desktop | F92: WinRmtDsktpSvcsCAL License/SoftwareAssurancePack Government OLP 1License NoLevel DvcCAL 1 Licencia por Dispositivo | G92: Und | H92: Und | I92: Producto | J92: 356737 | K92: Controles Empresariales LTDA | L92: 6VC-01217
A93: 228 | B93: NO | C93: Región Todas | D93: Categoría 1 | E93: Remote Desktop | F93: WinRmtDsktpSvcsCAL License/SoftwareAssurancePack Government OLP 1License NoLevel DvcCAL 1 Licencia por Dispositivo | G93: Und | H93: Und | I93: Producto | J93: 318564 | K93: UT Soft-IG | L93: 6VC-01217
A94: 229 | B94: NO | C94: Región Todas | D94: Categoría 1 | E94: Remote Desktop | F94: WinRmtDsktpSvcsCAL License/SoftwareAssurancePack Government OLP 1License NoLevel UsrCAL 1 Licencia por Usuario | G94: Und | H94: Und | I94: Producto | J94: 410881 | K94: Controles Empresariales LTDA | L94: 6VC-01218
A95: 229 | B95: NO | C95: Región Todas | D95: Categoría 1 | E95: Remote Desktop | F95: WinRmtDsktpSvcsCAL License/SoftwareAssurancePack Government OLP 1License NoLevel UsrCAL 1 Licencia por Usuario | G95: Und | H95: Und | I95: Producto | J95: 414614 | K95: UT Soft-IG | L95: 6VC-01218
A96: 230 | B96: NO | C96: Región Todas | D96: Categoría 1 | E96: Remote Desktop | F96: WinRmtDsktpSvcsCAL SoftwareAssurance Government OLP 1License NoLevel DvcCAL 1 Licencia por Dispositivo | G96: Und | H96: Und | I96: Producto | J96: 118767 | K96: Controles Empresariales LTDA | L96: 6VC-01219
A97: 230 | B97: NO | C97: Región Todas | D97: Categoría 1 | E97: Remote Desktop | F97: WinRmtDsktpSvcsCAL SoftwareAssurance Government OLP 1License NoLevel DvcCAL 1 Licencia por Dispositivo | G97: Und | H97: Und | I97: Producto | J97: 106058 | K97: UT Soft-IG | L97: 6VC-01219
A98: 231 | B98: NO | C98: Región Todas | D98: Categoría 1 | E98: Remote Desktop | F98: WinRmtDsktpSvcsCAL SoftwareAssurance Government OLP 1License NoLevel UsrCAL 1 Licencia por Usuario | G98: Und | H98: Und | I98: Producto | J98: 137106 | K98: Controles Empresariales LTDA | L98: 6VC-01220
A99: 231 | B99: NO | C99: Región Todas | D99: Categoría 1 | E99: Remote Desktop | F99: WinRmtDsktpSvcsCAL SoftwareAssurance Government OLP 1License NoLevel UsrCAL 1 Licencia por Usuario | G99: Und | H99: Und | I99: Producto | J99: 138352 | K99: UT Soft-IG | L99: 6VC-01220
A100: 232 | B100: NO | C100: Región Todas | D100: Categoría 1 | E100: Remote Desktop | F100: WinRmtDsktpSvcsExtConn 2016 Government OLP 1License NoLevel Qualified 1 Licencia por Servidor | G100: Und | H100: Und | I100: Producto | J100: 23928024 | K100: Controles Empresariales LTDA | L100: 6XC-00409
A101: 232 | B101: NO | C101: Región Todas | D101: Categoría 1 | E101: Remote Desktop | F101: WinRmtDsktpSvcsExtConn 2016 Government OLP 1License NoLevel Qualified 1 Licencia por Servidor | G101: Und | H101: Und | I101: Producto | J101: 21367632 | K101: UT Soft-IG | L101: 6XC-00409
A102: 233 | B102: NO | C102: Región Todas | D102: Categoría 1 | E102: Remote Desktop | F102: WinRmtDsktpSvcsExtConn License/SoftwareAssurancePack Government OLP 1License NoLevel Qualified 1 Licencia por Servidor | G102: Und | H102: Und | I102: Producto | J102: 35892036 | K102: Controles Empresariales LTDA | L102: 6XC-00281
A103: 233 | B103: NO | C103: Región Todas | D103: Categoría 1 | E103: Remote Desktop | F103: WinRmtDsktpSvcsExtConn License/SoftwareAssurancePack Government OLP 1License NoLevel Qualified 1 Licencia por Servidor | G103: Und | H103: Und | I103: Producto | J103: 32051447 | K103: UT Soft-IG | L103: 6XC-00281
A104: 234 | B104: NO | C104: Región Todas | D104: Categoría 1 | E104: Remote Desktop | F104: WinRmtDsktpSvcsExtConn SoftwareAssurance Government OLP 1License NoLevel Qualified 1 Licencia por Servidor | G104: Und | H104: Und | I104: Producto | J104: 11964013 | K104: Controles Empresariales LTDA | L104: 6XC-00282
A105: 234 | B105: NO | C105: Región Todas | D105: Categoría 1 | E105: Remote Desktop | F105: WinRmtDsktpSvcsExtConn SoftwareAssurance Government OLP 1License NoLevel Qualified 1 Licencia por Servidor | G105: Und | H105: Und | I105: Producto | J105: 10683816 | K105: UT Soft-IG | L105: 6XC-00282
A106: 235 | B106: NO | C106: Región Todas | D106: Categoría 1 | E106: Right Management Services | F106: WindowsRightsMgtServicesCAL 2016 Government OLP 1License NoLevel DvcCAL Región 1 a 4 Una sola vez 1 Licencia por Dispositivo 1 Licencia por Dispositivo | G106: Und | H106: Und | I106: Producto | J106: 85582 | K106: Controles Empresariales LTDA | L106: T98-02846
A107: 235 | B107: NO | C107: Región Todas | D107: Categoría 1 | E107: Right Management Services | F107: WindowsRightsMgtServicesCAL 2016 Government OLP 1License NoLevel DvcCAL Región 1 a 4 Una sola vez 1 Licencia por Dispositivo 1 Licencia por Dispositivo | G107: Und | H107: Und | I107: Producto | J107: 76423 | K107: UT Soft-IG | L107: T98-02846
A108: 236 | B108: NO | C108: Región Todas | D108: Categoría 1 | E108: Right Management Services | F108: WindowsRightsMgtServicesCAL 2016 Government OLP 1License NoLevel UsrCAL Región 1 a 4 Una sola vez 1 Licencia por Usuario 1 Licencia por Usuario | G108: Und | H108: Und | I108: Producto | J108: 98682 | K108: Controles Empresariales LTDA | L108: T98-02847
A109: 236 | B109: NO | C109: Región Todas | D109: Categoría 1 | E109: Right Management Services | F109: WindowsRightsMgtServicesCAL 2016 Government OLP 1License NoLevel UsrCAL Región 1 a 4 Una sola vez 1 Licencia por Usuario 1 Licencia por Usuario | G109: Und | H109: Und | I109: Producto | J109: 99576 | K109: UT Soft-IG | L109: T98-02847
A110: 237 | B110: NO | C110: Región Todas | D110: Categoría 1 | E110: Right Management Services | F110: WindowsRightsMgtServicesCAL WinNT License/SoftwareAssurancePack Government OLP 1License NoLevel DvcCAL Región 1 a 4 Una sola vez 1 Licencia por Dispositivo 1 Licencia por Dispositivo | G110: Und | H110: Und | I110: Producto | J110: 128372 | K110: Controles Empresariales LTDA | L110: T98-01066
A111: 237 | B111: NO | C111: Región Todas | D111: Categoría 1 | E111: Right Management Services | F111: WindowsRightsMgtServicesCAL WinNT License/SoftwareAssurancePack Government OLP 1License NoLevel DvcCAL Región 1 a 4 Una sola vez 1 Licencia por Dispositivo 1 Licencia por Dispositivo | G111: Und | H111: Und | I111: Producto | J111: 114636 | K111: UT Soft-IG | L111: T98-01066
A112: 238 | B112: NO | C112: Región Todas | D112: Categoría 1 | E112: Right Management Services | F112: WindowsRightsMgtServicesCAL WinNT License/SoftwareAssurancePack Government OLP 1License NoLevel UsrCAL Región 1 a 4 Una sola vez 1 Licencia por Usuario 1 Licencia por Usuario | G112: Und | H112: Und | I112: Producto | J112: 147586 | K112: Controles Empresariales LTDA | L112: T98-01068
A113: 238 | B113: NO | C113: Región Todas | D113: Categoría 1 | E113: Right Management Services | F113: WindowsRightsMgtServicesCAL WinNT License/SoftwareAssurancePack Government OLP 1License NoLevel UsrCAL Región 1 a 4 Una sola vez 1 Licencia por Usuario 1 Licencia por Usuario | G113: Und | H113: Und | I113: Producto | J113: 148925 | K113: UT Soft-IG | L113: T98-01068
A114: 239 | B114: SI | C114: Región Todas | D114: Categoría 1 | E114: Right Management Services | F114: WindowsRightsMgtServicesCAL WinNT SoftwareAssurance Government OLP 1License NoLevel DvcCAL Región 1 a 4 Una sola vez 1 Licencia por Dispositivo 1 Licencia por Dispositivo | G114: Und | H114: Und | I114: Producto | J114: 42791 | K114: Controles Empresariales LTDA | L114: T98-01067
A115: 239 | B115: SI | C115: Región Todas | D115: Categoría 1 | E115: Right Management Services | F115: WindowsRightsMgtServicesCAL WinNT SoftwareAssurance Government OLP 1License NoLevel DvcCAL Región 1 a 4 Una sola vez 1 Licencia por Dispositivo 1 Licencia por Dispositivo | G115: Und | H115: Und | I115: Producto | J115: 38212 | K115: UT Soft-IG | L115: T98-01067
A116: 240 | B116: SI | C116: Región Todas | D116: Categoría 1 | E116: Right Management Services | F116: WindowsRightsMgtServicesCAL WinNT SoftwareAssurance Government OLP 1License NoLevel UsrCAL Región 1 a 4 Una sola vez 1 Licencia por Usuario 1 Licencia por Usuario | G116: Und | H116: Und | I116: Producto | J116: 48904 | K116: Controles Empresariales LTDA | L116: T98-01069
A117: 240 | B117: SI | C117: Región Todas | D117: Categoría 1 | E117: Right Management Services | F117: WindowsRightsMgtServicesCAL WinNT SoftwareAssurance Government OLP 1License NoLevel UsrCAL Región 1 a 4 Una sola vez 1 Licencia por Usuario 1 Licencia por Usuario | G117: Und | H117: Und | I117: Producto | J117: 49347 | K117: UT Soft-IG | L117: T98-01069
A118: 241 | B118: SI | C118: Región Todas | D118: Categoría 1 | E118: Right Management Services | F118: WindowsRightsMgtServicesExternalConnector 2016 Government OLP 1License NoLevel Qualified Región 1 a 4 Una sola vez 1 Licencia por Servidor 1 Licencia por Servidor | G118: Und | H118: Und | I118: Producto | J118: 42839458 | K118: Controles Empresariales LTDA | L118: T99-01135
A119: 241 | B119: SI | C119: Región Todas | D119: Categoría 1 | E119: Right Management Services | F119: WindowsRightsMgtServicesExternalConnector 2016 Government OLP 1License NoLevel Qualified Región 1 a 4 Una sola vez 1 Licencia por Servidor 1 Licencia por Servidor | G119: Und | H119: Und | I119: Producto | J119: 38255470 | K119: UT Soft-IG | L119: T99-01135
A120: 242 | B120: SI | C120: Región Todas | D120: Categoría 1 | E120: Right Management Services | F120: WindowsRightsMgtServicesExternalConnector WinNT License/SoftwareAssurancePack Government OLP 1License NoLevel Qualified Región 1 a 4 Una sola vez 1 Licencia por Servidor 1 Licencia por Servidor | G120: Und | H120: Und | I120: Producto | J120: 64259407 | K120: Controles Empresariales LTDA | L120: T99-00478
A121: 242 | B121: SI | C121: Región Todas | D121: Categoría 1 | E121: Right Management Services | F121: WindowsRightsMgtServicesExternalConnector WinNT License/SoftwareAssurancePack Government OLP 1License NoLevel Qualified Región 1 a 4 Una sola vez 1 Licencia por Servidor 1 Licencia por Servidor | G121: Und | H121: Und | I121: Producto | J121: 57383401 | K121: UT Soft-IG | L121: T99-00478
A122: 243 | B122: SI | C122: Región Todas | D122: Categoría 1 | E122: Right Management Services | F122: WindowsRightsMgtServicesExternalConnector WinNT SoftwareAssurance Government OLP 1License NoLevel Qualified Región 1 a 4 Una sola vez 1 Licencia por Servidor 1 Licencia por Servidor | G122: Und | H122: Und | I122: Producto | J122: 21419948 | K122: Controles Empresariales LTDA | L122: T99-00476
A123: 243 | B123: SI | C123: Región Todas | D123: Categoría 1 | E123: Right Management Services | F123: WindowsRightsMgtServicesExternalConnector WinNT SoftwareAssurance Government OLP 1License NoLevel Qualified Región 1 a 4 Una sola vez 1 Licencia por Servidor 1 Licencia por Servidor | G123: Und | H123: Und | I123: Producto | J123: 19127930 | K123: UT Soft-IG | L123: T99-00476
A124: 246 | B124: SI | C124: Región Todas | D124: Categoría 1 | E124: Sistema Operativo Windows Server | F124: Windows®ServerCAL 2016 Government OLP 1License NoLevel DvcCAL 1 Licencia por Dispositivo | G124: Und | H124: Und | I124: Producto | J124: 68553 | K124: Controles Empresariales LTDA | L124: R18-05158
A125: 246 | B125: SI | C125: Región Todas | D125: Categoría 1 | E125: Sistema Operativo Windows Server | F125: Windows®ServerCAL 2016 Government OLP 1License NoLevel DvcCAL 1 Licencia por Dispositivo | G125: Und | H125: Und | I125: Producto | J125: 61218 | K125: UT Soft-IG | L125: R18-05158
A126: 247 | B126: SI | C126: Región Todas | D126: Categoría 1 | E126: Sistema Operativo Windows Server | F126: Windows®ServerCAL 2016 Government OLP 1License NoLevel UsrCAL 1 Licencia por Usuario | G126: Und | H126: Und | I126: Producto | J126: 79032 | K126: Controles Empresariales LTDA | L126: R18-05159
A127: 247 | B127: SI | C127: Región Todas | D127: Categoría 1 | E127: Sistema Operativo Windows Server | F127: Windows®ServerCAL 2016 Government OLP 1License NoLevel UsrCAL 1 Licencia por Usuario | G127: Und | H127: Und | I127: Producto | J127: 79750 | K127: UT Soft-IG | L127: R18-05159
A128: 248 | B128: SI | C128: Región Todas | D128: Categoría 1 | E128: Sistema Operativo Windows Server | F128: Windows®ServerCAL License/SoftwareAssurancePack Government OLP 1License NoLevel DvcCAL 1 Licencia por Dispositivo | G128: Und | H128: Und | I128: Producto | J128: 102611 | K128: Controles Empresariales LTDA | L128: R18-01634
A129: 248 | B129: SI | C129: Región Todas | D129: Categoría 1 | E129: Sistema Operativo Windows Server | F129: Windows®ServerCAL License/SoftwareAssurancePack Government OLP 1License NoLevel DvcCAL 1 Licencia por Dispositivo | G129: Und | H129: Und | I129: Producto | J129: 91629 | K129: UT Soft-IG | L129: R18-01634
A130: 249 | B130: SI | C130: Región Todas | D130: Categoría 1 | E130: Sistema Operativo Windows Server | F130: Windows®ServerCAL License/SoftwareAssurancePack Government OLP 1License NoLevel UsrCAL 1 Licencia por Usuario | G130: Und | H130: Und | I130: Producto | J130: 118331 | K130: Controles Empresariales LTDA | L130: R18-01633
A131: 249 | B131: SI | C131: Región Todas | D131: Categoría 1 | E131: Sistema Operativo Windows Server | F131: Windows®ServerCAL License/SoftwareAssurancePack Government OLP 1License NoLevel UsrCAL 1 Licencia por Usuario | G131: Und | H131: Und | I131: Producto | J131: 119404 | K131: UT Soft-IG | L131: R18-01633
A132: 250 | B132: SI | C132: Región Todas | D132: Categoría 1 | E132: Sistema Operativo Windows Server | F132: Windows®ServerCAL SoftwareAssurance Government OLP 1License NoLevel DvcCAL 1 Licencia por Dispositivo | G132: Und | H132: Und | I132: Producto | J132: 34059 | K132: Controles Empresariales LTDA | L132: R18-01636
A133: 250 | B133: SI | C133: Región Todas | D133: Categoría 1 | E133: Sistema Operativo Windows Server | F133: Windows®ServerCAL SoftwareAssurance Government OLP 1License NoLevel DvcCAL 1 Licencia por Dispositivo | G133: Und | H133: Und | I133: Producto | J133: 30414 | K133: UT Soft-IG | L133: R18-01636
A134: 251 | B134: SI | C134: Región Todas | D134: Categoría 1 | E134: Sistema Operativo Windows Server | F134: Windows®ServerCAL SoftwareAssurance Government OLP 1License NoLevel UsrCAL 1 Licencia por Usuario | G134: Und | H134: Und | I134: Producto | J134: 39298 | K134: Controles Empresariales LTDA | L134: R18-01635
A135: 251 | B135: SI | C135: Región Todas | D135: Categoría 1 | E135: Sistema Operativo Windows Server | F135: Windows®ServerCAL SoftwareAssurance Government OLP 1License NoLevel UsrCAL 1 Licencia por Usuario | G135: Und | H135: Und | I135: Producto | J135: 39654 | K135: UT Soft-IG | L135: R18-01635
A136: 255 | B136: SI | C136: Región Todas | D136: Categoría 1 | E136: Sistema Operativo Windows Server | F136: Windows®ServerExternalConnector 2016 Government OLP 1License NoLevel Qualified 1 Licencia por Servidor | G136: Und | H136: Und | I136: Producto | J136: 4745871 | K136: Controles Empresariales LTDA | L136: R39-01199
A137: 255 | B137: SI | C137: Región Todas | D137: Categoría 1 | E137: Sistema Operativo Windows Server | F137: Windows®ServerExternalConnector 2016 Government OLP 1License NoLevel Qualified 1 Licencia por Servidor | G137: Und | H137: Und | I137: Producto | J137: 4238043 | K137: UT Soft-IG | L137: R39-01199
A138: 256 | B138: NO | C138: Región Todas | D138: Categoría 1 | E138: Sistema Operativo Windows Server | F138: Windows®ServerExternalConnector License/SoftwareAssurancePack Government OLP 1License NoLevel Qualified 1 Licencia por Servidor | G138: Und | H138: Und | I138: Producto | J138: 7118587 | K138: Controles Empresariales LTDA | L138: R39-00557
A139: 256 | B139: NO | C139: Región Todas | D139: Categoría 1 | E139: Sistema Operativo Windows Server | F139: Windows®ServerExternalConnector License/SoftwareAssurancePack Government OLP 1License NoLevel Qualified 1 Licencia por Servidor | G139: Und | H139: Und | I139: Producto | J139: 6356870 | K139: UT Soft-IG | L139: R39-00557
A140: 257 | B140: NO | C140: Región Todas | D140: Categoría 1 | E140: Sistema Operativo Windows Server | F140: Windows®ServerExternalConnector SoftwareAssurance Government OLP 1License NoLevel Qualified 1 Licencia por Servidor | G140: Und | H140: Und | I140: Producto | J140: 2372717 | K140: Controles Empresariales LTDA | L140: R39-00558
A141: 257 | B141: NO | C141: Región Todas | D141: Categoría 1 | E141: Sistema Operativo Windows Server | F141: Windows®ServerExternalConnector SoftwareAssurance Government OLP 1License NoLevel Qualified 1 Licencia por Servidor | G141: Und | H141: Und | I141: Producto | J141: 2118827 | K141: UT Soft-IG | L141: R39-00558
A142: 262 | B142: NO | C142: Región Todas | D142: Categoría 1 | E142: Visio | F142: Visio®Professional 2016 Government OLP 1License NoLevel Región 1 a 4 Una sola vez 1 Licencia por Dispositivo 1 Licencia por Dispositivo | G142: Und | H142: Und | I142: Producto | J142: 1132216 | K142: Controles Empresariales LTDA | L142: D87-07302
A143: 262 | B143: NO | C143: Región Todas | D143: Categoría 1 | E143: Visio | F143: Visio®Professional 2016 Government OLP 1License NoLevel Región 1 a 4 Una sola vez 1 Licencia por Dispositivo 1 Licencia por Dispositivo | G143: Und | H143: Und | I143: Producto | J143: 1011061 | K143: UT Soft-IG | L143: D87-07302
A144: 263 | B144: NO | C144: Región Todas | D144: Categoría 1 | E144: Visio | F144: Visio®Professional License/SoftwareAssurancePack Government OLP 1License NoLevel Región 1 a 4 Una sola vez 1 Licencia por Dispositivo 1 Licencia por Dispositivo | G144: Und | H144: Und | I144: Producto | J144: 1788925 | K144: Controles Empresariales LTDA | L144: D87-02285
A145: 263 | B145: NO | C145: Región Todas | D145: Categoría 1 | E145: Visio | F145: Visio®Professional License/SoftwareAssurancePack Government OLP 1License NoLevel Región 1 a 4 Una sola vez 1 Licencia por Dispositivo 1 Licencia por Dispositivo | G145: Und | H145: Und | I145: Producto | J145: 1597503 | K145: UT Soft-IG | L145: D87-02285
A146: 264 | B146: NO | C146: Región Todas | D146: Categoría 1 | E146: Visio | F146: Visio®Professional SoftwareAssurance Government OLP 1License NoLevel Región 1 a 4 Una sola vez 1 Licencia por Dispositivo 1 Licencia por Dispositivo | G146: Und | H146: Und | I146: Producto | J146: 656710 | K146: Controles Empresariales LTDA | L146: D87-02286
A147: 264 | B147: NO | C147: Región Todas | D147: Categoría 1 | E147: Visio | F147: Visio®Professional SoftwareAssurance Government OLP 1License NoLevel Región 1 a 4 Una sola vez 1 Licencia por Dispositivo 1 Licencia por Dispositivo | G147: Und | H147: Und | I147: Producto | J147: 586440 | K147: UT Soft-IG | L147: D87-02286
A148: 265 | B148: SI | C148: Región Todas | D148: Categoría 1 | E148: Visio | F148: VisioProforOffice365Open ShrdSvr SubscriptionVL Government OLP 1License NoLevel Qualified Annual Región 1 a 4 Pago Anual Anticipado 1 Licencia por usuario 1 Licencia por usuario | G148: Und | H148: Und | I148: Producto | J148: 415683 | K148: Controles Empresariales LTDA | L148: R9Z-00006
A149: 265 | B149: SI | C149: Región Todas | D149: Categoría 1 | E149: Visio | F149: VisioProforOffice365Open ShrdSvr SubscriptionVL Government OLP 1License NoLevel Qualified Annual Región 1 a 4 Pago Anual Anticipado 1 Licencia por usuario 1 Licencia por usuario | G149: Und | H149: Und | I149: Producto | J149: 371204 | K149: UT Soft-IG | L149: R9Z-00006
A150: 266 | B150: NO | C150: Región Todas | D150: Categoría 1 | E150: Visio | F150: Visio®Standard 2016 Government OLP 1License NoLevel Región 1 a 4 Una sola vez 1 Licencia por Dispositivo 1 Licencia por Dispositivo | G150: Und | H150: Und | I150: Producto | J150: 585974 | K150: Controles Empresariales LTDA | L150: D86-05728
A151: 266 | B151: NO | C151: Región Todas | D151: Categoría 1 | E151: Visio | F151: Visio®Standard 2016 Government OLP 1License NoLevel Región 1 a 4 Una sola vez 1 Licencia por Dispositivo 1 Licencia por Dispositivo | G151: Und | H151: Und | I151: Producto | J151: 523272 | K151: UT Soft-IG | L151: D86-05728
A152: 267 | B152: NO | C152: Región Todas | D152: Categoría 1 | E152: Visio | F152: Visio®Standard License/SoftwareAssurancePack Government OLP 1License NoLevel Región 1 a 4 Una sola vez 1 Licencia por Dispositivo 1 Licencia por Dispositivo | G152: Und | H152: Und | I152: Producto | J152: 925683 | K152: Controles Empresariales LTDA | L152: D86-02331
A153: 267 | B153: NO | C153: Región Todas | D153: Categoría 1 | E153: Visio | F153: Visio®Standard License/SoftwareAssurancePack Government OLP 1License NoLevel Región 1 a 4 Una sola vez 1 Licencia por Dispositivo 1 Licencia por Dispositivo | G153: Und | H153: Und | I153: Producto | J153: 826631 | K153: UT Soft-IG | L153: D86-02331
A154: 268 | B154: NO | C154: Región Todas | D154: Categoría 1 | E154: Visio | F154: Visio®Standard SoftwareAssurance Government OLP 1License NoLevel Región 1 a 4 Una sola vez 1 Licencia por Dispositivo 1 Licencia por Dispositivo | G154: Und | H154: Und | I154: Producto | J154: 339708 | K154: Controles Empresariales LTDA | L154: D86-02333
A155: 268 | B155: NO | C155: Región Todas | D155: Categoría 1 | E155: Visio | F155: Visio®Standard SoftwareAssurance Government OLP 1License NoLevel Región 1 a 4 Una sola vez 1 Licencia por Dispositivo 1 Licencia por Dispositivo | G155: Und | H155: Und | I155: Producto | J155: 303357 | K155: UT Soft-IG | L155: D86-02333
A156: 269 | B156: NO | C156: Región Todas | D156: Categoría 1 | E156: Windows Client | F156: WINE3perDVC SoftwareAssurance Government OLP 1License NoLevel 1 Licencia por Dispositivo | G156: Und | H156: Und | I156: Producto | J156: 254999 | K156: Controles Empresariales LTDA | L156: KV3-00301
A157: 269 | B157: NO | C157: Región Todas | D157: Categoría 1 | E157: Windows Client | F157: WINE3perDVC SoftwareAssurance Government OLP 1License NoLevel 1 Licencia por Dispositivo | G157: Und | H157: Und | I157: Producto | J157: 273256 | K157: UT Soft-IG | L157: KV3-00301
A158: 270 | B158: NO | C158: Región Todas | D158: Categoría 1 | E158: Windows Client | F158: WINE3perDVC Upgrade/SoftwareAssurancePack Government OLP 1License NoLevel 1 Licencia por Dispositivo | G158: Und | H158: Und | I158: Producto | J158: 694261 | K158: Controles Empresariales LTDA | L158: KV3-00302
A159: 270 | B159: NO | C159: Región Todas | D159: Categoría 1 | E159: Windows Client | F159: WINE3perDVC Upgrade/SoftwareAssurancePack Government OLP 1License NoLevel 1 Licencia por Dispositivo | G159: Und | H159: Und | I159: Producto | J159: 619972 | K159: UT Soft-IG | L159: KV3-00302
A160: 272 | B160: NO | C160: Región Todas | D160: Categoría 1 | E160: Windows Client | F160: WindowsProfessional 8.1 Upgrade Government OLP 1License NoLevel Región 1 a 4 Una sola vez 1 Licencia por Dispositivo 1 Licencia por Dispositivo | G160: Und | H160: Und | I160: Producto | J160: 439263 | K160: Controles Empresariales LTDA | L160: FQC-09543
A161: 272 | B161: NO | C161: Región Todas | D161: Categoría 1 | E161: Windows Client | F161: WindowsProfessional 8.1 Upgrade Government OLP 1License NoLevel Región 1 a 4 Una sola vez 1 Licencia por Dispositivo 1 Licencia por Dispositivo | G161: Und | H161: Und | I161: Producto | J161: 392258 | K161: UT Soft-IG | L161: FQC-09543
A162: 273 | B162: NO | C162: Región Todas | D162: Categoría 1 | E162: Windows Client | F162: WindowsProfessional 10 Sngl OLP 1License NoLevel Legalization GetGenuine 1 Licencia por Dispositivo | G162: Und | H162: Und | I162: Producto | J162: 665334 | K162: Controles Empresariales LTDA | L162: N/A
A163: 273 | B163: NO | C163: Región Todas | D163: Categoría 1 | E163: Windows Client | F163: WindowsProfessional 10 Sngl OLP 1License NoLevel Legalization GetGenuine 1 Licencia por Dispositivo | G163: Und | H163: Und | I163: Producto | J163: 388327 | K163: UT Soft-IG | L163: N/A
A164: 274 | B164: SI | C164: Región Todas | D164: Categoría 1 | F164: Instalación de Licencia o Licencia con Software Assurance- Plata | G164: Und | H164: Und | I164: Servicio | J164: 55633 | K164: Controles Empresariales LTDA | L164: aaa-00000
A165: 274 | B165: NO | C165: Región Todas | D165: Categoría 1 | F165: Instalación de Licencia o Licencia con Software Assurance- Plata | G165: Und | H165: Und | I165: Servicio | J165: 561632 | K165: UT Soft-IG | L165: aaa-00000
A166: 275 | B166: SI | C166: Región Todas | D166: Categoría 1 | F166: Instalación Suscripción anual- Plata | G166: Und | H166: Und | I166: Servicio | J166: 55633 | K166: Controles Empresariales LTDA | L166: aaa-00000
A167: 275 | B167: NO | C167: Región Todas | D167: Categoría 1 | F167: Instalación Suscripción anual- Plata | G167: Und | H167: Und | I167: Servicio | J167: 561632 | K167: UT Soft-IG | L167: aaa-00000
A168: 276 | B168: SI | C168: Región Todas | D168: Categoría 1 | F168: Instalación de Licencia o Licencia con Software Assurance- Oro | G168: Und | H168: Und | I168: Servicio | J168: 66759 | K168: Controles Empresariales LTDA | L168: aaa-00000
A169: 276 | B169: NO | C169: Región Todas | D169: Categoría 1 | F169: Instalación de Licencia o Licencia con Software Assurance- Oro | G169: Und | H169: Und | I169: Servicio | J169: 561632 | K169: UT Soft-IG | L169: aaa-00000
A170: 277 | B170: NO | C170: Región Todas | D170: Categoría 1 | F170: Instalación Suscripción anual Oro | G170: Und | H170: Und | I170: Servicio | J170: 66759 | K170: Controles Empresariales LTDA | L170: aaa-00000
A171: 277 | B171: NO | C171: Región Todas | D171: Categoría 1 | F171: Instalación Suscripción anual Oro | G171: Und | H171: Und | I171: Servicio | J171: 561632 | K171: UT Soft-IG | L171: aaa-00000
A172: 278 | B172: NO | C172: Región 1 | D172: Categoría 1 | F172: Soporte técnico en sitio - profesional plata | G172: Mes | H172: Und | I172: Servicio | J172: 4652924 | K172: Controles Empresariales LTDA | L172: aaa-00000
A173: 278 | B173: NO | C173: Región 1 | D173: Categoría 1 | F173: Soporte técnico en sitio - profesional plata | G173: Mes | H173: Und | I173: Servicio | J173: 8120823 | K173: UT Soft-IG | L173: aaa-00000
A174: 279 | B174: NO | C174: Región 1 | D174: Categoría 1 | F174: Soporte técnico en sitio - Técnico plata | G174: Mes | H174: Und | I174: Servicio | J174: 2247789 | K174: Controles Empresariales LTDA | L174: aaa-00000
A175: 279 | B175: NO | C175: Región 1 | D175: Categoría 1 | F175: Soporte técnico en sitio - Técnico plata | G175: Mes | H175: Und | I175: Servicio | J175: 4983547 | K175: UT Soft-IG | L175: aaa-00000
A176: 280 | B176: NO | C176: Región 2 | D176: Categoría 1 | F176: Soporte técnico en sitio - profesional plata | G176: Mes | H176: Und | I176: Servicio | J176: 4652924 | K176: Controles Empresariales LTDA | L176: aaa-00000
A177: 280 | B177: NO | C177: Región 2 | D177: Categoría 1 | F177: Soporte técnico en sitio - profesional plata | G177: Mes | H177: Und | I177: Servicio | J177: 8966735 | K177: UT Soft-IG | L177: aaa-00000
A178: 281 | B178: NO | C178: Región 2 | D178: Categoría 1 | F178: Soporte técnico en sitio - Técnico plata | G178: Mes | H178: Und | I178: Servicio | J178: 2247789 | K178: Controles Empresariales LTDA | L178: aaa-00000
A179: 281 | B179: NO | C179: Región 2 | D179: Categoría 1 | F179: Soporte técnico en sitio - Técnico plata | G179: Mes | H179: Und | I179: Servicio | J179: 5609850 | K179: UT Soft-IG | L179: aaa-00000
A180: 282 | B180: SI | C180: Región 3 | D180: Categoría 1 | F180: Soporte técnico en sitio - profesional plata | G180: Mes | H180: Und | I180: Servicio | J180: 4652924 | K180: Controles Empresariales LTDA | L180: aaa-00000
A181: 282 | B181: SI | C181: Región 3 | D181: Categoría 1 | F181: Soporte técnico en sitio - profesional plata | G181: Mes | H181: Und | I181: Servicio | J181: 8449908 | K181: UT Soft-IG | L181: aaa-00000
A182: 283 | B182: SI | C182: Región 3 | D182: Categoría 1 | F182: Soporte técnico en sitio - Técnico plata | G182: Mes | H182: Und | I182: Servicio | J182: 2247789 | K182: Controles Empresariales LTDA | L182: aaa-00000
A183: 283 | B183: SI | C183: Región 3 | D183: Categoría 1 | F183: Soporte técnico en sitio - Técnico plata | G183: Mes | H183: Und | I183: Servicio | J183: 5312633 | K183: UT Soft-IG | L183: aaa-00000
A184: 284 | B184: NO | C184: Región 4 | D184: Categoría 1 | F184: Soporte técnico en sitio - profesional plata | G184: Mes | H184: Und | I184: Servicio | J184: 5583509 | K184: Controles Empresariales LTDA | L184: aaa-00000
A185: 284 | B185: NO | C185: Región 4 | D185: Categoría 1 | F185: Soporte técnico en sitio - profesional plata | G185: Mes | H185: Und | I185: Servicio | J185: 8796545 | K185: UT Soft-IG | L185: aaa-00000
A186: 285 | B186: NO | C186: Región 4 | D186: Categoría 1 | F186: Soporte técnico en sitio - Técnico plata | G186: Mes | H186: Und | I186: Servicio | J186: 2697348 | K186: Controles Empresariales LTDA | L186: aaa-00000
A187: 285 | B187: NO | C187: Región 4 | D187: Categoría 1 | F187: Soporte técnico en sitio - Técnico plata | G187: Mes | H187: Und | I187: Servicio | J187: 5659269 | K187: UT Soft-IG | L187: aaa-00000
A188: 286 | B188: NO | C188: Región 1 | D188: Categoría 1 | F188: Soporte técnico en sitio - profesional oro | G188: Mes | H188: Und | I188: Servicio | J188: 4652924 | K188: Controles Empresariales LTDA | L188: aaa-00000
A189: 286 | B189: NO | C189: Región 1 | D189: Categoría 1 | F189: Soporte técnico en sitio - profesional oro | G189: Mes | H189: Und | I189: Servicio | J189: 9317232 | K189: UT Soft-IG | L189: aaa-00000
A190: 287 | B190: NO | C190: Región 1 | D190: Categoría 1 | F190: Soporte técnico en sitio - Técnico oro | G190: Mes | H190: Und | I190: Servicio | J190: 2247789 | K190: Controles Empresariales LTDA | L190: aaa-00000
A191: 287 | B191: NO | C191: Región 1 | D191: Categoría 1 | F191: Soporte técnico en sitio - Técnico oro | G191: Mes | H191: Und | I191: Servicio | J191: 6179957 | K191: UT Soft-IG | L191: aaa-00000
A192: 288 | B192: NO | C192: Región 2 | D192: Categoría 1 | F192: Soporte técnico en sitio - profesional oro | G192: Mes | H192: Und | I192: Servicio | J192: 4652924 | K192: Controles Empresariales LTDA | L192: aaa-00000
A193: 288 | B193: NO | C193: Región 2 | D193: Categoría 1 | F193: Soporte técnico en sitio - profesional oro | G193: Mes | H193: Und | I193: Servicio | J193: 8966735 | K193: UT Soft-IG | L193: aaa-00000
A194: 289 | B194: NO | C194: Región 2 | D194: Categoría 1 | F194: Soporte técnico en sitio - Técnico oro | G194: Mes | H194: Und | I194: Servicio | J194: 2247789 | K194: Controles Empresariales LTDA | L194: aaa-00000
A195: 289 | B195: NO | C195: Región 2 | D195: Categoría 1 | F195: Soporte técnico en sitio - Técnico oro | G195: Mes | H195: Und | I195: Servicio | J195: 5609850 | K195: UT Soft-IG | L195: aaa-00000
A196: 290 | B196: NO | C196: Región 3 | D196: Categoría 1 | F196: Soporte técnico en sitio - profesional oro | G196: Mes | H196: Und | I196: Servicio | J196: 4652924 | K196: Controles Empresariales LTDA | L196: aaa-00000
A197: 290 | B197: SI | C197: Región 3 | D197: Categoría 1 | F197: Soporte técnico en sitio - profesional oro | G197: Mes | H197: Und | I197: Servicio | J197: 9642456 | K197: UT Soft-IG | L197: aaa-00000
A198: 291 | B198: NO | C198: Región 3 | D198: Categoría 1 | F198: Soporte técnico en sitio - Técnico oro | G198: Mes | H198: Und | I198: Servicio | J198: 2247789 | K198: Controles Empresariales LTDA | L198: aaa-00000
A199: 291 | B199: SI | C199: Región 3 | D199: Categoría 1 | F199: Soporte técnico en sitio - Técnico oro | G199: Mes | H199: Und | I199: Servicio | J199: 6285572 | K199: UT Soft-IG | L199: aaa-00000
A200: 292 | B200: NO | C200: Región 4 | D200: Categoría 1 | F200: Soporte técnico en sitio - profesional oro | G200: Mes | H200: Und | I200: Servicio | J200: 5583509 | K200: Controles Empresariales LTDA | L200: aaa-00000
... 151 more rows

Sheet Categoría 2 (hidden)
A1: Código matriz | B1: Excento de IVA | C1: Region | D1: Categoria | E1: Familia | F1: Nombre Producto | G1: Unidad de Medida | H1: Unidad de Servicio | I1: Tipo | J1: Precio | K1: Proveedor | L1: Número de parte | N1: Menor valor | O1: proveedor 1 | P1: proveedor 2 | Q1: proveedor 3 | R1: proveedor 4 | S1: proveedor 5
A2: 1 | B2: SI | C2: Región Todas | D2: Categoría 2 | E2: Azure | F2: AzureInfoProtPremP1Open ShrdSvr SubscriptionVL Government OLP 1License NoLevel Qualified Annual 1 Licencia por Unidad de Cómputo | G2: Und | H2: Und | I2: Producto | J2: 65061 | K2: Controles Empresariales LTDA | L2: N/A | N2: =MIN(IF(O2=0,1000000000000,O2),IF(P2=0,1000000000000,P2),IF(Q2=0,1000000000000,Q2),IF(R2=0,1000000000000,R2),IF(S2=0,1000000000000,S2)) -> 492016 | O2: =SUM(IF($M:$M=1,$J:$J,0)) -> 557618 | P2: =SUM(IF($M:$M=2,$J:$J,0)) -> 492016 | Q2: =SUM(IF($M:$M=3,$J:$J,0)) -> 624092 | R2: =SUM(IF($M:$M=4,$J:$J,0)) -> 0 | S2: =SUM(IF($M:$M=5,$J:$J,0)) -> 0
A3: 1 | B3: SI | C3: Región Todas | D3: Categoría 2 | E3: Azure | F3: AzureInfoProtPremP1Open ShrdSvr SubscriptionVL Government OLP 1License NoLevel Qualified Annual 1 Licencia por Unidad de Cómputo | G3: Und | H3: Und | I3: Producto | J3: 62343 | K3: Unión temporal Software y Servicios Eficientes | L3: N/A
A4: 1 | B4: SI | C4: Región Todas | D4: Categoría 2 | E4: Azure | F4: AzureInfoProtPremP1Open ShrdSvr SubscriptionVL Government OLP 1License NoLevel Qualified Annual 1 Licencia por Unidad de Cómputo | G4: Und | H4: Und | I4: Producto | J4: 58097 | K4: UT Soft-IG | L4: N/A
A5: 2 | B5: SI | C5: Región Todas | D5: Categoría 2 | E5: Azure | F5: AzureSubscriptionServicesOpen ShrdSvr SubscriptionVL Government OLP 1License NoLevel Qualified Annual 1 Licencia por Unidad de Cómputo | G5: Und | H5: Und | I5: Producto | J5: 309580 | K5: Controles Empresariales LTDA | L5: 5S2-00006
A6: 2 | B6: SI | C6: Región Todas | D6: Categoría 2 | E6: Azure | F6: AzureSubscriptionServicesOpen ShrdSvr SubscriptionVL Government OLP 1License NoLevel Qualified Annual 1 Licencia por Unidad de Cómputo | G6: Und | H6: Und | I6: Producto | J6: 282055 | K6: Unión temporal Software y Servicios Eficientes | L6: 5S2-00006
A7: 2 | B7: SI | C7: Región Todas | D7: Categoría 2 | E7: Azure | F7: AzureSubscriptionServicesOpen ShrdSvr SubscriptionVL Government OLP 1License NoLevel Qualified Annual 1 Licencia por Unidad de Cómputo | G7: Und | H7: Und | I7: Producto | J7: 276453 | K7: UT Soft-IG | L7: 5S2-00006
A8: 3 | B8: NO | C8: Región Todas | D8: Categoría 2 | E8: Bases de Datos SQL Server | F8: SQLCAL 2016 Government OLP 1License NoLevel DvcCAL Región 1 a 4 Una sola vez 1 Licencia por Dispositivo 1 Licencia por Dispositivo | G8: Und | H8: Und | I8: Producto | J8: 490787 | K8: Controles Empresariales LTDA | L8: 359-06353
A9: 3 | B9: NO | C9: Región Todas | D9: Categoría 2 | E9: Bases de Datos SQL Server | F9: SQLCAL 2016 Government OLP 1License NoLevel DvcCAL Región 1 a 4 Una sola vez 1 Licencia por Dispositivo 1 Licencia por Dispositivo | G9: Und | H9: Und | I9: Producto | J9: 447293 | K9: Unión temporal Software y Servicios Eficientes | L9: 359-06353
A10: 3 | B10: NO | C10: Región Todas | D10: Categoría 2 | E10: Bases de Datos SQL Server | F10: SQLCAL 2016 Government OLP 1License NoLevel DvcCAL Región 1 a 4 Una sola vez 1 Licencia por Dispositivo 1 Licencia por Dispositivo | G10: Und | H10: Und | I10: Producto | J10: 438270 | K10: UT Soft-IG | L10: 359-06353
A11: 4 | B11: NO | C11: Región Todas | D11: Categoría 2 | E11: Bases de Datos SQL Server | F11: SQLCAL 2016 Government OLP 1License NoLevel UsrCAL Región 1 a 4 Una sola vez 1 Licencia por Usuario 1 Licencia por Usuario | G11: Und | H11: Und | I11: Producto | J11: 490787 | K11: Controles Empresariales LTDA | L11: 359-06354
A12: 4 | B12: NO | C12: Región Todas | D12: Categoría 2 | E12: Bases de Datos SQL Server | F12: SQLCAL 2016 Government OLP 1License NoLevel UsrCAL Región 1 a 4 Una sola vez 1 Licencia por Usuario 1 Licencia por Usuario | G12: Und | H12: Und | I12: Producto | J12: 446931 | K12: Unión temporal Software y Servicios Eficientes | L12: 359-06354
A13: 4 | B13: NO | C13: Región Todas | D13: Categoría 2 | E13: Bases de Datos SQL Server | F13: SQLCAL 2016 Government OLP 1License NoLevel UsrCAL Región 1 a 4 Una sola vez 1 Licencia por Usuario 1 Licencia por Usuario | G13: Und | H13: Und | I13: Producto | J13: 438270 | K13: UT Soft-IG | L13: 359-06354
A14: 5 | B14: NO | C14: Región Todas | D14: Categoría 2 | E14: Bases de Datos SQL Server | F14: SQLCAL License/SoftwareAssurancePack Government OLP 1License NoLevel DvcCAL Región 1 a 4 Una sola vez 1 Licencia por Dispositivo 1 Licencia por Dispositivo | G14: Und | H14: Und | I14: Producto | J14: 736179 | K14: Controles Empresariales LTDA | L14: 359-01387
A15: 5 | B15: NO | C15: Región Todas | D15: Categoría 2 | E15: Bases de Datos SQL Server | F15: SQLCAL License/SoftwareAssurancePack Government OLP 1License NoLevel DvcCAL Región 1 a 4 Una sola vez 1 Licencia por Dispositivo 1 Licencia por Dispositivo | G15: Und | H15: Und | I15: Producto | J15: 670396 | K15: Unión temporal Software y Servicios Eficientes | L15: 359-01387
A16: 5 | B16: NO | C16: Región Todas | D16: Categoría 2 | E16: Bases de Datos SQL Server | F16: SQLCAL License/SoftwareAssurancePack Government OLP 1License NoLevel DvcCAL Región 1 a 4 Una sola vez 1 Licencia por Dispositivo 1 Licencia por Dispositivo | G16: Und | H16: Und | I16: Producto | J16: 657405 | K16: UT Soft-IG | L16: 359-01387
A17: 6 | B17: NO | C17: Región Todas | D17: Categoría 2 | E17: Bases de Datos SQL Server | F17: SQLCAL License/SoftwareAssurancePack Government OLP 1License NoLevel UsrCAL Región 1 a 4 Una sola vez 1 Licencia por Usuario 1 Licencia por Usuario | G17: Und | H17: Und | I17: Producto | J17: 736179 | K17: Controles Empresariales LTDA | L17: 359-01386
A18: 6 | B18: NO | C18: Región Todas | D18: Categoría 2 | E18: Bases de Datos SQL Server | F18: SQLCAL License/SoftwareAssurancePack Government OLP 1License NoLevel UsrCAL Región 1 a 4 Una sola vez 1 Licencia por Usuario 1 Licencia por Usuario | G18: Und | H18: Und | I18: Producto | J18: 670396 | K18: Unión temporal Software y Servicios Eficientes | L18: 359-01386
A19: 6 | B19: NO | C19: Región Todas | D19: Categoría 2 | E19: Bases de Datos SQL Server | F19: SQLCAL License/SoftwareAssurancePack Government OLP 1License NoLevel UsrCAL Región 1 a 4 Una sola vez 1 Licencia por Usuario 1 Licencia por Usuario | G19: Und | H19: Und | I19: Producto | J19: 657405 | K19: UT Soft-IG | L19: 359-01386
A20: 7 | B20: NO | C20: Región Todas | D20: Categoría 2 | E20: Bases de Datos SQL Server | F20: SQLCAL SoftwareAssurance Government OLP 1License NoLevel DvcCAL Región 1 a 4 Una sola vez 1 Licencia por Dispositivo 1 Licencia por Dispositivo | G20: Und | H20: Und | I20: Producto | J20: 245393 | K20: Controles Empresariales LTDA | L20: 359-01385
A21: 7 | B21: NO | C21: Región Todas | D21: Categoría 2 | E21: Bases de Datos SQL Server | F21: SQLCAL SoftwareAssurance Government OLP 1License NoLevel DvcCAL Región 1 a 4 Una sola vez 1 Licencia por Dispositivo 1 Licencia por Dispositivo | G21: Und | H21: Und | I21: Producto | J21: 223465 | K21: Unión temporal Software y Servicios Eficientes | L21: 359-01385
A22: 7 | B22: NO | C22: Región Todas | D22: Categoría 2 | E22: Bases de Datos SQL Server | F22: SQLCAL SoftwareAssurance Government OLP 1License NoLevel DvcCAL Región 1 a 4 Una sola vez 1 Licencia por Dispositivo 1 Licencia por Dispositivo | G22: Und | H22: Und | I22: Producto | J22: 219135 | K22: UT Soft-IG | L22: 359-01385
A23: 8 | B23: NO | C23: Región Todas | D23: Categoría 2 | E23: Bases de Datos SQL Server | F23: SQLCAL SoftwareAssurance Government OLP 1License NoLevel UsrCAL Región 1 a 4 Una sola vez 1 Licencia por Usuario 1 Licencia por Usuario | G23: Und | H23: Und | I23: Producto | J23: 245393 | K23: Controles Empresariales LTDA | L23: 359-01384
A24: 8 | B24: NO | C24: Región Todas | D24: Categoría 2 | E24: Bases de Datos SQL Server | F24: SQLCAL SoftwareAssurance Government OLP 1License NoLevel UsrCAL Región 1 a 4 Una sola vez 1 Licencia por Usuario 1 Licencia por Usuario | G24: Und | H24: Und | I24: Producto | J24: 223465 | K24: Unión temporal Software y Servicios Eficientes | L24: 359-01384
A25: 8 | B25: NO | C25: Región Todas | D25: Categoría 2 | E25: Bases de Datos SQL Server | F25: SQLCAL SoftwareAssurance Government OLP 1License NoLevel UsrCAL Región 1 a 4 Una sola vez 1 Licencia por Usuario 1 Licencia por Usuario | G25: Und | H25: Und | I25: Producto | J25: 219135 | K25: UT Soft-IG | L25: 359-01384
A26: 9 | B26: NO | C26: Región Todas | D26: Categoría 2 | E26: Bases de Datos SQL Server | F26: SQLServerEnterpriseEdition SoftwareAssurance Government OLP 1License NoLevel Región 1 a 4 Una sola vez 1 Licencia por Servidor 1 Licencia por Servidor | G26: Und | H26: Und | I26: Producto | J26: 10096928 | K26: Controles Empresariales LTDA | L26: 810-04848
A27: 9 | B27: NO | C27: Región Todas | D27: Categoría 2 | E27: Bases de Datos SQL Server | F27: SQLServerEnterpriseEdition SoftwareAssurance Government OLP 1License NoLevel Región 1 a 4 Una sola vez 1 Licencia por Servidor 1 Licencia por Servidor | G27: Und | H27: Und | I27: Producto | J27: 9193423 | K27: Unión temporal Software y Servicios Eficientes | L27: 810-04848
A28: 9 | B28: NO | C28: Región Todas | D28: Categoría 2 | E28: Bases de Datos SQL Server | F28: SQLServerEnterpriseEdition SoftwareAssurance Government OLP 1License NoLevel Región 1 a 4 Una sola vez 1 Licencia por Servidor 1 Licencia por Servidor | G28: Und | H28: Und | I28: Producto | J28: 9016517 | K28: UT Soft-IG | L28: 810-04848
A29: 10 | B29: NO | C29: Región Todas | D29: Categoría 2 | E29: Bases de Datos SQL Server | F29: SQLSvrEnterpriseCore 2016 Government OLP 2Licenses NoLevel CoreLic Qualified Región 1 a 4 Una sola vez 1 Licencia por cada 2 Cores 1 Licencia por cada 2 Cores | G29: Und | H29: Und | I29: Producto | J29: 32314623 | K29: Controles Empresariales LTDA | L29: 7JQ-01038
A30: 10 | B30: NO | C30: Región Todas | D30: Categoría 2 | E30: Bases de Datos SQL Server | F30: SQLSvrEnterpriseCore 2016 Government OLP 2Licenses NoLevel CoreLic Qualified Región 1 a 4 Una sola vez 1 Licencia por cada 2 Cores 1 Licencia por cada 2 Cores | G30: Und | H30: Und | I30: Producto | J30: 29423309 | K30: Unión temporal Software y Servicios Eficientes | L30: 7JQ-01038
A31: 10 | B31: NO | C31: Región Todas | D31: Categoría 2 | E31: Bases de Datos SQL Server | F31: SQLSvrEnterpriseCore 2016 Government OLP 2Licenses NoLevel CoreLic Qualified Región 1 a 4 Una sola vez 1 Licencia por cada 2 Cores 1 Licencia por cada 2 Cores | G31: Und | H31: Und | I31: Producto | J31: 28856832 | K31: UT Soft-IG | L31: 7JQ-01038
A32: 11 | B32: NO | C32: Región Todas | D32: Categoría 2 | E32: Bases de Datos SQL Server | F32: SQLSvrEnterpriseCore License/SoftwareAssurancePack Government OLP 2Licenses NoLevel CoreLic Qualified Región 1 a 4 Una sola vez 1 Licencia por cada 2 Cores 1 Licencia por cada 2 Cores | G32: Und | H32: Und | I32: Producto | J32: 48472151 | K32: Controles Empresariales LTDA | L32: 7JQ-00314
A33: 11 | B33: NO | C33: Región Todas | D33: Categoría 2 | E33: Bases de Datos SQL Server | F33: SQLSvrEnterpriseCore License/SoftwareAssurancePack Government OLP 2Licenses NoLevel CoreLic Qualified Región 1 a 4 Una sola vez 1 Licencia por cada 2 Cores 1 Licencia por cada 2 Cores | G33: Und | H33: Und | I33: Producto | J33: 44134963 | K33: Unión temporal Software y Servicios Eficientes | L33: 7JQ-00314
A34: 11 | B34: NO | C34: Región Todas | D34: Categoría 2 | E34: Bases de Datos SQL Server | F34: SQLSvrEnterpriseCore License/SoftwareAssurancePack Government OLP 2Licenses NoLevel CoreLic Qualified Región 1 a 4 Una sola vez 1 Licencia por cada 2 Cores 1 Licencia por cada 2 Cores | G34: Und | H34: Und | I34: Producto | J34: 43285442 | K34: UT Soft-IG | L34: 7JQ-00314
A35: 12 | B35: NO | C35: Región Todas | D35: Categoría 2 | E35: Bases de Datos SQL Server | F35: SQLSvrEnterpriseCore SoftwareAssurance Government OLP 2Licenses NoLevel CoreLic Qualified Región 1 a 4 Una sola vez 1 Licencia por cada 2 Cores 1 Licencia por cada 2 Cores | G35: Und | H35: Und | I35: Producto | J35: 16157531 | K35: Controles Empresariales LTDA | L35: 7JQ-00315
A36: 12 | B36: NO | C36: Región Todas | D36: Categoría 2 | E36: Bases de Datos SQL Server | F36: SQLSvrEnterpriseCore SoftwareAssurance Government OLP 2Licenses NoLevel CoreLic Qualified Región 1 a 4 Una sola vez 1 Licencia por cada 2 Cores 1 Licencia por cada 2 Cores | G36: Und | H36: Und | I36: Producto | J36: 14711654 | K36: Unión temporal Software y Servicios Eficientes | L36: 7JQ-00315
A37: 12 | B37: NO | C37: Región Todas | D37: Categoría 2 | E37: Bases de Datos SQL Server | F37: SQLSvrEnterpriseCore SoftwareAssurance Government OLP 2Licenses NoLevel CoreLic Qualified Región 1 a 4 Una sola vez 1 Licencia por cada 2 Cores 1 Licencia por cada 2 Cores | G37: Und | H37: Und | I37: Producto | J37: 14428610 | K37: UT Soft-IG | L37: 7JQ-00315
A38: 13 | B38: NO | C38: Región Todas | D38: Categoría 2 | E38: Bases de Datos SQL Server | F38: SQLServerStandardEdition 2016 Government OLP 1License NoLevel Región 1 a 4 Una sola vez 1 Licencia por Servidor 1 Licencia por Servidor | G38: Und | H38: Und | I38: Producto | J38: 2108984 | K38: Controles Empresariales LTDA | L38: 228-10833
A39: 13 | B39: NO | C39: Región Todas | D39: Categoría 2 | E39: Bases de Datos SQL Server | F39: SQLServerStandardEdition 2016 Government OLP 1License NoLevel Región 1 a 4 Una sola vez 1 Licencia por Servidor 1 Licencia por Servidor | G39: Und | H39: Und | I39: Producto | J39: 1921122 | K39: Unión temporal Software y Servicios Eficientes | L39: 228-10833
A40: 13 | B40: NO | C40: Región Todas | D40: Categoría 2 | E40: Bases de Datos SQL Server | F40: SQLServerStandardEdition 2016 Government OLP 1License NoLevel Región 1 a 4 Una sola vez 1 Licencia por Servidor 1 Licencia por Servidor | G40: Und | H40: Und | I40: Producto | J40: 1883313 | K40: UT Soft-IG | L40: 228-10833
A41: 14 | B41: NO | C41: Región Todas | D41: Categoría 2 | E41: Bases de Datos SQL Server | F41: SQLServerStandardEdition License/SoftwareAssurancePack Government OLP 1License NoLevel Región 1 a 4 Una sola vez 1 Licencia por Servidor 1 Licencia por Servidor | G41: Und | H41: Und | I41: Producto | J41: 3163041 | K41: Controles Empresariales LTDA | L41: 228-04513
A42: 14 | B42: NO | C42: Región Todas | D42: Categoría 2 | E42: Bases de Datos SQL Server | F42: SQLServerStandardEdition License/SoftwareAssurancePack Government OLP 1License NoLevel Región 1 a 4 Una sola vez 1 Licencia por Servidor 1 Licencia por Servidor | G42: Und | H42: Und | I42: Producto | J42: 2881077 | K42: Unión temporal Software y Servicios Eficientes | L42: 228-04513
A43: 14 | B43: NO | C43: Región Todas | D43: Categoría 2 | E43: Bases de Datos SQL Server | F43: SQLServerStandardEdition License/SoftwareAssurancePack Government OLP 1License NoLevel Región 1 a 4 Una sola vez 1 Licencia por Servidor 1 Licencia por Servidor | G43: Und | H43: Und | I43: Producto | J43: 2824581 | K43: UT Soft-IG | L43: 228-04513
A44: 15 | B44: NO | C44: Región Todas | D44: Categoría 2 | E44: Bases de Datos SQL Server | F44: SQLServerStandardEdition SoftwareAssurance Government OLP 1License NoLevel Región 1 a 4 Una sola vez 1 Licencia por Servidor 1 Licencia por Servidor | G44: Und | H44: Und | I44: Producto | J44: 1054056 | K44: Controles Empresariales LTDA | L44: 228-04510
A45: 15 | B45: NO | C45: Región Todas | D45: Categoría 2 | E45: Bases de Datos SQL Server | F45: SQLServerStandardEdition SoftwareAssurance Government OLP 1License NoLevel Región 1 a 4 Una sola vez 1 Licencia por Servidor 1 Licencia por Servidor | G45: Und | H45: Und | I45: Producto | J45: 959956 | K45: Unión temporal Software y Servicios Eficientes | L45: 228-04510
A46: 15 | B46: NO | C46: Región Todas | D46: Categoría 2 | E46: Bases de Datos SQL Server | F46: SQLServerStandardEdition SoftwareAssurance Government OLP 1License NoLevel Región 1 a 4 Una sola vez 1 Licencia por Servidor 1 Licencia por Servidor | G46: Und | H46: Und | I46: Producto | J46: 941267 | K46: UT Soft-IG | L46: 228-04510
A47: 16 | B47: NO | C47: Región Todas | D47: Categoría 2 | E47: Bases de Datos SQL Server | F47: SQLSvrStandardCore 2016 Government OLP 2Licenses NoLevel CoreLic Qualified Región 1 a 4 Una sola vez 1 Licencia por cada 2 Cores 1 Licencia por cada 2 Cores | G47: Und | H47: Und | I47: Producto | J47: 8427206 | K47: Controles Empresariales LTDA | L47: 7NQ-00831
A48: 16 | B48: NO | C48: Región Todas | D48: Categoría 2 | E48: Bases de Datos SQL Server | F48: SQLSvrStandardCore 2016 Government OLP 2Licenses NoLevel CoreLic Qualified Región 1 a 4 Una sola vez 1 Licencia por cada 2 Cores 1 Licencia por cada 2 Cores | G48: Und | H48: Und | I48: Producto | J48: 7673592 | K48: Unión temporal Software y Servicios Eficientes | L48: 7NQ-00831
A49: 16 | B49: NO | C49: Región Todas | D49: Categoría 2 | E49: Bases de Datos SQL Server | F49: SQLSvrStandardCore 2016 Government OLP 2Licenses NoLevel CoreLic Qualified Región 1 a 4 Una sola vez 1 Licencia por cada 2 Cores 1 Licencia por cada 2 Cores | G49: Und | H49: Und | I49: Producto | J49: 7525461 | K49: UT Soft-IG | L49: 7NQ-00831
A50: 17 | B50: NO | C50: Región Todas | D50: Categoría 2 | E50: Bases de Datos SQL Server | F50: SQLSvrStandardCore License/SoftwareAssurancePack Government OLP 2Licenses NoLevel CoreLic Qualified Región 1 a 4 Una sola vez 1 Licencia por cada 2 Cores 1 Licencia por cada 2 Cores | G50: Und | H50: Und | I50: Producto | J50: 12640808 | K50: Controles Empresariales LTDA | L50: 7NQ-00266
A51: 17 | B51: NO | C51: Región Todas | D51: Categoría 2 | E51: Bases de Datos SQL Server | F51: SQLSvrStandardCore License/SoftwareAssurancePack Government OLP 2Licenses NoLevel CoreLic Qualified Región 1 a 4 Una sola vez 1 Licencia por cada 2 Cores 1 Licencia por cada 2 Cores | G51: Und | H51: Und | I51: Producto | J51: 11509786 | K51: Unión temporal Software y Servicios Eficientes | L51: 7NQ-00266
A52: 17 | B52: NO | C52: Región Todas | D52: Categoría 2 | E52: Bases de Datos SQL Server | F52: SQLSvrStandardCore License/SoftwareAssurancePack Government OLP 2Licenses NoLevel CoreLic Qualified Región 1 a 4 Una sola vez 1 Licencia por cada 2 Cores 1 Licencia por cada 2 Cores | G52: Und | H52: Und | I52: Producto | J52: 11288192 | K52: UT Soft-IG | L52: 7NQ-00266
A53: 18 | B53: NO | C53: Región Todas | D53: Categoría 2 | E53: Bases de Datos SQL Server | F53: SQLSvrStandardCore SoftwareAssurance Government OLP 2Licenses NoLevel CoreLic Qualified Región 1 a 4 Una sola vez 1 Licencia por cada 2 Cores 1 Licencia por cada 2 Cores | G53: Und | H53: Und | I53: Producto | J53: 4213602 | K53: Controles Empresariales LTDA | L53: 7NQ-00267
A54: 18 | B54: NO | C54: Región Todas | D54: Categoría 2 | E54: Bases de Datos SQL Server | F54: SQLSvrStandardCore SoftwareAssurance Government OLP 2Licenses NoLevel CoreLic Qualified Región 1 a 4 Una sola vez 1 Licencia por cada 2 Cores 1 Licencia por cada 2 Cores | G54: Und | H54: Und | I54: Producto | J54: 3836191 | K54: Unión temporal Software y Servicios Eficientes | L54: 7NQ-00267
A55: 18 | B55: NO | C55: Región Todas | D55: Categoría 2 | E55: Bases de Datos SQL Server | F55: SQLSvrStandardCore SoftwareAssurance Government OLP 2Licenses NoLevel CoreLic Qualified Región 1 a 4 Una sola vez 1 Licencia por cada 2 Cores 1 Licencia por cada 2 Cores | G55: Und | H55: Und | I55: Producto | J55: 3762731 | K55: UT Soft-IG | L55: 7NQ-00267
A56: 29 | B56: NO | C56: Región Todas | D56: Categoría 2 | E56: Colaboración SharePoint Server | F56: SharePointEnterpriseCAL 2016 Government OLP 1License NoLevel DvcCAL Región 1 a 4 Una sola vez 1 Licencia por Dispositivo 1 Licencia por Dispositivo | G56: Und | H56: Und | I56: Producto | J56: 194743 | K56: Controles Empresariales LTDA | L56: 76N-03726
A57: 29 | B57: NO | C57: Región Todas | D57: Categoría 2 | E57: Colaboración SharePoint Server | F57: SharePointEnterpriseCAL 2016 Government OLP 1License NoLevel DvcCAL Región 1 a 4 Una sola vez 1 Licencia por Dispositivo 1 Licencia por Dispositivo | G57: Und | H57: Und | I57: Producto | J57: 177949 | K57: Unión temporal Software y Servicios Eficientes | L57: 76N-03726
A58: 29 | B58: NO | C58: Región Todas | D58: Categoría 2 | E58: Colaboración SharePoint Server | F58: SharePointEnterpriseCAL 2016 Government OLP 1License NoLevel DvcCAL Región 1 a 4 Una sola vez 1 Licencia por Dispositivo 1 Licencia por Dispositivo | G58: Und | H58: Und | I58: Producto | J58: 173904 | K58: UT Soft-IG | L58: 76N-03726
A59: 30 | B59: NO | C59: Región Todas | D59: Categoría 2 | E59: Colaboración SharePoint Server | F59: SharePointEnterpriseCAL 2016 Government OLP 1License NoLevel UsrCAL Región 1 a 4 Una sola vez 1 Licencia por Usuario 1 Licencia por Usuario | G59: Und | H59: Und | I59: Producto | J59: 223998 | K59: Controles Empresariales LTDA | L59: 76N-03727
A60: 30 | B60: NO | C60: Región Todas | D60: Categoría 2 | E60: Colaboración SharePoint Server | F60: SharePointEnterpriseCAL 2016 Government OLP 1License NoLevel UsrCAL Región 1 a 4 Una sola vez 1 Licencia por Usuario 1 Licencia por Usuario | G60: Und | H60: Und | I60: Producto | J60: 231177 | K60: Unión temporal Software y Servicios Eficientes | L60: 76N-03727
A61: 30 | B61: NO | C61: Región Todas | D61: Categoría 2 | E61: Colaboración SharePoint Server | F61: SharePointEnterpriseCAL 2016 Government OLP 1License NoLevel UsrCAL Región 1 a 4 Una sola vez 1 Licencia por Usuario 1 Licencia por Usuario | G61: Und | H61: Und | I61: Producto | J61: 226032 | K61: UT Soft-IG | L61: 76N-03727
A62: 31 | B62: NO | C62: Región Todas | D62: Categoría 2 | E62: Colaboración SharePoint Server | F62: SharePointEnterpriseCAL License/SoftwareAssurancePack Government OLP 1License NoLevel DvcCAL Región 1 a 4 Una sola vez 1 Licencia por Dispositivo 1 Licencia por Dispositivo | G62: Und | H62: Und | I62: Producto | J62: 292550 | K62: Controles Empresariales LTDA | L62: 76N-00597
A63: 31 | B63: NO | C63: Región Todas | D63: Categoría 2 | E63: Colaboración SharePoint Server | F63: SharePointEnterpriseCAL License/SoftwareAssurancePack Government OLP 1License NoLevel DvcCAL Región 1 a 4 Una sola vez 1 Licencia por Dispositivo 1 Licencia por Dispositivo | G63: Und | H63: Und | I63: Producto | J63: 267528 | K63: Unión temporal Software y Servicios Eficientes | L63: 76N-00597
A64: 31 | B64: NO | C64: Región Todas | D64: Categoría 2 | E64: Colaboración SharePoint Server | F64: SharePointEnterpriseCAL License/SoftwareAssurancePack Government OLP 1License NoLevel DvcCAL Región 1 a 4 Una sola vez 1 Licencia por Dispositivo 1 Licencia por Dispositivo | G64: Und | H64: Und | I64: Producto | J64: 261245 | K64: UT Soft-IG | L64: 76N-00597
A65: 32 | B65: NO | C65: Región Todas | D65: Categoría 2 | E65: Colaboración SharePoint Server | F65: SharePointEnterpriseCAL License/SoftwareAssurancePack Government OLP 1License NoLevel UsrCAL Región 1 a 4 Una sola vez 1 Licencia por Usuario 1 Licencia por Usuario | G65: Und | H65: Und | I65: Producto | J65: 335780 | K65: Controles Empresariales LTDA | L65: 76N-00603
A66: 32 | B66: NO | C66: Región Todas | D66: Categoría 2 | E66: Colaboración SharePoint Server | F66: SharePointEnterpriseCAL License/SoftwareAssurancePack Government OLP 1License NoLevel UsrCAL Región 1 a 4 Una sola vez 1 Licencia por Usuario 1 Licencia por Usuario | G66: Und | H66: Und | I66: Producto | J66: 346081 | K66: Unión temporal Software y Servicios Eficientes | L66: 76N-00603
A67: 32 | B67: NO | C67: Región Todas | D67: Categoría 2 | E67: Colaboración SharePoint Server | F67: SharePointEnterpriseCAL License/SoftwareAssurancePack Government OLP 1License NoLevel UsrCAL Región 1 a 4 Una sola vez 1 Licencia por Usuario 1 Licencia por Usuario | G67: Und | H67: Und | I67: Producto | J67: 338827 | K67: UT Soft-IG | L67: 76N-00603
A68: 33 | B68: NO | C68: Región Todas | D68: Categoría 2 | E68: Colaboración SharePoint Server | F68: SharePointEnterpriseCAL SoftwareAssurance Government OLP 1License NoLevel DvcCAL Región 1 a 4 Una sola vez 1 Licencia por Dispositivo 1 Licencia por Dispositivo | G68: Und | H68: Und | I68: Producto | J68: 97808 | K68: Controles Empresariales LTDA | L68: 76N-00654
A69: 33 | B69: NO | C69: Región Todas | D69: Categoría 2 | E69: Colaboración SharePoint Server | F69: SharePointEnterpriseCAL SoftwareAssurance Government OLP 1License NoLevel DvcCAL Región 1 a 4 Una sola vez 1 Licencia por Dispositivo 1 Licencia por Dispositivo | G69: Und | H69: Und | I69: Producto | J69: 306266 | K69: Unión temporal Software y Servicios Eficientes | L69: 76N-00654
A70: 33 | B70: NO | C70: Región Todas | D70: Categoría 2 | E70: Colaboración SharePoint Server | F70: SharePointEnterpriseCAL SoftwareAssurance Government OLP 1License NoLevel DvcCAL Región 1 a 4 Una sola vez 1 Licencia por Dispositivo 1 Licencia por Dispositivo | G70: Und | H70: Und | I70: Producto | J70: 87341 | K70: UT Soft-IG | L70: 76N-00654
A71: 34 | B71: NO | C71: Región Todas | D71: Categoría 2 | E71: Colaboración SharePoint Server | F71: SharePointEnterpriseCAL SoftwareAssurance Government OLP 1License NoLevel UsrCAL Región 1 a 4 Una sola vez 1 Licencia por Usuario 1 Licencia por Usuario | G71: Und | H71: Und | I71: Producto | J71: 111781 | K71: Controles Empresariales LTDA | L71: 76N-00660
A72: 34 | B72: NO | C72: Región Todas | D72: Categoría 2 | E72: Colaboración SharePoint Server | F72: SharePointEnterpriseCAL SoftwareAssurance Government OLP 1License NoLevel UsrCAL Región 1 a 4 Una sola vez 1 Licencia por Usuario 1 Licencia por Usuario | G72: Und | H72: Und | I72: Producto | J72: 116272 | K72: Unión temporal Software y Servicios Eficientes | L72: 76N-00660
A73: 34 | B73: NO | C73: Región Todas | D73: Categoría 2 | E73: Colaboración SharePoint Server | F73: SharePointEnterpriseCAL SoftwareAssurance Government OLP 1License NoLevel UsrCAL Región 1 a 4 Una sola vez 1 Licencia por Usuario 1 Licencia por Usuario | G73: Und | H73: Und | I73: Producto | J73: 112795 | K73: UT Soft-IG | L73: 76N-00660
A74: 35 | B74: NO | C74: Región Todas | D74: Categoría 2 | E74: Colaboración SharePoint Server | F74: SharePointStandardCAL 2016 Government OLP 1License NoLevel DvcCAL Región 1 a 4 Una sola vez 1 Licencia por Dispositivo 1 Licencia por Dispositivo | G74: Und | H74: Und | I74: Producto | J74: 221378 | K74: Controles Empresariales LTDA | L74: 76M-01625
A75: 35 | B75: NO | C75: Región Todas | D75: Categoría 2 | E75: Colaboración SharePoint Server | F75: SharePointStandardCAL 2016 Government OLP 1License NoLevel DvcCAL Región 1 a 4 Una sola vez 1 Licencia por Dispositivo 1 Licencia por Dispositivo | G75: Und | H75: Und | I75: Producto | J75: 202160 | K75: Unión temporal Software y Servicios Eficientes | L75: 76M-01625
A76: 35 | B76: NO | C76: Región Todas | D76: Categoría 2 | E76: Colaboración SharePoint Server | F76: SharePointStandardCAL 2016 Government OLP 1License NoLevel DvcCAL Región 1 a 4 Una sola vez 1 Licencia por Dispositivo 1 Licencia por Dispositivo | G76: Und | H76: Und | I76: Producto | J76: 197690 | K76: UT Soft-IG | L76: 76M-01625
A77: 36 | B77: NO | C77: Región Todas | D77: Categoría 2 | E77: Colaboración SharePoint Server | F77: SharePointStandardCAL 2016 Government OLP 1License NoLevel UsrCAL Región 1 a 4 Una sola vez 1 Licencia por Usuario 1 Licencia por Usuario | G77: Und | H77: Und | I77: Producto | J77: 254562 | K77: Controles Empresariales LTDA | L77: 76M-01626
A78: 36 | B78: NO | C78: Región Todas | D78: Categoría 2 | E78: Colaboración SharePoint Server | F78: SharePointStandardCAL 2016 Government OLP 1License NoLevel UsrCAL Región 1 a 4 Una sola vez 1 Licencia por Usuario 1 Licencia por Usuario | G78: Und | H78: Und | I78: Producto | J78: 262639 | K78: Unión temporal Software y Servicios Eficientes | L78: 76M-01626
A79: 36 | B79: NO | C79: Región Todas | D79: Categoría 2 | E79: Colaboración SharePoint Server | F79: SharePointStandardCAL 2016 Government OLP 1License NoLevel UsrCAL Región 1 a 4 Una sola vez 1 Licencia por Usuario 1 Licencia por Usuario | G79: Und | H79: Und | I79: Producto | J79: 256875 | K79: UT Soft-IG | L79: 76M-01626
A80: 37 | B80: NO | C80: Región Todas | D80: Categoría 2 | E80: Colaboración SharePoint Server | F80: SharePointStandardCAL License/SoftwareAssurancePack Government OLP 1License NoLevel DvcCAL Región 1 a 4 Una sola vez 1 Licencia por Dispositivo 1 Licencia por Dispositivo | G80: Und | H80: Und | I80: Producto | J80: 332284 | K80: Controles Empresariales LTDA | L80: H05-01579
A81: 37 | B81: NO | C81: Región Todas | D81: Categoría 2 | E81: Colaboración SharePoint Server | F81: SharePointStandardCAL License/SoftwareAssurancePack Government OLP 1License NoLevel DvcCAL Región 1 a 4 Una sola vez 1 Licencia por Dispositivo 1 Licencia por Dispositivo | G81: Und | H81: Und | I81: Producto | J81: 302634 | K81: Unión temporal Software y Servicios Eficientes | L81: H05-01579
A82: 37 | B82: NO | C82: Región Todas | D82: Categoría 2 | E82: Colaboración SharePoint Server | F82: SharePointStandardCAL License/SoftwareAssurancePack Government OLP 1License NoLevel DvcCAL Región 1 a 4 Una sola vez 1 Licencia por Dispositivo 1 Licencia por Dispositivo | G82: Und | H82: Und | I82: Producto | J82: 296729 | K82: UT Soft-IG | L82: H05-01579
A83: 38 | B83: NO | C83: Región Todas | D83: Categoría 2 | E83: Colaboración SharePoint Server | F83: SharePointStandardCAL License/SoftwareAssurancePack Government OLP 1License NoLevel UsrCAL Región 1 a 4 Una sola vez 1 Licencia por Usuario 1 Licencia por Usuario | G83: Und | H83: Und | I83: Producto | J83: 382062 | K83: Controles Empresariales LTDA | L83: H05-01580
A84: 38 | B84: NO | C84: Región Todas | D84: Categoría 2 | E84: Colaboración SharePoint Server | F84: SharePointStandardCAL License/SoftwareAssurancePack Government OLP 1License NoLevel UsrCAL Región 1 a 4 Una sola vez 1 Licencia por Usuario 1 Licencia por Usuario | G84: Und | H84: Und | I84: Producto | J84: 393957 | K84: Unión temporal Software y Servicios Eficientes | L84: H05-01580
A85: 38 | B85: NO | C85: Región Todas | D85: Categoría 2 | E85: Colaboración SharePoint Server | F85: SharePointStandardCAL License/SoftwareAssurancePack Government OLP 1License NoLevel UsrCAL Región 1 a 4 Una sola vez 1 Licencia por Usuario 1 Licencia por Usuario | G85: Und | H85: Und | I85: Producto | J85: 385534 | K85: UT Soft-IG | L85: H05-01580
A86: 39 | B86: NO | C86: Región Todas | D86: Categoría 2 | E86: Colaboración SharePoint Server | F86: SharePointStandardCAL SoftwareAssurance Government OLP 1License NoLevel DvcCAL Región 1 a 4 Una sola vez 1 Licencia por Dispositivo 1 Licencia por Dispositivo | G86: Und | H86: Und | I86: Producto | J86: 110907 | K86: Controles Empresariales LTDA | L86: H05-01578
A87: 39 | B87: NO | C87: Región Todas | D87: Categoría 2 | E87: Colaboración SharePoint Server | F87: SharePointStandardCAL SoftwareAssurance Government OLP 1License NoLevel DvcCAL Región 1 a 4 Una sola vez 1 Licencia por Dispositivo 1 Licencia por Dispositivo | G87: Und | H87: Und | I87: Producto | J87: 100968 | K87: Unión temporal Software y Servicios Eficientes | L87: H05-01578
A88: 39 | B88: NO | C88: Región Todas | D88: Categoría 2 | E88: Colaboración SharePoint Server | F88: SharePointStandardCAL SoftwareAssurance Government OLP 1License NoLevel DvcCAL Región 1 a 4 Una sola vez 1 Licencia por Dispositivo 1 Licencia por Dispositivo | G88: Und | H88: Und | I88: Producto | J88: 99039 | K88: UT Soft-IG | L88: H05-01578
A89: 40 | B89: NO | C89: Región Todas | D89: Categoría 2 | E89: Colaboración SharePoint Server | F89: SharePointStandardCAL SoftwareAssurance Government OLP 1License NoLevel UsrCAL Región 1 a 4 Una sola vez 1 Licencia por Usuario 1 Licencia por Usuario | G89: Und | H89: Und | I89: Producto | J89: 127501 | K89: Controles Empresariales LTDA | L89: H05-01581
A90: 40 | B90: NO | C90: Región Todas | D90: Categoría 2 | E90: Colaboración SharePoint Server | F90: SharePointStandardCAL SoftwareAssurance Government OLP 1License NoLevel UsrCAL Región 1 a 4 Una sola vez 1 Licencia por Usuario 1 Licencia por Usuario | G90: Und | H90: Und | I90: Producto | J90: 131166 | K90: Unión temporal Software y Servicios Eficientes | L90: H05-01581
A91: 40 | B91: NO | C91: Región Todas | D91: Categoría 2 | E91: Colaboración SharePoint Server | F91: SharePointStandardCAL SoftwareAssurance Government OLP 1License NoLevel UsrCAL Región 1 a 4 Una sola vez 1 Licencia por Usuario 1 Licencia por Usuario | G91: Und | H91: Und | I91: Producto | J91: 128657 | K91: UT Soft-IG | L91: H05-01581
A92: 41 | B92: NO | C92: Región Todas | D92: Categoría 2 | E92: Colaboración SharePoint Server | F92: SharePointServer 2016 Government OLP 1License NoLevel Región 1 a 4 Una sola vez 1 Licencia por Servidor 1 Licencia por Servidor | G92: Und | H92: Und | I92: Producto | J92: 15978507 | K92: Controles Empresariales LTDA | L92: 76P-01894
A93: 41 | B93: NO | C93: Región Todas | D93: Categoría 2 | E93: Colaboración SharePoint Server | F93: SharePointServer 2016 Government OLP 1License NoLevel Región 1 a 4 Una sola vez 1 Licencia por Servidor 1 Licencia por Servidor | G93: Und | H93: Und | I93: Producto | J93: 14548522 | K93: Unión temporal Software y Servicios Eficientes | L93: 76P-01894
A94: 41 | B94: NO | C94: Región Todas | D94: Categoría 2 | E94: Colaboración SharePoint Server | F94: SharePointServer 2016 Government OLP 1License NoLevel Región 1 a 4 Una sola vez 1 Licencia por Servidor 1 Licencia por Servidor | G94: Und | H94: Und | I94: Producto | J94: 14268743 | K94: UT Soft-IG | L94: 76P-01894
A95: 42 | B95: NO | C95: Región Todas | D95: Categoría 2 | E95: Colaboración SharePoint Server | F95: SharePointServer License/SoftwareAssurancePack Government OLP 1License NoLevel Región 1 a 4 Una sola vez 1 Licencia por Servidor 1 Licencia por Servidor | G95: Und | H95: Und | I95: Producto | J95: 23968196 | K95: Controles Empresariales LTDA | L95: H04-01233
A96: 42 | B96: NO | C96: Región Todas | D96: Categoría 2 | E96: Colaboración SharePoint Server | F96: SharePointServer License/SoftwareAssurancePack Government OLP 1License NoLevel Región 1 a 4 Una sola vez 1 Licencia por Servidor 1 Licencia por Servidor | G96: Und | H96: Und | I96: Producto | J96: 21823193 | K96: Unión temporal Software y Servicios Eficientes | L96: H04-01233
A97: 42 | B97: NO | C97: Región Todas | D97: Categoría 2 | E97: Colaboración SharePoint Server | F97: SharePointServer License/SoftwareAssurancePack Government OLP 1License NoLevel Región 1 a 4 Una sola vez 1 Licencia por Servidor 1 Licencia por Servidor | G97: Und | H97: Und | I97: Producto | J97: 21403505 | K97: UT Soft-IG | L97: H04-01233
A98: 43 | B98: NO | C98: Región Todas | D98: Categoría 2 | E98: Colaboración SharePoint Server | F98: SharePointServer SoftwareAssurance Government OLP 1License NoLevel Región 1 a 4 Una sola vez 1 Licencia por Servidor 1 Licencia por Servidor | G98: Und | H98: Und | I98: Producto | J98: 7989690 | K98: Controles Empresariales LTDA | L98: H04-01234
A99: 43 | B99: NO | C99: Región Todas | D99: Categoría 2 | E99: Colaboración SharePoint Server | F99: SharePointServer SoftwareAssurance Government OLP 1License NoLevel Región 1 a 4 Una sola vez 1 Licencia por Servidor 1 Licencia por Servidor | G99: Und | H99: Und | I99: Producto | J99: 7274670 | K99: Unión temporal Software y Servicios Eficientes | L99: H04-01234
A100: 43 | B100: NO | C100: Región Todas | D100: Categoría 2 | E100: Colaboración SharePoint Server | F100: SharePointServer SoftwareAssurance Government OLP 1License NoLevel Región 1 a 4 Una sola vez 1 Licencia por Servidor 1 Licencia por Servidor | G100: Und | H100: Und | I100: Producto | J100: 7134762 | K100: UT Soft-IG | L100: H04-01234
A101: 44 | B101: NO | C101: Región Todas | D101: Categoría 2 | E101: Comunicaciones Unificadas SfB Server | F101: SkypeforBusiness 2016 Government OLP 1License NoLevel 1 Licencia por Dispositivo | G101: Und | H101: Und | I101: Producto | J101: 72482 | K101: Controles Empresariales LTDA | L101: 6YH-01145
A102: 44 | B102: NO | C102: Región Todas | D102: Categoría 2 | E102: Comunicaciones Unificadas SfB Server | F102: SkypeforBusiness 2016 Government OLP 1License NoLevel 1 Licencia por Dispositivo | G102: Und | H102: Und | I102: Producto | J102: 66001 | K102: Unión temporal Software y Servicios Eficientes | L102: 6YH-01145
A103: 44 | B103: NO | C103: Región Todas | D103: Categoría 2 | E103: Comunicaciones Unificadas SfB Server | F103: SkypeforBusiness 2016 Government OLP 1License NoLevel 1 Licencia por Dispositivo | G103: Und | H103: Und | I103: Producto | J103: 64726 | K103: UT Soft-IG | L103: 6YH-01145
A104: 45 | B104: NO | C104: Región Todas | D104: Categoría 2 | E104: Comunicaciones Unificadas SfB Server | F104: SkypeforBusiness License/SoftwareAssurancePack Government OLP 1License NoLevel 1 Licencia por Dispositivo | G104: Und | H104: Und | I104: Producto | J104: 114401 | K104: Controles Empresariales LTDA | L104: 6YH-00528
A105: 45 | B105: NO | C105: Región Todas | D105: Categoría 2 | E105: Comunicaciones Unificadas SfB Server | F105: SkypeforBusiness License/SoftwareAssurancePack Government OLP 1License NoLevel 1 Licencia por Dispositivo | G105: Und | H105: Und | I105: Producto | J105: 104148 | K105: Unión temporal Software y Servicios Eficientes | L105: 6YH-00528
A106: 45 | B106: NO | C106: Región Todas | D106: Categoría 2 | E106: Comunicaciones Unificadas SfB Server | F106: SkypeforBusiness License/SoftwareAssurancePack Government OLP 1License NoLevel 1 Licencia por Dispositivo | G106: Und | H106: Und | I106: Producto | J106: 102159 | K106: UT Soft-IG | L106: 6YH-00528
A107: 46 | B107: NO | C107: Región Todas | D107: Categoría 2 | E107: Comunicaciones Unificadas SfB Server | F107: SkypeforBusiness SoftwareAssurance Government OLP 1License NoLevel 1 Licencia por Dispositivo | G107: Und | H107: Und | I107: Producto | J107: 41917 | K107: Controles Empresariales LTDA | L107: 6YH-00529
A108: 46 | B108: NO | C108: Región Todas | D108: Categoría 2 | E108: Comunicaciones Unificadas SfB Server | F108: SkypeforBusiness SoftwareAssurance Government OLP 1License NoLevel 1 Licencia por Dispositivo | G108: Und | H108: Und | I108: Producto | J108: 38178 | K108: Unión temporal Software y Servicios Eficientes | L108: 6YH-00529
A109: 46 | B109: NO | C109: Región Todas | D109: Categoría 2 | E109: Comunicaciones Unificadas SfB Server | F109: SkypeforBusiness SoftwareAssurance Government OLP 1License NoLevel 1 Licencia por Dispositivo | G109: Und | H109: Und | I109: Producto | J109: 37431 | K109: UT Soft-IG | L109: 6YH-00529
A110: 47 | B110: NO | C110: Región Todas | D110: Categoría 2 | E110: Comunicaciones Unificadas SfB Server | F110: LyncMac 2011 Government OLP 1License NoLevel 1 Licencia por Dispositivo | G110: Und | H110: Und | I110: Producto | J110: 72482 | K110: Controles Empresariales LTDA | L110: 5HK-00290
A111: 47 | B111: NO | C111: Región Todas | D111: Categoría 2 | E111: Comunicaciones Unificadas SfB Server | F111: LyncMac 2011 Government OLP 1License NoLevel 1 Licencia por Dispositivo | G111: Und | H111: Und | I111: Producto | J111: 66001 | K111: Unión temporal Software y Servicios Eficientes | L111: 5HK-00290
A112: 47 | B112: NO | C112: Región Todas | D112: Categoría 2 | E112: Comunicaciones Unificadas SfB Server | F112: LyncMac 2011 Government OLP 1License NoLevel 1 Licencia por Dispositivo | G112: Und | H112: Und | I112: Producto | J112: 64726 | K112: UT Soft-IG | L112: 5HK-00290
A113: 48 | B113: NO | C113: Región Todas | D113: Categoría 2 | E113: Comunicaciones Unificadas SfB Server | F113: LyncMac License/SoftwareAssurancePack Government OLP 1License NoLevel 1 Licencia por Dispositivo | G113: Und | H113: Und | I113: Producto | J113: 114401 | K113: Controles Empresariales LTDA | L113: 5HK-00288
A114: 48 | B114: NO | C114: Región Todas | D114: Categoría 2 | E114: Comunicaciones Unificadas SfB Server | F114: LyncMac License/SoftwareAssurancePack Government OLP 1License NoLevel 1 Licencia por Dispositivo | G114: Und | H114: Und | I114: Producto | J114: 104148 | K114: Unión temporal Software y Servicios Eficientes | L114: 5HK-00288
A115: 48 | B115: NO | C115: Región Todas | D115: Categoría 2 | E115: Comunicaciones Unificadas SfB Server | F115: LyncMac License/SoftwareAssurancePack Government OLP 1License NoLevel 1 Licencia por Dispositivo | G115: Und | H115: Und | I115: Producto | J115: 102159 | K115: UT Soft-IG | L115: 5HK-00288
A116: 49 | B116: NO | C116: Región Todas | D116: Categoría 2 | E116: Comunicaciones Unificadas SfB Server | F116: LyncMac SoftwareAssurance Government OLP 1License NoLevel 1 Licencia por Dispositivo | G116: Und | H116: Und | I116: Producto | J116: 41917 | K116: Controles Empresariales LTDA | L116: 5HK-00289
A117: 49 | B117: NO | C117: Región Todas | D117: Categoría 2 | E117: Comunicaciones Unificadas SfB Server | F117: LyncMac SoftwareAssurance Government OLP 1License NoLevel 1 Licencia por Dispositivo | G117: Und | H117: Und | I117: Producto | J117: 38178 | K117: Unión temporal Software y Servicios Eficientes | L117: 5HK-00289
A118: 49 | B118: NO | C118: Región Todas | D118: Categoría 2 | E118: Comunicaciones Unificadas SfB Server | F118: LyncMac SoftwareAssurance Government OLP 1License NoLevel 1 Licencia por Dispositivo | G118: Und | H118: Und | I118: Producto | J118: 37431 | K118: UT Soft-IG | L118: 5HK-00289
A119: 50 | B119: SI | C119: Región Todas | D119: Categoría 2 | E119: Comunicaciones Unificadas SfB Server | F119: SfBOnlinePlan2Open ShrdSvr SubscriptionVL Government OLP 1License NoLevel Qualified Annual 1 Licencia por usuario | G119: Und | H119: Und | I119: Producto | J119: 167234 | K119: Controles Empresariales LTDA | L119: R6Z-00006
A120: 50 | B120: SI | C120: Región Todas | D120: Categoría 2 | E120: Comunicaciones Unificadas SfB Server | F120: SfBOnlinePlan2Open ShrdSvr SubscriptionVL Government OLP 1License NoLevel Qualified Annual 1 Licencia por usuario | G120: Und | H120: Und | I120: Producto | J120: 152270 | K120: Unión temporal Software y Servicios Eficientes | L120: R6Z-00006
A121: 50 | B121: SI | C121: Región Todas | D121: Categoría 2 | E121: Comunicaciones Unificadas SfB Server | F121: SfBOnlinePlan2Open ShrdSvr SubscriptionVL Government OLP 1License NoLevel Qualified Annual 1 Licencia por usuario | G121: Und | H121: Und | I121: Producto | J121: 149339 | K121: UT Soft-IG | L121: R6Z-00006
A122: 51 | B122: SI | C122: Región Todas | D122: Categoría 2 | E122: Comunicaciones Unificadas SfB Server | F122: SfBOnlinePlan1Open ShrdSvr SubscriptionVL Government OLP 1License NoLevel Qualified Annual 1 Licencia por usuario | G122: Und | H122: Und | I122: Producto | J122: 55891 | K122: Controles Empresariales LTDA | L122: DM2-00006
A123: 51 | B123: SI | C123: Región Todas | D123: Categoría 2 | E123: Comunicaciones Unificadas SfB Server | F123: SfBOnlinePlan1Open ShrdSvr SubscriptionVL Government OLP 1License NoLevel Qualified Annual 1 Licencia por usuario | G123: Und | H123: Und | I123: Producto | J123: 50893 | K123: Unión temporal Software y Servicios Eficientes | L123: DM2-00006
A124: 51 | B124: SI | C124: Región Todas | D124: Categoría 2 | E124: Comunicaciones Unificadas SfB Server | F124: SfBOnlinePlan1Open ShrdSvr SubscriptionVL Government OLP 1License NoLevel Qualified Annual 1 Licencia por usuario | G124: Und | H124: Und | I124: Producto | J124: 49909 | K124: UT Soft-IG | L124: DM2-00006
A125: 52 | B125: NO | C125: Región Todas | D125: Categoría 2 | E125: Comunicaciones Unificadas SfB Server | F125: SfBServer 2015 Government OLP 1License NoLevel 1 Licencia por Servidor | G125: Und | H125: Und | I125: Producto | J125: 8568677 | K125: Controles Empresariales LTDA | L125: 5HU-00363
A126: 52 | B126: NO | C126: Región Todas | D126: Categoría 2 | E126: Comunicaciones Unificadas SfB Server | F126: SfBServer 2015 Government OLP 1License NoLevel 1 Licencia por Servidor | G126: Und | H126: Und | I126: Producto | J126: 7989544 | K126: Unión temporal Software y Servicios Eficientes | L126: 5HU-00363
A127: 52 | B127: NO | C127: Región Todas | D127: Categoría 2 | E127: Comunicaciones Unificadas SfB Server | F127: SfBServer 2015 Government OLP 1License NoLevel 1 Licencia por Servidor | G127: Und | H127: Und | I127: Producto | J127: 7651795 | K127: UT Soft-IG | L127: 5HU-00363
A128: 53 | B128: NO | C128: Región Todas | D128: Categoría 2 | E128: Comunicaciones Unificadas SfB Server | F128: SfBServer License/SoftwareAssurancePack Government OLP 1License NoLevel 1 Licencia por Servidor | G128: Und | H128: Und | I128: Producto | J128: 12853017 | K128: Controles Empresariales LTDA | L128: 5HU-00285
A129: 53 | B129: NO | C129: Región Todas | D129: Categoría 2 | E129: Comunicaciones Unificadas SfB Server | F129: SfBServer License/SoftwareAssurancePack Government OLP 1License NoLevel 1 Licencia por Servidor | G129: Und | H129: Und | I129: Producto | J129: 11742208 | K129: Unión temporal Software y Servicios Eficientes | L129: 5HU-00285
A130: 53 | B130: NO | C130: Región Todas | D130: Categoría 2 | E130: Comunicaciones Unificadas SfB Server | F130: SfBServer License/SoftwareAssurancePack Government OLP 1License NoLevel 1 Licencia por Servidor | G130: Und | H130: Und | I130: Producto | J130: 11477693 | K130: UT Soft-IG | L130: 5HU-00285
A131: 54 | B131: NO | C131: Región Todas | D131: Categoría 2 | E131: Comunicaciones Unificadas SfB Server | F131: SfBServer SoftwareAssurance Government OLP 1License NoLevel 1 Licencia por Servidor | G131: Und | H131: Und | I131: Producto | J131: 4284339 | K131: Controles Empresariales LTDA | L131: 5HU-00286
A132: 54 | B132: NO | C132: Región Todas | D132: Categoría 2 | E132: Comunicaciones Unificadas SfB Server | F132: SfBServer SoftwareAssurance Government OLP 1License NoLevel 1 Licencia por Servidor | G132: Und | H132: Und | I132: Producto | J132: 3994772 | K132: Unión temporal Software y Servicios Eficientes | L132: 5HU-00286
A133: 54 | B133: NO | C133: Región Todas | D133: Categoría 2 | E133: Comunicaciones Unificadas SfB Server | F133: SfBServer SoftwareAssurance Government OLP 1License NoLevel 1 Licencia por Servidor | G133: Und | H133: Und | I133: Producto | J133: 3825898 | K133: UT Soft-IG | L133: 5HU-00286
A134: 55 | B134: NO | C134: Región Todas | D134: Categoría 2 | E134: Comunicaciones Unificadas SfB Server | F134: SfBServerEntCAL 2015 Government OLP 1License NoLevel DvcCAL 1 Licencia por Dispositivo | G134: Und | H134: Und | I134: Producto | J134: 252381 | K134: Controles Empresariales LTDA | L134: 7AH-00664
A135: 55 | B135: NO | C135: Región Todas | D135: Categoría 2 | E135: Comunicaciones Unificadas SfB Server | F135: SfBServerEntCAL 2015 Government OLP 1License NoLevel DvcCAL 1 Licencia por Dispositivo | G135: Und | H135: Und | I135: Producto | J135: 230002 | K135: Unión temporal Software y Servicios Eficientes | L135: 7AH-00664
A136: 55 | B136: NO | C136: Región Todas | D136: Categoría 2 | E136: Comunicaciones Unificadas SfB Server | F136: SfBServerEntCAL 2015 Government OLP 1License NoLevel DvcCAL 1 Licencia por Dispositivo | G136: Und | H136: Und | I136: Producto | J136: 225372 | K136: UT Soft-IG | L136: 7AH-00664
A137: 56 | B137: NO | C137: Región Todas | D137: Categoría 2 | E137: Comunicaciones Unificadas SfB Server | F137: SfBServerEntCAL 2015 Government OLP 1License NoLevel UsrCAL 1 Licencia por Usuario | G137: Und | H137: Und | I137: Producto | J137: 290367 | K137: Controles Empresariales LTDA | L137: 7AH-00665
A138: 56 | B138: NO | C138: Región Todas | D138: Categoría 2 | E138: Comunicaciones Unificadas SfB Server | F138: SfBServerEntCAL 2015 Government OLP 1License NoLevel UsrCAL 1 Licencia por Usuario | G138: Und | H138: Und | I138: Producto | J138: 300939 | K138: Unión temporal Software y Servicios Eficientes | L138: 7AH-00665
A139: 56 | B139: NO | C139: Región Todas | D139: Categoría 2 | E139: Comunicaciones Unificadas SfB Server | F139: SfBServerEntCAL 2015 Government OLP 1License NoLevel UsrCAL 1 Licencia por Usuario | G139: Und | H139: Und | I139: Producto | J139: 293006 | K139: UT Soft-IG | L139: 7AH-00665
A140: 57 | B140: NO | C140: Región Todas | D140: Categoría 2 | E140: Comunicaciones Unificadas SfB Server | F140: SfBServerEntCAL License/SoftwareAssurancePack Government OLP 1License NoLevel DvcCAL 1 Licencia por Dispositivo | G140: Und | H140: Und | I140: Producto | J140: 379006 | K140: Controles Empresariales LTDA | L140: 7AH-00419
A141: 57 | B141: NO | C141: Región Todas | D141: Categoría 2 | E141: Comunicaciones Unificadas SfB Server | F141: SfBServerEntCAL License/SoftwareAssurancePack Government OLP 1License NoLevel DvcCAL 1 Licencia por Dispositivo | G141: Und | H141: Und | I141: Producto | J141: 351056 | K141: Unión temporal Software y Servicios Eficientes | L141: 7AH-00419
A142: 57 | B142: NO | C142: Región Todas | D142: Categoría 2 | E142: Comunicaciones Unificadas SfB Server | F142: SfBServerEntCAL License/SoftwareAssurancePack Government OLP 1License NoLevel DvcCAL 1 Licencia por Dispositivo | G142: Und | H142: Und | I142: Producto | J142: 338450 | K142: UT Soft-IG | L142: 7AH-00419
A143: 58 | B143: NO | C143: Región Todas | D143: Categoría 2 | E143: Comunicaciones Unificadas SfB Server | F143: SfBServerEntCAL License/SoftwareAssurancePack Government OLP 1License NoLevel UsrCAL 1 Licencia por Usuario | G143: Und | H143: Und | I143: Producto | J143: 435333 | K143: Controles Empresariales LTDA | L143: 7AH-00420
A144: 58 | B144: NO | C144: Región Todas | D144: Categoría 2 | E144: Comunicaciones Unificadas SfB Server | F144: SfBServerEntCAL License/SoftwareAssurancePack Government OLP 1License NoLevel UsrCAL 1 Licencia por Usuario | G144: Und | H144: Und | I144: Producto | J144: 451409 | K144: Unión temporal Software y Servicios Eficientes | L144: 7AH-00420
A145: 58 | B145: NO | C145: Región Todas | D145: Categoría 2 | E145: Comunicaciones Unificadas SfB Server | F145: SfBServerEntCAL License/SoftwareAssurancePack Government OLP 1License NoLevel UsrCAL 1 Licencia por Usuario | G145: Und | H145: Und | I145: Producto | J145: 439287 | K145: UT Soft-IG | L145: 7AH-00420
A146: 59 | B146: NO | C146: Región Todas | D146: Categoría 2 | E146: Comunicaciones Unificadas SfB Server | F146: SfBServerEntCAL SoftwareAssurance Government OLP 1License NoLevel DvcCAL 1 Licencia por Dispositivo | G146: Und | H146: Und | I146: Producto | J146: 126627 | K146: Controles Empresariales LTDA | L146: 7AH-00421
A147: 59 | B147: NO | C147: Región Todas | D147: Categoría 2 | E147: Comunicaciones Unificadas SfB Server | F147: SfBServerEntCAL SoftwareAssurance Government OLP 1License NoLevel DvcCAL 1 Licencia por Dispositivo | G147: Und | H147: Und | I147: Producto | J147: 117423 | K147: Unión temporal Software y Servicios Eficientes | L147: 7AH-00421
A148: 59 | B148: NO | C148: Región Todas | D148: Categoría 2 | E148: Comunicaciones Unificadas SfB Server | F148: SfBServerEntCAL SoftwareAssurance Government OLP 1License NoLevel DvcCAL 1 Licencia por Dispositivo | G148: Und | H148: Und | I148: Producto | J148: 113076 | K148: UT Soft-IG | L148: 7AH-00421
A149: 60 | B149: NO | C149: Región Todas | D149: Categoría 2 | E149: Comunicaciones Unificadas SfB Server | F149: SfBServerEntCAL SoftwareAssurance Government OLP 1License NoLevel UsrCAL 1 Licencia por Usuario | G149: Und | H149: Und | I149: Producto | J149: 144965 | K149: Controles Empresariales LTDA | L149: 7AH-00422
A150: 60 | B150: NO | C150: Región Todas | D150: Categoría 2 | E150: Comunicaciones Unificadas SfB Server | F150: SfBServerEntCAL SoftwareAssurance Government OLP 1License NoLevel UsrCAL 1 Licencia por Usuario | G150: Und | H150: Und | I150: Producto | J150: 151838 | K150: Unión temporal Software y Servicios Eficientes | L150: 7AH-00422
A151: 60 | B151: NO | C151: Región Todas | D151: Categoría 2 | E151: Comunicaciones Unificadas SfB Server | F151: SfBServerEntCAL SoftwareAssurance Government OLP 1License NoLevel UsrCAL 1 Licencia por Usuario | G151: Und | H151: Und | I151: Producto | J151: 146281 | K151: UT Soft-IG | L151: 7AH-00422
A152: 61 | B152: NO | C152: Región Todas | D152: Categoría 2 | E152: Comunicaciones Unificadas SfB Server | F152: SfBServerPlusCAL 2015 Government OLP 1License NoLevel DvcCAL 1 Licencia por Dispositivo | G152: Und | H152: Und | I152: Producto | J152: 252381 | K152: Controles Empresariales LTDA | L152: YEG-01503
A153: 61 | B153: NO | C153: Región Todas | D153: Categoría 2 | E153: Comunicaciones Unificadas SfB Server | F153: SfBServerPlusCAL 2015 Government OLP 1License NoLevel DvcCAL 1 Licencia por Dispositivo | G153: Und | H153: Und | I153: Producto | J153: 232423 | K153: Unión temporal Software y Servicios Eficientes | L153: YEG-01503
A154: 61 | B154: NO | C154: Región Todas | D154: Categoría 2 | E154: Comunicaciones Unificadas SfB Server | F154: SfBServerPlusCAL 2015 Government OLP 1License NoLevel DvcCAL 1 Licencia por Dispositivo | G154: Und | H154: Und | I154: Producto | J154: 225372 | K154: UT Soft-IG | L154: YEG-01503
A155: 62 | B155: NO | C155: Región Todas | D155: Categoría 2 | E155: Comunicaciones Unificadas SfB Server | F155: SfBServerPlusCAL 2015 Government OLP 1License NoLevel UsrCAL 1 Licencia por Usuario | G155: Und | H155: Und | I155: Producto | J155: 290367 | K155: Controles Empresariales LTDA | L155: YEG-01504
A156: 62 | B156: NO | C156: Región Todas | D156: Categoría 2 | E156: Comunicaciones Unificadas SfB Server | F156: SfBServerPlusCAL 2015 Government OLP 1License NoLevel UsrCAL 1 Licencia por Usuario | G156: Und | H156: Und | I156: Producto | J156: 300939 | K156: Unión temporal Software y Servicios Eficientes | L156: YEG-01504
A157: 62 | B157: NO | C157: Región Todas | D157: Categoría 2 | E157: Comunicaciones Unificadas SfB Server | F157: SfBServerPlusCAL 2015 Government OLP 1License NoLevel UsrCAL 1 Licencia por Usuario | G157: Und | H157: Und | I157: Producto | J157: 293006 | K157: UT Soft-IG | L157: YEG-01504
A158: 63 | B158: NO | C158: Región Todas | D158: Categoría 2 | E158: Comunicaciones Unificadas SfB Server | F158: SfBServerPlusCAL License/SoftwareAssurancePack Government OLP 1License NoLevel DvcCAL 1 Licencia por Dispositivo | G158: Und | H158: Und | I158: Producto | J158: 379006 | K158: Controles Empresariales LTDA | L158: YEG-00360
A159: 63 | B159: NO | C159: Región Todas | D159: Categoría 2 | E159: Comunicaciones Unificadas SfB Server | F159: SfBServerPlusCAL License/SoftwareAssurancePack Government OLP 1License NoLevel DvcCAL 1 Licencia por Dispositivo | G159: Und | H159: Und | I159: Producto | J159: 351056 | K159: Unión temporal Software y Servicios Eficientes | L159: YEG-00360
A160: 63 | B160: NO | C160: Región Todas | D160: Categoría 2 | E160: Comunicaciones Unificadas SfB Server | F160: SfBServerPlusCAL License/SoftwareAssurancePack Government OLP 1License NoLevel DvcCAL 1 Licencia por Dispositivo | G160: Und | H160: Und | I160: Producto | J160: 338450 | K160: UT Soft-IG | L160: YEG-00360
A161: 64 | B161: NO | C161: Región Todas | D161: Categoría 2 | E161: Comunicaciones Unificadas SfB Server | F161: SfBServerPlusCAL License/SoftwareAssurancePack Government OLP 1License NoLevel UsrCAL 1 Licencia por Usuario | G161: Und | H161: Und | I161: Producto | J161: 435333 | K161: Controles Empresariales LTDA | L161: YEG-00371
A162: 64 | B162: NO | C162: Región Todas | D162: Categoría 2 | E162: Comunicaciones Unificadas SfB Server | F162: SfBServerPlusCAL License/SoftwareAssurancePack Government OLP 1License NoLevel UsrCAL 1 Licencia por Usuario | G162: Und | H162: Und | I162: Producto | J162: 451409 | K162: Unión temporal Software y Servicios Eficientes | L162: YEG-00371
A163: 64 | B163: NO | C163: Región Todas | D163: Categoría 2 | E163: Comunicaciones Unificadas SfB Server | F163: SfBServerPlusCAL License/SoftwareAssurancePack Government OLP 1License NoLevel UsrCAL 1 Licencia por Usuario | G163: Und | H163: Und | I163: Producto | J163: 439287 | K163: UT Soft-IG | L163: YEG-00371
A164: 65 | B164: NO | C164: Región Todas | D164: Categoría 2 | E164: Comunicaciones Unificadas SfB Server | F164: SfBServerPlusCAL SoftwareAssurance Government OLP 1License NoLevel DvcCAL 1 Licencia por Dispositivo | G164: Und | H164: Und | I164: Producto | J164: 126627 | K164: Controles Empresariales LTDA | L164: YEG-00372
A165: 65 | B165: NO | C165: Región Todas | D165: Categoría 2 | E165: Comunicaciones Unificadas SfB Server | F165: SfBServerPlusCAL SoftwareAssurance Government OLP 1License NoLevel DvcCAL 1 Licencia por Dispositivo | G165: Und | H165: Und | I165: Producto | J165: 118632 | K165: Unión temporal Software y Servicios Eficientes | L165: YEG-00372
A166: 65 | B166: NO | C166: Región Todas | D166: Categoría 2 | E166: Comunicaciones Unificadas SfB Server | F166: SfBServerPlusCAL SoftwareAssurance Government OLP 1License NoLevel DvcCAL 1 Licencia por Dispositivo | G166: Und | H166: Und | I166: Producto | J166: 113076 | K166: UT Soft-IG | L166: YEG-00372
A167: 66 | B167: NO | C167: Región Todas | D167: Categoría 2 | E167: Comunicaciones Unificadas SfB Server | F167: SfBServerPlusCAL SoftwareAssurance Government OLP 1License NoLevel UsrCAL 1 Licencia por Usuario | G167: Und | H167: Und | I167: Producto | J167: 144965 | K167: Controles Empresariales LTDA | L167: YEG-00373
A168: 66 | B168: NO | C168: Región Todas | D168: Categoría 2 | E168: Comunicaciones Unificadas SfB Server | F168: SfBServerPlusCAL SoftwareAssurance Government OLP 1License NoLevel UsrCAL 1 Licencia por Usuario | G168: Und | H168: Und | I168: Producto | J168: 155942 | K168: Unión temporal Software y Servicios Eficientes | L168: YEG-00373
A169: 66 | B169: NO | C169: Región Todas | D169: Categoría 2 | E169: Comunicaciones Unificadas SfB Server | F169: SfBServerPlusCAL SoftwareAssurance Government OLP 1License NoLevel UsrCAL 1 Licencia por Usuario | G169: Und | H169: Und | I169: Producto | J169: 146281 | K169: UT Soft-IG | L169: YEG-00373
A170: 67 | B170: NO | C170: Región Todas | D170: Categoría 2 | E170: Comunicaciones Unificadas SfB Server | F170: SfBServerStdCAL 2015 Government OLP 1License NoLevel DvcCAL 1 Licencia por Dispositivo | G170: Und | H170: Und | I170: Producto | J170: 73356 | K170: Controles Empresariales LTDA | L170: 6ZH-00677
A171: 67 | B171: NO | C171: Región Todas | D171: Categoría 2 | E171: Comunicaciones Unificadas SfB Server | F171: SfBServerStdCAL 2015 Government OLP 1License NoLevel DvcCAL 1 Licencia por Dispositivo | G171: Und | H171: Und | I171: Producto | J171: 67790 | K171: Unión temporal Software y Servicios Eficientes | L171: 6ZH-00677
A172: 67 | B172: NO | C172: Región Todas | D172: Categoría 2 | E172: Comunicaciones Unificadas SfB Server | F172: SfBServerStdCAL 2015 Government OLP 1License NoLevel DvcCAL 1 Licencia por Dispositivo | G172: Und | H172: Und | I172: Producto | J172: 65505 | K172: UT Soft-IG | L172: 6ZH-00677
A173: 68 | B173: NO | C173: Región Todas | D173: Categoría 2 | E173: Comunicaciones Unificadas SfB Server | F173: SfBServerStdCAL 2015 Government OLP 1License NoLevel UsrCAL 1 Licencia por Usuario | G173: Und | H173: Und | I173: Producto | J173: 84271 | K173: Controles Empresariales LTDA | L173: 6ZH-00678
A174: 68 | B174: NO | C174: Región Todas | D174: Categoría 2 | E174: Comunicaciones Unificadas SfB Server | F174: SfBServerStdCAL 2015 Government OLP 1License NoLevel UsrCAL 1 Licencia por Usuario | G174: Und | H174: Und | I174: Producto | J174: 87546 | K174: Unión temporal Software y Servicios Eficientes | L174: 6ZH-00678
A175: 68 | B175: NO | C175: Región Todas | D175: Categoría 2 | E175: Comunicaciones Unificadas SfB Server | F175: SfBServerStdCAL 2015 Government OLP 1License NoLevel UsrCAL 1 Licencia por Usuario | G175: Und | H175: Und | I175: Producto | J175: 85037 | K175: UT Soft-IG | L175: 6ZH-00678
A176: 69 | B176: NO | C176: Región Todas | D176: Categoría 2 | E176: Comunicaciones Unificadas SfB Server | F176: SfBServerStdCAL License/SoftwareAssurancePack Government OLP 1License NoLevel DvcCAL 1 Licencia por Dispositivo | G176: Und | H176: Und | I176: Producto | J176: 110035 | K176: Controles Empresariales LTDA | L176: 6ZH-00350
A177: 69 | B177: NO | C177: Región Todas | D177: Categoría 2 | E177: Comunicaciones Unificadas SfB Server | F177: SfBServerStdCAL License/SoftwareAssurancePack Government OLP 1License NoLevel DvcCAL 1 Licencia por Dispositivo | G177: Und | H177: Und | I177: Producto | J177: 100475 | K177: Unión temporal Software y Servicios Eficientes | L177: 6ZH-00350
A178: 69 | B178: NO | C178: Región Todas | D178: Categoría 2 | E178: Comunicaciones Unificadas SfB Server | F178: SfBServerStdCAL License/SoftwareAssurancePack Government OLP 1License NoLevel DvcCAL 1 Licencia por Dispositivo | G178: Und | H178: Und | I178: Producto | J178: 98259 | K178: UT Soft-IG | L178: 6ZH-00350
A179: 70 | B179: NO | C179: Región Todas | D179: Categoría 2 | E179: Comunicaciones Unificadas SfB Server | F179: SfBServerStdCAL License/SoftwareAssurancePack Government OLP 1License NoLevel UsrCAL 1 Licencia por Usuario | G179: Und | H179: Und | I179: Producto | J179: 126189 | K179: Controles Empresariales LTDA | L179: 6ZH-00371
A180: 70 | B180: NO | C180: Región Todas | D180: Categoría 2 | E180: Comunicaciones Unificadas SfB Server | F180: SfBServerStdCAL License/SoftwareAssurancePack Government OLP 1License NoLevel UsrCAL 1 Licencia por Usuario | G180: Und | H180: Und | I180: Producto | J180: 129952 | K180: Unión temporal Software y Servicios Eficientes | L180: 6ZH-00371
A181: 70 | B181: NO | C181: Región Todas | D181: Categoría 2 | E181: Comunicaciones Unificadas SfB Server | F181: SfBServerStdCAL License/SoftwareAssurancePack Government OLP 1License NoLevel UsrCAL 1 Licencia por Usuario | G181: Und | H181: Und | I181: Producto | J181: 127337 | K181: UT Soft-IG | L181: 6ZH-00371
A182: 71 | B182: NO | C182: Región Todas | D182: Categoría 2 | E182: Comunicaciones Unificadas SfB Server | F182: SfBServerStdCAL SoftwareAssurance Government OLP 1License NoLevel DvcCAL 1 Licencia por Dispositivo | G182: Und | H182: Und | I182: Producto | J182: 36678 | K182: Controles Empresariales LTDA | L182: 6ZH-00372
A183: 71 | B183: NO | C183: Región Todas | D183: Categoría 2 | E183: Comunicaciones Unificadas SfB Server | F183: SfBServerStdCAL SoftwareAssurance Government OLP 1License NoLevel DvcCAL 1 Licencia por Dispositivo | G183: Und | H183: Und | I183: Producto | J183: 33895 | K183: Unión temporal Software y Servicios Eficientes | L183: 6ZH-00372
A184: 71 | B184: NO | C184: Región Todas | D184: Categoría 2 | E184: Comunicaciones Unificadas SfB Server | F184: SfBServerStdCAL SoftwareAssurance Government OLP 1License NoLevel DvcCAL 1 Licencia por Dispositivo | G184: Und | H184: Und | I184: Producto | J184: 32753 | K184: UT Soft-IG | L184: 6ZH-00372
A185: 72 | B185: NO | C185: Región Todas | D185: Categoría 2 | E185: Comunicaciones Unificadas SfB Server | F185: SfBServerStdCAL SoftwareAssurance Government OLP 1License NoLevel UsrCAL 1 Licencia por Usuario | G185: Und | H185: Und | I185: Producto | J185: 41917 | K185: Controles Empresariales LTDA | L185: 6ZH-00373
A186: 72 | B186: NO | C186: Región Todas | D186: Categoría 2 | E186: Comunicaciones Unificadas SfB Server | F186: SfBServerStdCAL SoftwareAssurance Government OLP 1License NoLevel UsrCAL 1 Licencia por Usuario | G186: Und | H186: Und | I186: Producto | J186: 43772 | K186: Unión temporal Software y Servicios Eficientes | L186: 6ZH-00373
A187: 72 | B187: NO | C187: Región Todas | D187: Categoría 2 | E187: Comunicaciones Unificadas SfB Server | F187: SfBServerStdCAL SoftwareAssurance Government OLP 1License NoLevel UsrCAL 1 Licencia por Usuario | G187: Und | H187: Und | I187: Producto | J187: 42298 | K187: UT Soft-IG | L187: 6ZH-00373
A188: 73 | B188: NO | C188: Región Todas | D188: Categoría 2 | E188: CoreCAL Suite | F188: CoreCALClientAccessLicense License/SoftwareAssurancePack Government OLP 1License NoLevel DvcCAL Región 1 a 4 Una sola vez 1 Licencia por Dispositivo 1 Licencia por Dispositivo | G188: Und | H188: Und | I188: Producto | J188: 767619 | K188: Controles Empresariales LTDA | L188: W06-00622
A189: 73 | B189: NO | C189: Región Todas | D189: Categoría 2 | E189: CoreCAL Suite | F189: CoreCALClientAccessLicense License/SoftwareAssurancePack Government OLP 1License NoLevel DvcCAL Región 1 a 4 Una sola vez 1 Licencia por Dispositivo 1 Licencia por Dispositivo | G189: Und | H189: Und | I189: Producto | J189: 743524 | K189: Unión temporal Software y Servicios Eficientes | L189: W06-00622
A190: 73 | B190: NO | C190: Región Todas | D190: Categoría 2 | E190: CoreCAL Suite | F190: CoreCALClientAccessLicense License/SoftwareAssurancePack Government OLP 1License NoLevel DvcCAL Región 1 a 4 Una sola vez 1 Licencia por Dispositivo 1 Licencia por Dispositivo | G190: Und | H190: Und | I190: Producto | J190: 685480 | K190: UT Soft-IG | L190: W06-00622
A191: 74 | B191: NO | C191: Región Todas | D191: Categoría 2 | E191: CoreCAL Suite | F191: CoreCALClientAccessLicense License/SoftwareAssurancePack Government OLP 1License NoLevel UsrCAL Región 1 a 4 Una sola vez 1 Licencia por Usuario 1 Licencia por Usuario | G191: Und | H191: Und | I191: Producto | J191: 882455 | K191: Controles Empresariales LTDA | L191: W06-00623
A192: 74 | B192: NO | C192: Región Todas | D192: Categoría 2 | E192: CoreCAL Suite | F192: CoreCALClientAccessLicense License/SoftwareAssurancePack Government OLP 1License NoLevel UsrCAL Región 1 a 4 Una sola vez 1 Licencia por Usuario 1 Licencia por Usuario | G192: Und | H192: Und | I192: Producto | J192: 967109 | K192: Unión temporal Software y Servicios Eficientes | L192: W06-00623
A193: 74 | B193: NO | C193: Región Todas | D193: Categoría 2 | E193: CoreCAL Suite | F193: CoreCALClientAccessLicense License/SoftwareAssurancePack Government OLP 1License NoLevel UsrCAL Región 1 a 4 Una sola vez 1 Licencia por Usuario 1 Licencia por Usuario | G193: Und | H193: Und | I193: Producto | J193: 890471 | K193: UT Soft-IG | L193: W06-00623
A194: 75 | B194: NO | C194: Región Todas | D194: Categoría 2 | E194: CoreCAL Suite | F194: CoreCALClientAccessLicense SoftwareAssurance Government OLP 1License NoLevel DvcCAL Región 1 a 4 Una sola vez 1 Licencia por Dispositivo 1 Licencia por Dispositivo | G194: Und | H194: Und | I194: Producto | J194: 269845 | K194: Controles Empresariales LTDA | L194: W06-00621
A195: 75 | B195: NO | C195: Región Todas | D195: Categoría 2 | E195: CoreCAL Suite | F195: CoreCALClientAccessLicense SoftwareAssurance Government OLP 1License NoLevel DvcCAL Región 1 a 4 Una sola vez 1 Licencia por Dispositivo 1 Licencia por Dispositivo | G195: Und | H195: Und | I195: Producto | J195: 261476 | K195: Unión temporal Software y Servicios Eficientes | L195: W06-00621
A196: 75 | B196: NO | C196: Región Todas | D196: Categoría 2 | E196: CoreCAL Suite | F196: CoreCALClientAccessLicense SoftwareAssurance Government OLP 1License NoLevel DvcCAL Región 1 a 4 Una sola vez 1 Licencia por Dispositivo 1 Licencia por Dispositivo | G196: Und | H196: Und | I196: Producto | J196: 240970 | K196: UT Soft-IG | L196: W06-00621
A197: 76 | B197: NO | C197: Región Todas | D197: Categoría 2 | E197: CoreCAL Suite | F197: CoreCALClientAccessLicense SoftwareAssurance Government OLP 1License NoLevel UsrCAL Región 1 a 4 Una sola vez 1 Licencia por Usuario 1 Licencia por Usuario | G197: Und | H197: Und | I197: Producto | J197: 310017 | K197: Controles Empresariales LTDA | L197: W06-00624
A198: 76 | B198: NO | C198: Región Todas | D198: Categoría 2 | E198: CoreCAL Suite | F198: CoreCALClientAccessLicense SoftwareAssurance Government OLP 1License NoLevel UsrCAL Región 1 a 4 Una sola vez 1 Licencia por Usuario 1 Licencia por Usuario | G198: Und | H198: Und | I198: Producto | J198: 388836 | K198: Unión temporal Software y Servicios Eficientes | L198: W06-00624
A199: 76 | B199: NO | C199: Región Todas | D199: Categoría 2 | E199: CoreCAL Suite | F199: CoreCALClientAccessLicense SoftwareAssurance Government OLP 1License NoLevel UsrCAL Región 1 a 4 Una sola vez 1 Licencia por Usuario 1 Licencia por Usuario | G199: Und | H199: Und | I199: Producto | J199: 357127 | K199: UT Soft-IG | L199: W06-00624
A200: 113 | B200: SI | C200: Región Todas | D200: Categoría 2 | E200: Exchange Online | F200: EOAforExchangeOnlineOpen ShrdSvr SubscriptionVL Government OLP 1License NoLevel Addon Qualified Annual Región 1 a 4 Pago Anual Anticipado 1 Licencia por usuario 1 Licencia por usuario | G200: Und | H200: Und | I200: Producto | J200: 84708 | K200: Controles Empresariales LTDA | L200: 5A9-00006
... 602 more rows

Sheet Categoría 3 (hidden)
A1: Código matriz | B1: Excento de IVA | C1: Region | D1: Categoria | E1: Familia | F1: Nombre Producto | G1: Unidad de Medida | H1: Unidad de servicio | I1: Tipo | J1: Precio | K1: Proveedor | L1: Número de parte | N1: Menor valor | O1: proveedor 1 | P1: proveedor 2 | Q1: proveedor 3 | R1: proveedor 4 | S1: proveedor 5
A2: 1 | B2: NO | C2: Región Todas | D2: Categoría 3 | E2: Azure | F2: Microsoft®AzureRightsMgmtSvcPremOpen ShrdSvr SubscriptionVL Government OLP 1License NoLevel Qualified Annual 1 Licencia por Usuario | G2: Und | H2: Und | I2: Producto | J2: 53742 | K2: Controles Empresariales LTDA | L2: aaa-00000 | N2: =MIN(IF(O2=0,1000000000000,O2),IF(P2=0,1000000000000,P2),IF(Q2=0,1000000000000,Q2),IF(R2=0,1000000000000,R2),IF(S2=0,1000000000000,S2)) -> 30922 | O2: =SUM(IF($M:$M=1,$J:$J,0)) -> 34627 | P2: =SUM(IF($M:$M=2,$J:$J,0)) -> 30922 | Q2: =SUM(IF($M:$M=3,$J:$J,0)) -> 0 | R2: =SUM(IF($M:$M=4,$J:$J,0)) -> 0 | S2: =SUM(IF($M:$M=5,$J:$J,0)) -> 0
A3: 2 | B3: NO | C3: Región Todas | D3: Categoría 3 | E3: Azure | F3: Microsoft®AzureSubscriptionServicesOpen ShrdSvr SubscriptionVL Government OLP 1License NoLevel Qualified Annual 1 Licencia por Unidad de Cómputo | G3: Und | H3: Und | I3: Producto | J3: 255744 | K3: Controles Empresariales LTDA | L3: aaa-00000
A4: 343 | B4: NO | C4: Región Todas | D4: Categoría 3 | E4: Azure | F4: Microsoft®AzureActiveDirectoryBasicOpen ShrdSvr SubscriptionVL Government OLP 1License NoLevel Qualified Annual 1 Licencia por Unidad de Cómputo | G4: Und | H4: Und | I4: Producto | J4: 31158 | K4: Controles Empresariales LTDA | L4: aaa-00000
A5: 344 | B5: NO | C5: Región Todas | D5: Categoría 3 | E5: Azure | F5: Microsoft®AzureActiveDirectoryPremiumOpen ShrdSvr SubscriptionVL Government OLP 1License NoLevel Qualified Annual 1 Licencia por Unidad de Cómputo | G5: Und | H5: Und | I5: Producto | J5: 187789 | K5: Controles Empresariales LTDA | L5: aaa-00000
A6: 3 | B6: NO | C6: Región Todas | D6: Categoría 3 | E6: Bases de Datos SQL Server | F6: Microsoft®SQLCAL 2014 Government OLP 1License NoLevel DvcCAL 1 Licencia por Dispositivo | G6: Und | H6: Und | I6: Producto | J6: 405432 | K6: Controles Empresariales LTDA | L6: aaa-00000
A7: 4 | B7: NO | C7: Región Todas | D7: Categoría 3 | E7: Bases de Datos SQL Server | F7: Microsoft®SQLCAL 2014 Government OLP 1License NoLevel UsrCAL 1 Licencia por Usuario | G7: Und | H7: Und | I7: Producto | J7: 405432 | K7: Controles Empresariales LTDA | L7: aaa-00000
A8: 5 | B8: NO | C8: Región Todas | D8: Categoría 3 | E8: Bases de Datos SQL Server | F8: Microsoft®SQLCAL License/SoftwareAssurancePack Government OLP 1License NoLevel DvcCAL 1 Licencia por Dispositivo | G8: Und | H8: Und | I8: Producto | J8: 608148 | K8: Controles Empresariales LTDA | L8: aaa-00000
A9: 6 | B9: NO | C9: Región Todas | D9: Categoría 3 | E9: Bases de Datos SQL Server | F9: Microsoft®SQLCAL License/SoftwareAssurancePack Government OLP 1License NoLevel UsrCAL 1 Licencia por Usuario | G9: Und | H9: Und | I9: Producto | J9: 608148 | K9: Controles Empresariales LTDA | L9: aaa-00000
A10: 7 | B10: NO | C10: Región Todas | D10: Categoría 3 | E10: Bases de Datos SQL Server | F10: Microsoft®SQLCAL SoftwareAssurance Government OLP 1License NoLevel DvcCAL 1 Licencia por Dispositivo | G10: Und | H10: Und | I10: Producto | J10: 202716 | K10: Controles Empresariales LTDA | L10: aaa-00000
A11: 8 | B11: NO | C11: Región Todas | D11: Categoría 3 | E11: Bases de Datos SQL Server | F11: Microsoft®SQLCAL SoftwareAssurance Government OLP 1License NoLevel UsrCAL 1 Licencia por Usuario | G11: Und | H11: Und | I11: Producto | J11: 202716 | K11: Controles Empresariales LTDA | L11: aaa-00000
A12: 9 | B12: NO | C12: Región Todas | D12: Categoría 3 | E12: Bases de Datos SQL Server | F12: Microsoft®SQLServerEnterpriseEdition SoftwareAssurance Government OLP 1License NoLevel 1 Licencia por Servidor | G12: Und | H12: Und | I12: Producto | J12: 8340878 | K12: Controles Empresariales LTDA | L12: aaa-00000
A13: 10 | B13: NO | C13: Región Todas | D13: Categoría 3 | E13: Bases de Datos SQL Server | F13: Microsoft®SQLSvrEnterpriseCore 2014 Government OLP 2Licenses NoLevel CoreLic Qualified 1 Licencia por cada 2 Cores | G13: Und | H13: Und | I13: Producto | J13: 26694447 | K13: Controles Empresariales LTDA | L13: aaa-00000
A14: 11 | B14: NO | C14: Región Todas | D14: Categoría 3 | E14: Bases de Datos SQL Server | F14: Microsoft®SQLSvrEnterpriseCore License/SoftwareAssurancePack Government OLP 2Licenses NoLevel CoreLic Qualified 1 Licencia por cada 2 Cores | G14: Und | H14: Und | I14: Producto | J14: 40041856 | K14: Controles Empresariales LTDA | L14: aaa-00000
A15: 12 | B15: NO | C15: Región Todas | D15: Categoría 3 | E15: Bases de Datos SQL Server | F15: Microsoft®SQLSvrEnterpriseCore SoftwareAssurance Government OLP 2Licenses NoLevel CoreLic Qualified 1 Licencia por cada 2 Cores | G15: Und | H15: Und | I15: Producto | J15: 13347409 | K15: Controles Empresariales LTDA | L15: aaa-00000
A16: 13 | B16: NO | C16: Región Todas | D16: Categoría 3 | E16: Bases de Datos SQL Server | F16: Microsoft®SQLServerStandardEdition 2014 Government OLP 1License NoLevel 1 Licencia por Servidor | G16: Und | H16: Und | I16: Producto | J16: 1742203 | K16: Controles Empresariales LTDA | L16: aaa-00000
A17: 14 | B17: NO | C17: Región Todas | D17: Categoría 3 | E17: Bases de Datos SQL Server | F17: Microsoft®SQLServerStandardEdition License/SoftwareAssurancePack Government OLP 1License NoLevel 1 Licencia por Servidor | G17: Und | H17: Und | I17: Producto | J17: 2612919 | K17: Controles Empresariales LTDA | L17: aaa-00000
A18: 15 | B18: NO | C18: Región Todas | D18: Categoría 3 | E18: Bases de Datos SQL Server | F18: Microsoft®SQLServerStandardEdition SoftwareAssurance Government OLP 1License NoLevel 1 Licencia por Servidor | G18: Und | H18: Und | I18: Producto | J18: 870745 | K18: Controles Empresariales LTDA | L18: aaa-00000
A19: 16 | B19: NO | C19: Región Todas | D19: Categoría 3 | E19: Bases de Datos SQL Server | F19: Microsoft®SQLSvrStandardCore 2014 Government OLP 2Licenses NoLevel CoreLic Qualified 1 Licencia por cada 2 Cores | G19: Und | H19: Und | I19: Producto | J19: 6961544 | K19: Controles Empresariales LTDA | L19: aaa-00000
A20: 17 | B20: NO | C20: Región Todas | D20: Categoría 3 | E20: Bases de Datos SQL Server | F20: Microsoft®SQLSvrStandardCore License/SoftwareAssurancePack Government OLP 2Licenses NoLevel CoreLic Qualified 1 Licencia por cada 2 Cores | G20: Und | H20: Und | I20: Producto | J20: 10442316 | K20: Controles Empresariales LTDA | L20: aaa-00000
A21: 18 | B21: NO | C21: Región Todas | D21: Categoría 3 | E21: Bases de Datos SQL Server | F21: Microsoft®SQLSvrStandardCore SoftwareAssurance Government OLP 2Licenses NoLevel CoreLic Qualified 1 Licencia por cada 2 Cores | G21: Und | H21: Und | I21: Producto | J21: 3480772 | K21: Controles Empresariales LTDA | L21: aaa-00000
A22: 29 | B22: NO | C22: Región Todas | D22: Categoría 3 | E22: Colaboración SharePoint Server | F22: Microsoft®SharePointEnterpriseCAL 2013 Government OLP 1License NoLevel DvcCAL 1 Licencia por Dispositivo | G22: Und | H22: Und | I22: Producto | J22: 160873 | K22: Controles Empresariales LTDA | L22: aaa-00000
A23: 30 | B23: NO | C23: Región Todas | D23: Categoría 3 | E23: Colaboración SharePoint Server | F23: Microsoft®SharePointEnterpriseCAL 2013 Government OLP 1License NoLevel UsrCAL 1 Licencia por Usuario | G23: Und | H23: Und | I23: Producto | J23: 185040 | K23: Controles Empresariales LTDA | L23: aaa-00000
A24: 31 | B24: NO | C24: Región Todas | D24: Categoría 3 | E24: Colaboración SharePoint Server | F24: Microsoft®SharePointEnterpriseCAL License/SoftwareAssurancePack Government OLP 1License NoLevel DvcCAL 1 Licencia por Dispositivo | G24: Und | H24: Und | I24: Producto | J24: 241670 | K24: Controles Empresariales LTDA | L24: aaa-00000
A25: 32 | B25: NO | C25: Región Todas | D25: Categoría 3 | E25: Colaboración SharePoint Server | F25: Microsoft®SharePointEnterpriseCAL License/SoftwareAssurancePack Government OLP 1License NoLevel UsrCAL 1 Licencia por Usuario | G25: Und | H25: Und | I25: Producto | J25: 277380 | K25: Controles Empresariales LTDA | L25: aaa-00000
A26: 33 | B26: NO | C26: Región Todas | D26: Categoría 3 | E26: Colaboración SharePoint Server | F26: Microsoft®SharePointEnterpriseCAL SoftwareAssurance Government OLP 1License NoLevel DvcCAL 1 Licencia por Dispositivo | G26: Und | H26: Und | I26: Producto | J26: 80797 | K26: Controles Empresariales LTDA | L26: aaa-00000
A27: 34 | B27: NO | C27: Región Todas | D27: Categoría 3 | E27: Colaboración SharePoint Server | F27: Microsoft®SharePointEnterpriseCAL SoftwareAssurance Government OLP 1License NoLevel UsrCAL 1 Licencia por Usuario | G27: Und | H27: Und | I27: Producto | J27: 92340 | K27: Controles Empresariales LTDA | L27: aaa-00000
A28: 35 | B28: NO | C28: Región Todas | D28: Categoría 3 | E28: Colaboración SharePoint Server | F28: Microsoft®SharePointStandardCAL 2013 Government OLP 1License NoLevel DvcCAL 1 Licencia por Dispositivo | G28: Und | H28: Und | I28: Producto | J28: 182876 | K28: Controles Empresariales LTDA | L28: aaa-00000
A29: 36 | B29: NO | C29: Región Todas | D29: Categoría 3 | E29: Colaboración SharePoint Server | F29: Microsoft®SharePointStandardCAL 2013 Government OLP 1License NoLevel UsrCAL 1 Licencia por Usuario | G29: Und | H29: Und | I29: Producto | J29: 210289 | K29: Controles Empresariales LTDA | L29: aaa-00000
A30: 37 | B30: NO | C30: Región Todas | D30: Categoría 3 | E30: Colaboración SharePoint Server | F30: Microsoft®SharePointStandardCAL License/SoftwareAssurancePack Government OLP 1License NoLevel DvcCAL 1 Licencia por Dispositivo | G30: Und | H30: Und | I30: Producto | J30: 274494 | K30: Controles Empresariales LTDA | L30: aaa-00000
A31: 38 | B31: NO | C31: Región Todas | D31: Categoría 3 | E31: Colaboración SharePoint Server | F31: Microsoft®SharePointStandardCAL License/SoftwareAssurancePack Government OLP 1License NoLevel UsrCAL 1 Licencia por Usuario | G31: Und | H31: Und | I31: Producto | J31: 315614 | K31: Controles Empresariales LTDA | L31: aaa-00000
A32: 39 | B32: NO | C32: Región Todas | D32: Categoría 3 | E32: Colaboración SharePoint Server | F32: Microsoft®SharePointStandardCAL SoftwareAssurance Government OLP 1License NoLevel DvcCAL 1 Licencia por Dispositivo | G32: Und | H32: Und | I32: Producto | J32: 91618 | K32: Controles Empresariales LTDA | L32: aaa-00000
A33: 40 | B33: NO | C33: Región Todas | D33: Categoría 3 | E33: Colaboración SharePoint Server | F33: Microsoft®SharePointStandardCAL SoftwareAssurance Government OLP 1License NoLevel UsrCAL 1 Licencia por Usuario | G33: Und | H33: Und | I33: Producto | J33: 105325 | K33: Controles Empresariales LTDA | L33: aaa-00000
A34: 41 | B34: NO | C34: Región Todas | D34: Categoría 3 | E34: Colaboración SharePoint Server | F34: Microsoft®SharePointServer 2013 Government OLP 1License NoLevel 1 Licencia por Servidor | G34: Und | H34: Und | I34: Producto | J34: 13199520 | K34: Controles Empresariales LTDA | L34: aaa-00000
A35: 42 | B35: NO | C35: Región Todas | D35: Categoría 3 | E35: Colaboración SharePoint Server | F35: Microsoft®SharePointServer License/SoftwareAssurancePack Government OLP 1License NoLevel 1 Licencia por Servidor | G35: Und | H35: Und | I35: Producto | J35: 19799641 | K35: Controles Empresariales LTDA | L35: aaa-00000
A36: 43 | B36: NO | C36: Región Todas | D36: Categoría 3 | E36: Colaboración SharePoint Server | F36: Microsoft®SharePointServer SoftwareAssurance Government OLP 1License NoLevel 1 Licencia por Servidor | G36: Und | H36: Und | I36: Producto | J36: 6600121 | K36: Controles Empresariales LTDA | L36: aaa-00000
A37: 44 | B37: NO | C37: Región Todas | D37: Categoría 3 | E37: Comunicaciones Unificadas Lync Server | F37: Microsoft®Lync 2013 Government OLP 1License NoLevel 1 Licencia por Dispositivo | G37: Und | H37: Und | I37: Producto | J37: 59876 | K37: Controles Empresariales LTDA | L37: aaa-00000
A38: 45 | B38: NO | C38: Región Todas | D38: Categoría 3 | E38: Comunicaciones Unificadas Lync Server | F38: Microsoft®Lync License/SoftwareAssurancePack Government OLP 1License NoLevel 1 Licencia por Dispositivo | G38: Und | H38: Und | I38: Producto | J38: 94504 | K38: Controles Empresariales LTDA | L38: aaa-00000
A39: 46 | B39: NO | C39: Región Todas | D39: Categoría 3 | E39: Comunicaciones Unificadas Lync Server | F39: Microsoft®Lync SoftwareAssurance Government OLP 1License NoLevel 1 Licencia por Dispositivo | G39: Und | H39: Und | I39: Producto | J39: 34627 | K39: Controles Empresariales LTDA | L39: aaa-00000
A40: 47 | B40: NO | C40: Región Todas | D40: Categoría 3 | E40: Comunicaciones Unificadas Lync Server | F40: Microsoft®LyncMac 2011 Government OLP 1License NoLevel 1 Licencia por Dispositivo | G40: Und | H40: Und | I40: Producto | J40: 59876 | K40: Controles Empresariales LTDA | L40: aaa-00000
A41: 48 | B41: NO | C41: Región Todas | D41: Categoría 3 | E41: Comunicaciones Unificadas Lync Server | F41: Microsoft®LyncMac License/SoftwareAssurancePack Government OLP 1License NoLevel 1 Licencia por Dispositivo | G41: Und | H41: Und | I41: Producto | J41: 94504 | K41: Controles Empresariales LTDA | L41: aaa-00000
A42: 49 | B42: NO | C42: Región Todas | D42: Categoría 3 | E42: Comunicaciones Unificadas Lync Server | F42: Microsoft®LyncMac SoftwareAssurance Government OLP 1License NoLevel 1 Licencia por Dispositivo | G42: Und | H42: Und | I42: Producto | J42: 34627 | K42: Controles Empresariales LTDA | L42: aaa-00000
A43: 50 | B43: NO | C43: Región Todas | D43: Categoría 3 | E43: Comunicaciones Unificadas Lync Server | F43: Microsoft®LyncOnlinePlan2Open ShrdSvr SubscriptionVL Government OLP 1License NoLevel Qualified Annual 1 Licencia por usuario | G43: Und | H43: Und | I43: Producto | J43: 138149 | K43: Controles Empresariales LTDA | L43: aaa-00000
A44: 51 | B44: NO | C44: Región Todas | D44: Categoría 3 | E44: Comunicaciones Unificadas Lync Server | F44: Microsoft®LyncOnlinePlan1Open ShrdSvr SubscriptionVL Government OLP 1License NoLevel Qualified Annual 1 Licencia por usuario | G44: Und | H44: Und | I44: Producto | J44: 46170 | K44: Controles Empresariales LTDA | L44: aaa-00000
A45: 52 | B45: NO | C45: Región Todas | D45: Categoría 3 | E45: Comunicaciones Unificadas Lync Server | F45: Microsoft®LyncServer 2013 Government OLP 1License NoLevel 1 Licencia por Servidor | G45: Und | H45: Und | I45: Producto | J45: 7078411 | K45: Controles Empresariales LTDA | L45: aaa-00000
A46: 53 | B46: NO | C46: Región Todas | D46: Categoría 3 | E46: Comunicaciones Unificadas Lync Server | F46: Microsoft®LyncServer License/SoftwareAssurancePack Government OLP 1License NoLevel 1 Licencia por Servidor | G46: Und | H46: Und | I46: Producto | J46: 10617617 | K46: Controles Empresariales LTDA | L46: aaa-00000
A47: 54 | B47: NO | C47: Región Todas | D47: Categoría 3 | E47: Comunicaciones Unificadas Lync Server | F47: Microsoft®LyncServer SoftwareAssurance Government OLP 1License NoLevel 1 Licencia por Servidor | G47: Und | H47: Und | I47: Producto | J47: 3539206 | K47: Controles Empresariales LTDA | L47: aaa-00000
A48: 55 | B48: NO | C48: Región Todas | D48: Categoría 3 | E48: Comunicaciones Unificadas Lync Server | F48: Microsoft®LyncServerEntCAL 2013 Government OLP 1License NoLevel DvcCAL 1 Licencia por Dispositivo | G48: Und | H48: Und | I48: Producto | J48: 208486 | K48: Controles Empresariales LTDA | L48: aaa-00000
A49: 56 | B49: NO | C49: Región Todas | D49: Categoría 3 | E49: Comunicaciones Unificadas Lync Server | F49: Microsoft®LyncServerEntCAL 2013 Government OLP 1License NoLevel UsrCAL 1 Licencia por Usuario | G49: Und | H49: Und | I49: Producto | J49: 239867 | K49: Controles Empresariales LTDA | L49: aaa-00000
A50: 57 | B50: NO | C50: Región Todas | D50: Categoría 3 | E50: Comunicaciones Unificadas Lync Server | F50: Microsoft®LyncServerEntCAL License/SoftwareAssurancePack Government OLP 1License NoLevel DvcCAL 1 Licencia por Dispositivo | G50: Und | H50: Und | I50: Producto | J50: 313089 | K50: Controles Empresariales LTDA | L50: aaa-00000
A51: 58 | B51: NO | C51: Región Todas | D51: Categoría 3 | E51: Comunicaciones Unificadas Lync Server | F51: Microsoft®LyncServerEntCAL License/SoftwareAssurancePack Government OLP 1License NoLevel UsrCAL 1 Licencia por Usuario | G51: Und | H51: Und | I51: Producto | J51: 359620 | K51: Controles Empresariales LTDA | L51: aaa-00000
A52: 59 | B52: NO | C52: Región Todas | D52: Categoría 3 | E52: Comunicaciones Unificadas Lync Server | F52: Microsoft®LyncServerEntCAL SoftwareAssurance Government OLP 1License NoLevel DvcCAL 1 Licencia por Dispositivo | G52: Und | H52: Und | I52: Producto | J52: 104604 | K52: Controles Empresariales LTDA | L52: aaa-00000
A53: 60 | B53: NO | C53: Región Todas | D53: Categoría 3 | E53: Comunicaciones Unificadas Lync Server | F53: Microsoft®LyncServerEntCAL SoftwareAssurance Government OLP 1License NoLevel UsrCAL 1 Licencia por Usuario | G53: Und | H53: Und | I53: Producto | J53: 119753 | K53: Controles Empresariales LTDA | L53: aaa-00000
A54: 61 | B54: NO | C54: Región Todas | D54: Categoría 3 | E54: Comunicaciones Unificadas Lync Server | F54: Microsoft®LyncServerPlusCAL 2013 Government OLP 1License NoLevel DvcCAL 1 Licencia por Dispositivo | G54: Und | H54: Und | I54: Producto | J54: 208486 | K54: Controles Empresariales LTDA | L54: aaa-00000
A55: 62 | B55: NO | C55: Región Todas | D55: Categoría 3 | E55: Comunicaciones Unificadas Lync Server | F55: Microsoft®LyncServerPlusCAL 2013 Government OLP 1License NoLevel UsrCAL 1 Licencia por Usuario | G55: Und | H55: Und | I55: Producto | J55: 239867 | K55: Controles Empresariales LTDA | L55: aaa-00000
A56: 63 | B56: NO | C56: Región Todas | D56: Categoría 3 | E56: Comunicaciones Unificadas Lync Server | F56: Microsoft®LyncServerPlusCAL License/SoftwareAssurancePack Government OLP 1License NoLevel DvcCAL 1 Licencia por Dispositivo | G56: Und | H56: Und | I56: Producto | J56: 313089 | K56: Controles Empresariales LTDA | L56: aaa-00000
A57: 64 | B57: NO | C57: Región Todas | D57: Categoría 3 | E57: Comunicaciones Unificadas Lync Server | F57: Microsoft®LyncServerPlusCAL License/SoftwareAssurancePack Government OLP 1License NoLevel UsrCAL 1 Licencia por Usuario | G57: Und | H57: Und | I57: Producto | J57: 359620 | K57: Controles Empresariales LTDA | L57: aaa-00000
A58: 65 | B58: NO | C58: Región Todas | D58: Categoría 3 | E58: Comunicaciones Unificadas Lync Server | F58: Microsoft®LyncServerPlusCAL SoftwareAssurance Government OLP 1License NoLevel DvcCAL 1 Licencia por Dispositivo | G58: Und | H58: Und | I58: Producto | J58: 104604 | K58: Controles Empresariales LTDA | L58: aaa-00000
A59: 66 | B59: NO | C59: Región Todas | D59: Categoría 3 | E59: Comunicaciones Unificadas Lync Server | F59: Microsoft®LyncServerPlusCAL SoftwareAssurance Government OLP 1License NoLevel UsrCAL 1 Licencia por Usuario | G59: Und | H59: Und | I59: Producto | J59: 119753 | K59: Controles Empresariales LTDA | L59: aaa-00000
A60: 67 | B60: NO | C60: Región Todas | D60: Categoría 3 | E60: Comunicaciones Unificadas Lync Server | F60: Microsoft®LyncServerStdCAL 2013 Government OLP 1License NoLevel DvcCAL 1 Licencia por Dispositivo | G60: Und | H60: Und | I60: Producto | J60: 60598 | K60: Controles Empresariales LTDA | L60: aaa-00000
A61: 68 | B61: NO | C61: Región Todas | D61: Categoría 3 | E61: Comunicaciones Unificadas Lync Server | F61: Microsoft®LyncServerStdCAL 2013 Government OLP 1License NoLevel UsrCAL 1 Licencia por Usuario | G61: Und | H61: Und | I61: Producto | J61: 69615 | K61: Controles Empresariales LTDA | L61: aaa-00000
A62: 69 | B62: NO | C62: Región Todas | D62: Categoría 3 | E62: Comunicaciones Unificadas Lync Server | F62: Microsoft®LyncServerStdCAL License/SoftwareAssurancePack Government OLP 1License NoLevel DvcCAL 1 Licencia por Dispositivo | G62: Und | H62: Und | I62: Producto | J62: 90897 | K62: Controles Empresariales LTDA | L62: aaa-00000
A63: 70 | B63: NO | C63: Región Todas | D63: Categoría 3 | E63: Comunicaciones Unificadas Lync Server | F63: Microsoft®LyncServerStdCAL License/SoftwareAssurancePack Government OLP 1License NoLevel UsrCAL 1 Licencia por Usuario | G63: Und | H63: Und | I63: Producto | J63: 104243 | K63: Controles Empresariales LTDA | L63: aaa-00000
A64: 71 | B64: NO | C64: Región Todas | D64: Categoría 3 | E64: Comunicaciones Unificadas Lync Server | F64: Microsoft®LyncServerStdCAL SoftwareAssurance Government OLP 1License NoLevel DvcCAL 1 Licencia por Dispositivo | G64: Und | H64: Und | I64: Producto | J64: 30299 | K64: Controles Empresariales LTDA | L64: aaa-00000
A65: 72 | B65: NO | C65: Región Todas | D65: Categoría 3 | E65: Comunicaciones Unificadas Lync Server | F65: Microsoft®LyncServerStdCAL SoftwareAssurance Government OLP 1License NoLevel UsrCAL 1 Licencia por Usuario | G65: Und | H65: Und | I65: Producto | J65: 34627 | K65: Controles Empresariales LTDA | L65: aaa-00000
A66: 73 | B66: NO | C66: Región Todas | D66: Categoría 3 | E66: CoreCAL Suite | F66: Microsoft®CoreCALClientAccessLicense License/SoftwareAssurancePack Government OLP 1License NoLevel DvcCAL 1 Licencia por Dispositivo | G66: Und | H66: Und | I66: Producto | J66: 634114 | K66: Controles Empresariales LTDA | L66: aaa-00000
A67: 74 | B67: NO | C67: Región Todas | D67: Categoría 3 | E67: CoreCAL Suite | F67: Microsoft®CoreCALClientAccessLicense License/SoftwareAssurancePack Government OLP 1License NoLevel UsrCAL 1 Licencia por Usuario | G67: Und | H67: Und | I67: Producto | J67: 728978 | K67: Controles Empresariales LTDA | L67: aaa-00000
A68: 75 | B68: NO | C68: Región Todas | D68: Categoría 3 | E68: CoreCAL Suite | F68: Microsoft®CoreCALClientAccessLicense SoftwareAssurance Government OLP 1License NoLevel DvcCAL 1 Licencia por Dispositivo | G68: Und | H68: Und | I68: Producto | J68: 222914 | K68: Controles Empresariales LTDA | L68: aaa-00000
A69: 76 | B69: NO | C69: Región Todas | D69: Categoría 3 | E69: CoreCAL Suite | F69: Microsoft®CoreCALClientAccessLicense SoftwareAssurance Government OLP 1License NoLevel UsrCAL 1 Licencia por Usuario | G69: Und | H69: Und | I69: Producto | J69: 256098 | K69: Controles Empresariales LTDA | L69: aaa-00000
A70: 113 | B70: NO | C70: Región Todas | D70: Categoría 3 | E70: Exchange Online | F70: Microsoft®EOAforExchangeOnlineOpen ShrdSvr SubscriptionVL Government OLP 1License NoLevel Addon Qualified Annual 1 Licencia por usuario | G70: Und | H70: Und | I70: Producto | J70: 69976 | K70: Controles Empresariales LTDA | L70: aaa-00000
A71: 114 | B71: NO | C71: Región Todas | D71: Categoría 3 | E71: Exchange Online | F71: Microsoft®EOAforExchangeServerOpen ShrdSvr SubscriptionVL Government OLP 1License NoLevel Qualified Annual 1 Licencia por usuario | G71: Und | H71: Und | I71: Producto | J71: 69976 | K71: Controles Empresariales LTDA | L71: aaa-00000
A72: 115 | B72: NO | C72: Región Todas | D72: Categoría 3 | E72: Exchange Online | F72: Microsoft®ExchangeOnlinePlan1Open ShrdSvr SubscriptionVL Government OLP 1License NoLevel Qualified Annual 1 Licencia por usuario | G72: Und | H72: Und | I72: Producto | J72: 107489 | K72: Controles Empresariales LTDA | L72: aaa-00000
A73: 116 | B73: NO | C73: Región Todas | D73: Categoría 3 | E73: Exchange Online | F73: Microsoft®ExchangeOnlinePlan2Open ShrdSvr SubscriptionVL Government OLP 1License NoLevel Qualified Annual 1 Licencia por usuario | G73: Und | H73: Und | I73: Producto | J73: 214618 | K73: Controles Empresariales LTDA | L73: aaa-00000
A74: 117 | B74: NO | C74: Región Todas | D74: Categoría 3 | E74: Exchange Online | F74: Microsoft®ExchangeOnlineProtectionOpen ShrdSvr SubscriptionVL Government OLP 1License NoLevel Qualified Annual 1 Licencia por usuario | G74: Und | H74: Und | I74: Producto | J74: 27053 | K74: Controles Empresariales LTDA | L74: aaa-00000
A75: 121 | B75: NO | C75: Región Todas | D75: Categoría 3 | E75: Gestión de Identidades FIM | F75: Microsoft®ForefrontIdentityManagerCAL 2010R2 Government OLP 1License NoLevel UsrCAL 1 Licencia por Usuario | G75: Und | H75: Und | I75: Producto | J75: 34627 | K75: Controles Empresariales LTDA | L75: aaa-00000 | M75: 1
A76: 122 | B76: NO | C76: Región Todas | D76: Categoría 3 | E76: Gestión de Identidades FIM | F76: Microsoft®ForefrontIdentityManagerCAL License/SoftwareAssurancePack Government OLP 1License NoLevel UsrCAL 1 Licencia por Usuario | G76: Und | H76: Und | I76: Producto | J76: 51941 | K76: Controles Empresariales LTDA | L76: aaa-00000
A77: 123 | B77: NO | C77: Región Todas | D77: Categoría 3 | E77: Gestión de Identidades FIM | F77: Microsoft®ForefrontIdentityManagerCAL SoftwareAssurance Government OLP 1License NoLevel UsrCAL 1 Licencia por Usuario | G77: Und | H77: Und | I77: Producto | J77: 17314 | K77: Controles Empresariales LTDA | L77: aaa-00000
A78: 124 | B78: NO | C78: Región Todas | D78: Categoría 3 | E78: Gestión de Identidades FIM | F78: Microsoft®FrfrntIdentityMgrExtConn 2010R2 Government OLP 1License NoLevel Qualified 1 Licencia por Servidor | G78: Und | H78: Und | I78: Producto | J78: 35541026 | K78: Controles Empresariales LTDA | L78: aaa-00000
A79: 125 | B79: NO | C79: Región Todas | D79: Categoría 3 | E79: Gestión de Identidades FIM | F79: Microsoft®FrfrntIdentityMgrExtConn License/SoftwareAssurancePack Government OLP 1License NoLevel Qualified 1 Licencia por Servidor | G79: Und | H79: Und | I79: Producto | J79: 53311359 | K79: Controles Empresariales LTDA | L79: aaa-00000
A80: 126 | B80: NO | C80: Región Todas | D80: Categoría 3 | E80: Gestión de Identidades FIM | F80: Microsoft®FrfrntIdentityMgrExtConn SoftwareAssurance Government OLP 1License NoLevel Qualified 1 Licencia por Servidor | G80: Und | H80: Und | I80: Producto | J80: 17770333 | K80: Controles Empresariales LTDA | L80: aaa-00000
A81: 127 | B81: NO | C81: Región Todas | D81: Categoría 3 | E81: Gestión de Servidores System Center | F81: Microsoft®CoreInfrastructureSvrSteDatactr License/SoftwareAssurancePack Government OLP 1License NoLevel 2Proc Qualified 1 Licencia por cada 2 Procesadores | G81: Und | H81: Und | I81: Producto | J81: 23686563 | K81: Controles Empresariales LTDA | L81: aaa-00000
A82: 128 | B82: NO | C82: Región Todas | D82: Categoría 3 | E82: Gestión de Servidores System Center | F82: Microsoft®CoreInfrastructureSvrSteDatactr License/SoftwareAssurancePack Government OLP 1License NoLevel W/OSYSCTRSERVERLICENSE 2Proc Qualified 1 Licencia por cada 2 Procesadores | G82: Und | H82: Und | I82: Producto | J82: 19250653 | K82: Controles Empresariales LTDA | L82: aaa-00000
A83: 129 | B83: NO | C83: Región Todas | D83: Categoría 3 | E83: Gestión de Servidores System Center | F83: Microsoft®CoreInfrastructureSvrSteDatactr License/SoftwareAssurancePack Government OLP 1License NoLevel W/OWinServerLicense 2Proc Qualified 1 Licencia por cada 2 Procesadores | G83: Und | H83: Und | I83: Producto | J83: 12330950 | K83: Controles Empresariales LTDA | L83: aaa-00000
A84: 130 | B84: NO | C84: Región Todas | D84: Categoría 3 | E84: Gestión de Servidores System Center | F84: Microsoft®CoreInfrastructureSvrSteDatactr SoftwareAssurance Government OLP 1License NoLevel 2Proc Qualified 1 Licencia por cada 2 Procesadores | G84: Und | H84: Und | I84: Producto | J84: 7895040 | K84: Controles Empresariales LTDA | L84: aaa-00000
A85: 131 | B85: NO | C85: Región Todas | D85: Categoría 3 | E85: Gestión de Servidores System Center | F85: Microsoft®CoreInfrastructureSvrSteStd License/SoftwareAssurancePack Government OLP 1License NoLevel 2Proc Qualified 1 Licencia por cada 2 Procesadores | G85: Und | H85: Und | I85: Producto | J85: 4882459 | K85: Controles Empresariales LTDA | L85: aaa-00000
A86: 132 | B86: NO | C86: Región Todas | D86: Categoría 3 | E86: Gestión de Servidores System Center | F86: Microsoft®CoreInfrastructureSvrSteStd License/SoftwareAssurancePack Government OLP 1License NoLevel W/OSYSCTRSERVERLICENSE 2Proc Qualified 1 Licencia por cada 2 Procesadores | G86: Und | H86: Und | I86: Producto | J86: 3254973 | K86: Controles Empresariales LTDA | L86: aaa-00000
A87: 133 | B87: NO | C87: Región Todas | D87: Categoría 3 | E87: Gestión de Servidores System Center | F87: Microsoft®CoreInfrastructureSvrSteStd License/SoftwareAssurancePack Government OLP 1License NoLevel W/OWinServerLicense 2Proc Qualified 1 Licencia por cada 2 Procesadores | G87: Und | H87: Und | I87: Producto | J87: 3254973 | K87: Controles Empresariales LTDA | L87: aaa-00000
A88: 134 | B88: NO | C88: Región Todas | D88: Categoría 3 | E88: Gestión de Servidores System Center | F88: Microsoft®CoreInfrastructureSvrSteStd SoftwareAssurance Government OLP 1License NoLevel 2Proc Qualified 1 Licencia por cada 2 Procesadores | G88: Und | H88: Und | I88: Producto | J88: 1627486 | K88: Controles Empresariales LTDA | L88: aaa-00000
A89: 165 | B89: NO | C89: Región Todas | D89: Categoría 3 | E89: Mensajería Exchange Server | F89: Microsoft®ExchangeEnterpriseCAL 2013 Government OLP 1License NoLevel DvcCAL WithoutServices 1 Licencia por Dispositivo | G89: Und | H89: Und | I89: Producto | J89: 80436 | K89: Controles Empresariales LTDA | L89: aaa-00000
A90: 166 | B90: NO | C90: Región Todas | D90: Categoría 3 | E90: Mensajería Exchange Server | F90: Microsoft®ExchangeEnterpriseCAL 2013 Government OLP 1License NoLevel UsrCAL WithoutServices 1 Licencia por Usuario | G90: Und | H90: Und | I90: Producto | J90: 92700 | K90: Controles Empresariales LTDA | L90: aaa-00000
A91: 167 | B91: NO | C91: Región Todas | D91: Categoría 3 | E91: Mensajería Exchange Server | F91: Microsoft®ExchangeEnterpriseCAL License/SoftwareAssurancePack Government OLP 1License NoLevel DvcCAL WithoutServices 1 Licencia por Dispositivo | G91: Und | H91: Und | I91: Producto | J91: 120835 | K91: Controles Empresariales LTDA | L91: aaa-00000
A92: 168 | B92: NO | C92: Región Todas | D92: Categoría 3 | E92: Mensajería Exchange Server | F92: Microsoft®ExchangeEnterpriseCAL License/SoftwareAssurancePack Government OLP 1License NoLevel UsrCAL WithoutServices 1 Licencia por Usuario | G92: Und | H92: Und | I92: Producto | J92: 138870 | K92: Controles Empresariales LTDA | L92: aaa-00000
A93: 169 | B93: NO | C93: Región Todas | D93: Categoría 3 | E93: Mensajería Exchange Server | F93: Microsoft®ExchangeEnterpriseCAL SoftwareAssurance Government OLP 1License NoLevel DvcCAL WithoutServices 1 Licencia por Dispositivo | G93: Und | H93: Und | I93: Producto | J93: 40399 | K93: Controles Empresariales LTDA | L93: aaa-00000
A94: 170 | B94: NO | C94: Región Todas | D94: Categoría 3 | E94: Mensajería Exchange Server | F94: Microsoft®ExchangeEnterpriseCAL SoftwareAssurance Government OLP 1License NoLevel UsrCAL WithoutServices 1 Licencia por Usuario | G94: Und | H94: Und | I94: Producto | J94: 46170 | K94: Controles Empresariales LTDA | L94: aaa-00000
A95: 171 | B95: NO | C95: Región Todas | D95: Categoría 3 | E95: Mensajería Exchange Server | F95: Microsoft®ExchangeStandardCAL 2013 Government OLP 1License NoLevel DvcCAL 1 Licencia por Dispositivo | G95: Und | H95: Und | I95: Producto | J95: 130935 | K95: Controles Empresariales LTDA | L95: aaa-00000
A96: 172 | B96: NO | C96: Región Todas | D96: Categoría 3 | E96: Mensajería Exchange Server | F96: Microsoft®ExchangeStandardCAL 2013 Government OLP 1License NoLevel UsrCAL 1 Licencia por Usuario | G96: Und | H96: Und | I96: Producto | J96: 150773 | K96: Controles Empresariales LTDA | L96: aaa-00000
A97: 173 | B97: NO | C97: Región Todas | D97: Categoría 3 | E97: Mensajería Exchange Server | F97: Microsoft®ExchangeStandardCAL License/SoftwareAssurancePack Government OLP 1License NoLevel DvcCAL 1 Licencia por Dispositivo | G97: Und | H97: Und | I97: Producto | J97: 196582 | K97: Controles Empresariales LTDA | L97: aaa-00000
A98: 174 | B98: NO | C98: Región Todas | D98: Categoría 3 | E98: Mensajería Exchange Server | F98: Microsoft®ExchangeStandardCAL License/SoftwareAssurancePack Government OLP 1License NoLevel UsrCAL 1 Licencia por Usuario | G98: Und | H98: Und | I98: Producto | J98: 225799 | K98: Controles Empresariales LTDA | L98: aaa-00000
A99: 175 | B99: NO | C99: Región Todas | D99: Categoría 3 | E99: Mensajería Exchange Server | F99: Microsoft®ExchangeStandardCAL SoftwareAssurance Government OLP 1License NoLevel DvcCAL 1 Licencia por Dispositivo | G99: Und | H99: Und | I99: Producto | J99: 65648 | K99: Controles Empresariales LTDA | L99: aaa-00000
A100: 176 | B100: NO | C100: Región Todas | D100: Categoría 3 | E100: Mensajería Exchange Server | F100: Microsoft®ExchangeStandardCAL SoftwareAssurance Government OLP 1License NoLevel UsrCAL 1 Licencia por Usuario | G100: Und | H100: Und | I100: Producto | J100: 75026 | K100: Controles Empresariales LTDA | L100: aaa-00000
A101: 177 | B101: NO | C101: Región Todas | D101: Categoría 3 | E101: Mensajería Exchange Server | F101: Microsoft®ExchangeServerEnterprise 2013 Government OLP 1License NoLevel 1 Licencia por Servidor | G101: Und | H101: Und | I101: Producto | J101: 7865102 | K101: Controles Empresariales LTDA | L101: aaa-00000
A102: 178 | B102: NO | C102: Región Todas | D102: Categoría 3 | E102: Mensajería Exchange Server | F102: Microsoft®ExchangeServerEnterprise License/SoftwareAssurancePack Government OLP 1License NoLevel 1 Licencia por Servidor | G102: Und | H102: Und | I102: Producto | J102: 11797472 | K102: Controles Empresariales LTDA | L102: aaa-00000
A103: 179 | B103: NO | C103: Región Todas | D103: Categoría 3 | E103: Mensajería Exchange Server | F103: Microsoft®ExchangeServerEnterprise SoftwareAssurance Government OLP 1License NoLevel 1 Licencia por Servidor | G103: Und | H103: Und | I103: Producto | J103: 3932371 | K103: Controles Empresariales LTDA | L103: aaa-00000
A104: 180 | B104: NO | C104: Región Todas | D104: Categoría 3 | E104: Mensajería Exchange Server | F104: Microsoft®ExchangeServerStandard 2013 Government OLP 1License NoLevel 1 Licencia por Servidor | G104: Und | H104: Und | I104: Producto | J104: 1373913 | K104: Controles Empresariales LTDA | L104: aaa-00000
A105: 181 | B105: NO | C105: Región Todas | D105: Categoría 3 | E105: Mensajería Exchange Server | F105: Microsoft®ExchangeServerStandard License/SoftwareAssurancePack Government OLP 1License NoLevel 1 Licencia por Servidor | G105: Und | H105: Und | I105: Producto | J105: 2060689 | K105: Controles Empresariales LTDA | L105: aaa-00000
A106: 182 | B106: NO | C106: Región Todas | D106: Categoría 3 | E106: Mensajería Exchange Server | F106: Microsoft®ExchangeServerStandard SoftwareAssurance Government OLP 1License NoLevel 1 Licencia por Servidor | G106: Und | H106: Und | I106: Producto | J106: 686776 | K106: Controles Empresariales LTDA | L106: aaa-00000
A107: 183 | B107: NO | C107: Región Todas | D107: Categoría 3 | E107: Mobile Device Management Intune | F107: Microsoft®IntuneOpen ShrdSvr SubscriptionVL Government OLP 1License NoLevel Qualified Annual 1 Licencia por Dispositivo | G107: Und | H107: Und | I107: Producto | J107: 161955 | K107: Controles Empresariales LTDA | L107: aaa-00000
A108: 184 | B108: NO | C108: Región Todas | D108: Categoría 3 | E108: Mobile Device Management Intune | F108: Microsoft®IntuneOPENAdd-On ShrdSvr SubscriptionVL Government OLP 1License NoLevel Qualified Annual 1 Licencia por Dispositivo | G108: Und | H108: Und | I108: Producto | J108: 107489 | K108: Controles Empresariales LTDA | L108: aaa-00000
A109: 206 | B109: NO | C109: Región Todas | D109: Categoría 3 | E109: Project Management Project Server | F109: Microsoft®Project 2013 Government OLP 1License NoLevel 1 Licencia por Dispositivo | G109: Und | H109: Und | I109: Producto | J109: 1093648 | K109: Controles Empresariales LTDA | L109: aaa-00000
A110: 207 | B110: NO | C110: Región Todas | D110: Categoría 3 | E110: Project Management Project Server | F110: Microsoft®Project License/SoftwareAssurancePack Government OLP 1License NoLevel 1 Licencia por Dispositivo | G110: Und | H110: Und | I110: Producto | J110: 1727761 | K110: Controles Empresariales LTDA | L110: aaa-00000
A111: 208 | B111: NO | C111: Región Todas | D111: Categoría 3 | E111: Project Management Project Server | F111: Microsoft®Project SoftwareAssurance Government OLP 1License NoLevel 1 Licencia por Dispositivo | G111: Und | H111: Und | I111: Producto | J111: 634114 | K111: Controles Empresariales LTDA | L111: aaa-00000
A112: 209 | B112: NO | C112: Región Todas | D112: Categoría 3 | E112: Project Management Project Server | F112: Microsoft®ProjectLiteOpen ShrdSvr SubscriptionVL Government OLP 1License NoLevel Qualified Annual 1 Licencia por usuario | G112: Und | H112: Und | I112: Producto | J112: 187926 | K112: Controles Empresariales LTDA | L112: aaa-00000
A113: 210 | B113: NO | C113: Región Todas | D113: Categoría 3 | E113: Project Management Project Server | F113: Microsoft®ProjectProfessional 2013 Government OLP 1License NoLevel w/1ProjectSvrCAL 1 Licencia por Dispositivo | G113: Und | H113: Und | I113: Producto | J113: 1822626 | K113: Controles Empresariales LTDA | L113: aaa-00000
A114: 211 | B114: NO | C114: Región Todas | D114: Categoría 3 | E114: Project Management Project Server | F114: Microsoft®ProjectProfessional License/SoftwareAssurancePack Government OLP 1License NoLevel w/1ProjectSvrCAL 1 Licencia por Dispositivo | G114: Und | H114: Und | I114: Producto | J114: 2879482 | K114: Controles Empresariales LTDA | L114: aaa-00000
A115: 212 | B115: NO | C115: Región Todas | D115: Categoría 3 | E115: Project Management Project Server | F115: Microsoft®ProjectProfessional SoftwareAssurance Government OLP 1License NoLevel w/1ProjectSvrCAL 1 Licencia por Dispositivo | G115: Und | H115: Und | I115: Producto | J115: 1056856 | K115: Controles Empresariales LTDA | L115: aaa-00000
A116: 213 | B116: NO | C116: Región Todas | D116: Categoría 3 | E116: Project Management Project Server | F116: Microsoft®ProjectServer 2013 Government OLP 1License NoLevel 1 Licencia por Servidor | G116: Und | H116: Und | I116: Producto | J116: 10999600 | K116: Controles Empresariales LTDA | L116: aaa-00000
A117: 214 | B117: NO | C117: Región Todas | D117: Categoría 3 | E117: Project Management Project Server | F117: Microsoft®ProjectServer License/SoftwareAssurancePack Government OLP 1License NoLevel 1 Licencia por Servidor | G117: Und | H117: Und | I117: Producto | J117: 16499580 | K117: Controles Empresariales LTDA | L117: aaa-00000
A118: 215 | B118: NO | C118: Región Todas | D118: Categoría 3 | E118: Project Management Project Server | F118: Microsoft®ProjectServer SoftwareAssurance Government OLP 1License NoLevel 1 Licencia por Servidor | G118: Und | H118: Und | I118: Producto | J118: 5499980 | K118: Controles Empresariales LTDA | L118: aaa-00000
A119: 216 | B119: NO | C119: Región Todas | D119: Categoría 3 | E119: Project Management Project Server | F119: Microsoft®ProjectServerCAL 2013 Government OLP 1License NoLevel DvcCAL 1 Licencia por Dispositivo | G119: Und | H119: Und | I119: Producto | J119: 327517 | K119: Controles Empresariales LTDA | L119: aaa-00000
A120: 217 | B120: NO | C120: Región Todas | D120: Categoría 3 | E120: Project Management Project Server | F120: Microsoft®ProjectServerCAL 2013 Government OLP 1License NoLevel UsrCAL 1 Licencia por Usuario | G120: Und | H120: Und | I120: Producto | J120: 376573 | K120: Controles Empresariales LTDA | L120: aaa-00000
A121: 218 | B121: NO | C121: Región Todas | D121: Categoría 3 | E121: Project Management Project Server | F121: Microsoft®ProjectServerCAL License/SoftwareAssurancePack Government OLP 1License NoLevel DvcCAL 1 Licencia por Dispositivo | G121: Und | H121: Und | I121: Producto | J121: 491276 | K121: Controles Empresariales LTDA | L121: aaa-00000
A122: 219 | B122: NO | C122: Región Todas | D122: Categoría 3 | E122: Project Management Project Server | F122: Microsoft®ProjectServerCAL License/SoftwareAssurancePack Government OLP 1License NoLevel UsrCAL 1 Licencia por Usuario | G122: Und | H122: Und | I122: Producto | J122: 564859 | K122: Controles Empresariales LTDA | L122: aaa-00000
A123: 220 | B123: NO | C123: Región Todas | D123: Categoría 3 | E123: Project Management Project Server | F123: Microsoft®ProjectServerCAL SoftwareAssurance Government OLP 1License NoLevel DvcCAL 1 Licencia por Dispositivo | G123: Und | H123: Und | I123: Producto | J123: 163759 | K123: Controles Empresariales LTDA | L123: aaa-00000
A124: 221 | B124: NO | C124: Región Todas | D124: Categoría 3 | E124: Project Management Project Server | F124: Microsoft®ProjectServerCAL SoftwareAssurance Government OLP 1License NoLevel UsrCAL 1 Licencia por Usuario | G124: Und | H124: Und | I124: Producto | J124: 188286 | K124: Controles Empresariales LTDA | L124: aaa-00000
A125: 222 | B125: NO | C125: Región Todas | D125: Categoría 3 | E125: Project Online | F125: Microsoft®ProjectOnlineOpen ShrdSvr SubscriptionVL Government OLP 1License NoLevel Qualified Annual 1 Licencia por usuario | G125: Und | H125: Und | I125: Producto | J125: 871455 | K125: Controles Empresariales LTDA | L125: aaa-00000
A126: 223 | B126: NO | C126: Región Todas | D126: Categoría 3 | E126: Project Online | F126: Microsoft®ProjectProforOffice365Open ShrdSvr SubscriptionVL Government OLP 1License NoLevel Qualified Annual 1 Licencia por usuario | G126: Und | H126: Und | I126: Producto | J126: 660084 | K126: Controles Empresariales LTDA | L126: aaa-00000
A127: 224 | B127: NO | C127: Región Todas | D127: Categoría 3 | E127: Project Online | F127: Microsoft®ProjOnlinewProjProO365Open ShrdSvr SubscriptionVL Government OLP 1License NoLevel Qualified Annual 1 Licencia por usuario | G127: Und | H127: Und | I127: Producto | J127: 1531179 | K127: Controles Empresariales LTDA | L127: aaa-00000
A128: 235 | B128: NO | C128: Región Todas | D128: Categoría 3 | E128: Right Management Services | F128: Microsoft®WindowsRightsMgtServicesCAL 2012 Government OLP 1License NoLevel DvcCAL 1 Licencia por Dispositivo | G128: Und | H128: Und | I128: Producto | J128: 70698 | K128: Controles Empresariales LTDA | L128: aaa-00000
A129: 236 | B129: NO | C129: Región Todas | D129: Categoría 3 | E129: Right Management Services | F129: Microsoft®WindowsRightsMgtServicesCAL 2012 Government OLP 1License NoLevel UsrCAL 1 Licencia por Usuario | G129: Und | H129: Und | I129: Producto | J129: 81519 | K129: Controles Empresariales LTDA | L129: aaa-00000
A130: 237 | B130: NO | C130: Región Todas | D130: Categoría 3 | E130: Right Management Services | F130: Microsoft®WindowsRightsMgtServicesCAL WinNT License/SoftwareAssurancePack Government OLP 1License NoLevel DvcCAL 1 Licencia por Dispositivo | G130: Und | H130: Und | I130: Producto | J130: 106046 | K130: Controles Empresariales LTDA | L130: aaa-00000
A131: 238 | B131: NO | C131: Región Todas | D131: Categoría 3 | E131: Right Management Services | F131: Microsoft®WindowsRightsMgtServicesCAL WinNT License/SoftwareAssurancePack Government OLP 1License NoLevel UsrCAL 1 Licencia por Usuario | G131: Und | H131: Und | I131: Producto | J131: 121917 | K131: Controles Empresariales LTDA | L131: aaa-00000
A132: 239 | B132: NO | C132: Región Todas | D132: Categoría 3 | E132: Right Management Services | F132: Microsoft®WindowsRightsMgtServicesCAL WinNT SoftwareAssurance Government OLP 1License NoLevel DvcCAL 1 Licencia por Dispositivo | G132: Und | H132: Und | I132: Producto | J132: 35349 | K132: Controles Empresariales LTDA | L132: aaa-00000
A133: 240 | B133: NO | C133: Región Todas | D133: Categoría 3 | E133: Right Management Services | F133: Microsoft®WindowsRightsMgtServicesCAL WinNT SoftwareAssurance Government OLP 1License NoLevel UsrCAL 1 Licencia por Usuario | G133: Und | H133: Und | I133: Producto | J133: 40399 | K133: Controles Empresariales LTDA | L133: aaa-00000
A134: 241 | B134: NO | C134: Región Todas | D134: Categoría 3 | E134: Right Management Services | F134: Microsoft®WindowsRightsMgtServicesExternalConnector 2012 Government OLP 1License NoLevel Qualified 1 Licencia por Servidor | G134: Und | H134: Und | I134: Producto | J134: 35388810 | K134: Controles Empresariales LTDA | L134: aaa-00000
A135: 242 | B135: NO | C135: Región Todas | D135: Categoría 3 | E135: Right Management Services | F135: Microsoft®WindowsRightsMgtServicesExternalConnector WinNT License/SoftwareAssurancePack Government OLP 1License NoLevel Qualified 1 Licencia por Servidor | G135: Und | H135: Und | I135: Producto | J135: 53083395 | K135: Controles Empresariales LTDA | L135: aaa-00000
A136: 243 | B136: NO | C136: Región Todas | D136: Categoría 3 | E136: Right Management Services | F136: Microsoft®WindowsRightsMgtServicesExternalConnector WinNT SoftwareAssurance Government OLP 1License NoLevel Qualified 1 Licencia por Servidor | G136: Und | H136: Und | I136: Producto | J136: 17694585 | K136: Controles Empresariales LTDA | L136: aaa-00000
A137: 244 | B137: NO | C137: Región Todas | D137: Categoría 3 | E137: SharePoint Online | F137: Microsoft®SharePointOnlinePlan1Open ShrdSvr SubscriptionVL Government OLP 1License NoLevel Qualified Annual 1 Licencia por usuario | G137: Und | H137: Und | I137: Producto | J137: 133820 | K137: Controles Empresariales LTDA | L137: aaa-00000
A138: 245 | B138: NO | C138: Región Todas | D138: Categoría 3 | E138: SharePoint Online | F138: Microsoft®SharePointOnlinePlan2Open ShrdSvr SubscriptionVL Government OLP 1License NoLevel Qualified Annual 1 Licencia por usuario | G138: Und | H138: Und | I138: Producto | J138: 214257 | K138: Controles Empresariales LTDA | L138: aaa-00000
A139: 246 | B139: NO | C139: Región Todas | D139: Categoría 3 | E139: Sistema Operativo Windows Server | F139: Microsoft®Windows®ServerCAL 2012 Government OLP 1License NoLevel DvcCAL 1 Licencia por Dispositivo | G139: Und | H139: Und | I139: Producto | J139: 56630 | K139: Controles Empresariales LTDA | L139: aaa-00000
A140: 247 | B140: NO | C140: Región Todas | D140: Categoría 3 | E140: Sistema Operativo Windows Server | F140: Microsoft®Windows®ServerCAL 2012 Government OLP 1License NoLevel UsrCAL 1 Licencia por Usuario | G140: Und | H140: Und | I140: Producto | J140: 65287 | K140: Controles Empresariales LTDA | L140: aaa-00000
A141: 248 | B141: NO | C141: Región Todas | D141: Categoría 3 | E141: Sistema Operativo Windows Server | F141: Microsoft®Windows®ServerCAL License/SoftwareAssurancePack Government OLP 1License NoLevel DvcCAL 1 Licencia por Dispositivo | G141: Und | H141: Und | I141: Producto | J141: 84765 | K141: Controles Empresariales LTDA | L141: aaa-00000
A142: 249 | B142: NO | C142: Región Todas | D142: Categoría 3 | E142: Sistema Operativo Windows Server | F142: Microsoft®Windows®ServerCAL License/SoftwareAssurancePack Government OLP 1License NoLevel UsrCAL 1 Licencia por Usuario | G142: Und | H142: Und | I142: Producto | J142: 97750 | K142: Controles Empresariales LTDA | L142: aaa-00000
A143: 250 | B143: NO | C143: Región Todas | D143: Categoría 3 | E143: Sistema Operativo Windows Server | F143: Microsoft®Windows®ServerCAL SoftwareAssurance Government OLP 1License NoLevel DvcCAL 1 Licencia por Dispositivo | G143: Und | H143: Und | I143: Producto | J143: 28135 | K143: Controles Empresariales LTDA | L143: aaa-00000
A144: 251 | B144: NO | C144: Región Todas | D144: Categoría 3 | E144: Sistema Operativo Windows Server | F144: Microsoft®Windows®ServerCAL SoftwareAssurance Government OLP 1License NoLevel UsrCAL 1 Licencia por Usuario | G144: Und | H144: Und | I144: Producto | J144: 32463 | K144: Controles Empresariales LTDA | L144: aaa-00000
A145: 252 | B145: NO | C145: Región Todas | D145: Categoría 3 | E145: Sistema Operativo Windows Server | F145: Microsoft®Windows®ServerDatacenter 2012R2 Government OLP 1License NoLevel 2Proc Qualified 1 Licencia por cada 2 Procesadores | G145: Und | H145: Und | I145: Producto | J145: 11953295 | K145: Controles Empresariales LTDA | L145: aaa-00000
A146: 253 | B146: NO | C146: Región Todas | D146: Categoría 3 | E146: Sistema Operativo Windows Server | F146: Microsoft®Windows®ServerDatacenter License/SoftwareAssurancePack Government OLP 1License NoLevel 2Proc Qualified 1 Licencia por cada 2 Procesadores | G146: Und | H146: Und | I146: Producto | J146: 17930124 | K146: Controles Empresariales LTDA | L146: aaa-00000
A147: 254 | B147: NO | C147: Región Todas | D147: Categoría 3 | E147: Sistema Operativo Windows Server | F147: Microsoft®Windows®ServerDatacenter SoftwareAssurance Government OLP 1License NoLevel 2Proc Qualified 1 Licencia por cada 2 Procesadores | G147: Und | H147: Und | I147: Producto | J147: 5976828 | K147: Controles Empresariales LTDA | L147: aaa-00000
A148: 255 | B148: NO | C148: Región Todas | D148: Categoría 3 | E148: Sistema Operativo Windows Server | F148: Microsoft®Windows®ServerExternalConnector 2012 Government OLP 1License NoLevel Qualified 1 Licencia por Servidor | G148: Und | H148: Und | I148: Producto | J148: 3920467 | K148: Controles Empresariales LTDA | L148: aaa-00000
A149: 256 | B149: NO | C149: Región Todas | D149: Categoría 3 | E149: Sistema Operativo Windows Server | F149: Microsoft®Windows®ServerExternalConnector License/SoftwareAssurancePack Government OLP 1License NoLevel Qualified 1 Licencia por Servidor | G149: Und | H149: Und | I149: Producto | J149: 5880521 | K149: Controles Empresariales LTDA | L149: aaa-00000
A150: 257 | B150: NO | C150: Región Todas | D150: Categoría 3 | E150: Sistema Operativo Windows Server | F150: Microsoft®Windows®ServerExternalConnector SoftwareAssurance Government OLP 1License NoLevel Qualified 1 Licencia por Servidor | G150: Und | H150: Und | I150: Producto | J150: 1960053 | K150: Controles Empresariales LTDA | L150: aaa-00000
A151: 258 | B151: NO | C151: Región Todas | D151: Categoría 3 | E151: Sistema Operativo Windows Server | F151: Microsoft®Windows®ServerStandard 2012R2 Government OLP 1License NoLevel 2Proc 1 Licencia por cada 2 Procesadores | G151: Und | H151: Und | I151: Producto | J151: 1713333 | K151: Controles Empresariales LTDA | L151: aaa-00000
A152: 259 | B152: NO | C152: Región Todas | D152: Categoría 3 | E152: Sistema Operativo Windows Server | F152: Microsoft®Windows®ServerStandard License/SoftwareAssurancePack Government OLP 1License NoLevel 2Proc 1 Licencia por cada 2 Procesadores | G152: Und | H152: Und | I152: Producto | J152: 2569639 | K152: Controles Empresariales LTDA | L152: aaa-00000
A153: 260 | B153: NO | C153: Región Todas | D153: Categoría 3 | E153: Sistema Operativo Windows Server | F153: Microsoft®Windows®ServerStandard SoftwareAssurance Government OLP 1License NoLevel 2Proc 1 Licencia por cada 2 Procesadores | G153: Und | H153: Und | I153: Producto | J153: 856306 | K153: Controles Empresariales LTDA | L153: aaa-00000
A154: 278 | B154: NO | C154: Región 1 | D154: Categoría 3 | F154: Soporte técnico en sitio - profesional plata | G154: Mes | H154: Und | I154: Servicio | J154: 4451613 | K154: Controles Empresariales LTDA | L154: aaa-00000
A155: 279 | B155: NO | C155: Región 1 | D155: Categoría 3 | F155: Soporte técnico en sitio - Técnico plata | G155: Mes | H155: Und | I155: Servicio | J155: 2150538 | K155: Controles Empresariales LTDA | L155: aaa-00000
A156: 286 | B156: NO | C156: Región 1 | D156: Categoría 3 | F156: Soporte técnico en sitio - profesional oro | G156: Mes | H156: Und | I156: Servicio | J156: 4451613 | K156: Controles Empresariales LTDA | L156: aaa-00000
A157: 287 | B157: NO | C157: Región 1 | D157: Categoría 3 | F157: Soporte técnico en sitio - Técnico oro | G157: Mes | H157: Und | I157: Servicio | J157: 2150538 | K157: Controles Empresariales LTDA | L157: aaa-00000
A158: 294 | B158: NO | C158: Región 1 | D158: Categoría 3 | F158: Soporte técnico proactivo - Oro | G158: Hora | H158: Und | I158: Servicio | J158: 37634 | K158: Controles Empresariales LTDA | L158: aaa-00000
A159: 295 | B159: NO | C159: Región 1 | D159: Categoría 3 | F159: Soporte técnico reactivo - Oro | G159: Hora | H159: Und | I159: Servicio | J159: 37634 | K159: Controles Empresariales LTDA | L159: aaa-00000
A160: 296 | B160: NO | C160: Región 1 | D160: Categoría 3 | F160: Soporte técnico proactivo - Plata | G160: Hora | H160: Und | I160: Servicio | J160: 32258 | K160: Controles Empresariales LTDA | L160: aaa-00000
A161: 297 | B161: NO | C161: Región 1 | D161: Categoría 3 | F161: Soporte técnico reactivo - Plata | G161: Hora | H161: Und | I161: Servicio | J161: 32258 | K161: Controles Empresariales LTDA | L161: aaa-00000
A162: 310 | B162: NO | C162: Región 1 | D162: Categoría 3 | F162: Gerente de cuenta (soporte) | G162: Mes | H162: Und | I162: Servicio | J162: 5913978 | K162: Controles Empresariales LTDA | L162: aaa-00000
A163: 314 | B163: NO | C163: Región 1 | D163: Categoría 3 | F163: Capacitación a usuario final hasta diez (10) personas- Presencial | G163: Hora | H163: Und | I163: Servicio | J163: 38172 | K163: Controles Empresariales LTDA | L163: aaa-00000
A164: 319 | B164: NO | C164: Región 1 | D164: Categoría 3 | F164: Capacitación a usuario técnico o administrador - hasta diez (10) personas- presencial | G164: Hora | H164: Und | I164: Servicio | J164: 65591 | K164: Controles Empresariales LTDA | L164: aaa-00000
A165: 280 | B165: NO | C165: Región 2 | D165: Categoría 3 | F165: Soporte técnico en sitio - profesional plata | G165: Mes | H165: Und | I165: Servicio | J165: 4451613 | K165: Controles Empresariales LTDA | L165: aaa-00000
A166: 281 | B166: NO | C166: Región 2 | D166: Categoría 3 | F166: Soporte técnico en sitio - Técnico plata | G166: Mes | H166: Und | I166: Servicio | J166: 2150538 | K166: Controles Empresariales LTDA | L166: aaa-00000
A167: 288 | B167: NO | C167: Región 2 | D167: Categoría 3 | F167: Soporte técnico en sitio - profesional oro | G167: Mes | H167: Und | I167: Servicio | J167: 4451613 | K167: Controles Empresariales LTDA | L167: aaa-00000
A168: 289 | B168: NO | C168: Región 2 | D168: Categoría 3 | F168: Soporte técnico en sitio - Técnico oro | G168: Mes | H168: Und | I168: Servicio | J168: 2150538 | K168: Controles Empresariales LTDA | L168: aaa-00000
A169: 298 | B169: NO | C169: Región 2 | D169: Categoría 3 | F169: Soporte técnico proactivo - Oro | G169: Hora | H169: Und | I169: Servicio | J169: 47742 | K169: Controles Empresariales LTDA | L169: aaa-00000
A170: 299 | B170: NO | C170: Región 2 | D170: Categoría 3 | F170: Soporte técnico reactivo - Oro | G170: Hora | H170: Und | I170: Servicio | J170: 47742 | K170: Controles Empresariales LTDA | L170: aaa-00000
A171: 300 | B171: NO | C171: Región 2 | D171: Categoría 3 | F171: Soporte técnico proactivo - Plata | G171: Hora | H171: Und | I171: Servicio | J171: 40323 | K171: Controles Empresariales LTDA | L171: aaa-00000
A172: 301 | B172: NO | C172: Región 2 | D172: Categoría 3 | F172: Soporte técnico reactivo - Plata | G172: Hora | H172: Und | I172: Servicio | J172: 40323 | K172: Controles Empresariales LTDA | L172: aaa-00000
A173: 311 | B173: NO | C173: Región 2 | D173: Categoría 3 | F173: Gerente de cuenta (soporte) | G173: Mes | H173: Und | I173: Servicio | J173: 6021505 | K173: Controles Empresariales LTDA | L173: aaa-00000
A174: 315 | B174: NO | C174: Región 2 | D174: Categoría 3 | F174: Capacitación a usuario final hasta diez (10) personas- Presencial | G174: Hora | H174: Und | I174: Servicio | J174: 40323 | K174: Controles Empresariales LTDA | L174: aaa-00000
A175: 320 | B175: NO | C175: Región 2 | D175: Categoría 3 | F175: Capacitación a usuario técnico o administrador - hasta diez (10) personas- presencial | G175: Hora | H175: Und | I175: Servicio | J175: 67742 | K175: Controles Empresariales LTDA | L175: aaa-00000
A176: 282 | B176: NO | C176: Región 3 | D176: Categoría 3 | F176: Soporte técnico en sitio - profesional plata | G176: Mes | H176: Und | I176: Servicio | J176: 4451613 | K176: Controles Empresariales LTDA | L176: aaa-00000
A177: 283 | B177: NO | C177: Región 3 | D177: Categoría 3 | F177: Soporte técnico en sitio - Técnico plata | G177: Mes | H177: Und | I177: Servicio | J177: 2150538 | K177: Controles Empresariales LTDA | L177: aaa-00000
A178: 290 | B178: NO | C178: Región 3 | D178: Categoría 3 | F178: Soporte técnico en sitio - profesional oro | G178: Mes | H178: Und | I178: Servicio | J178: 4451613 | K178: Controles Empresariales LTDA | L178: aaa-00000
A179: 291 | B179: NO | C179: Región 3 | D179: Categoría 3 | F179: Soporte técnico en sitio - Técnico oro | G179: Mes | H179: Und | I179: Servicio | J179: 2150538 | K179: Controles Empresariales LTDA | L179: aaa-00000
A180: 302 | B180: NO | C180: Región 3 | D180: Categoría 3 | F180: Soporte técnico proactivo - Oro | G180: Hora | H180: Und | I180: Servicio | J180: 60645 | K180: Controles Empresariales LTDA | L180: aaa-00000
A181: 303 | B181: NO | C181: Región 3 | D181: Categoría 3 | F181: Soporte técnico reactivo - Oro | G181: Hora | H181: Und | I181: Servicio | J181: 60645 | K181: Controles Empresariales LTDA | L181: aaa-00000
A182: 304 | B182: NO | C182: Región 3 | D182: Categoría 3 | F182: Soporte técnico proactivo - Plata | G182: Hora | H182: Und | I182: Servicio | J182: 53226 | K182: Controles Empresariales LTDA | L182: aaa-00000
A183: 305 | B183: NO | C183: Región 3 | D183: Categoría 3 | F183: Soporte técnico reactivo - Plata | G183: Hora | H183: Und | I183: Servicio | J183: 53226 | K183: Controles Empresariales LTDA | L183: aaa-00000
A184: 312 | B184: NO | C184: Región 3 | D184: Categoría 3 | F184: Gerente de cuenta (soporte) | G184: Mes | H184: Und | I184: Servicio | J184: 6056129 | K184: Controles Empresariales LTDA | L184: aaa-00000
A185: 316 | B185: NO | C185: Región 3 | D185: Categoría 3 | F185: Capacitación a usuario final hasta diez (10) personas- Presencial | G185: Hora | H185: Und | I185: Servicio | J185: 53226 | K185: Controles Empresariales LTDA | L185: aaa-00000
A186: 321 | B186: NO | C186: Región 3 | D186: Categoría 3 | F186: Capacitación a usuario técnico o administrador - hasta diez (10) personas- presencial | G186: Hora | H186: Und | I186: Servicio | J186: 80645 | K186: Controles Empresariales LTDA | L186: aaa-00000
A187: 284 | B187: NO | C187: Región 4 | D187: Categoría 3 | F187: Soporte técnico en sitio - profesional plata | G187: Mes | H187: Und | I187: Servicio | J187: 5341935 | K187: Controles Empresariales LTDA | L187: aaa-00000
A188: 285 | B188: NO | C188: Región 4 | D188: Categoría 3 | F188: Soporte técnico en sitio - Técnico plata | G188: Mes | H188: Und | I188: Servicio | J188: 2580645 | K188: Controles Empresariales LTDA | L188: aaa-00000
A189: 292 | B189: NO | C189: Región 4 | D189: Categoría 3 | F189: Soporte técnico en sitio - profesional oro | G189: Mes | H189: Und | I189: Servicio | J189: 5341935 | K189: Controles Empresariales LTDA | L189: aaa-00000
A190: 293 | B190: NO | C190: Región 4 | D190: Categoría 3 | F190: Soporte técnico en sitio - Técnico oro | G190: Mes | H190: Und | I190: Servicio | J190: 2580645 | K190: Controles Empresariales LTDA | L190: aaa-00000
A191: 306 | B191: NO | C191: Región 4 | D191: Categoría 3 | F191: Soporte técnico proactivo - Oro | G191: Hora | H191: Und | I191: Servicio | J191: 70645 | K191: Controles Empresariales LTDA | L191: aaa-00000
A192: 307 | B192: NO | C192: Región 4 | D192: Categoría 3 | F192: Soporte técnico reactivo - Oro | G192: Hora | H192: Und | I192: Servicio | J192: 70645 | K192: Controles Empresariales LTDA | L192: aaa-00000
A193: 308 | B193: NO | C193: Región 4 | D193: Categoría 3 | F193: Soporte técnico proactivo - Plata | G193: Hora | H193: Und | I193: Servicio | J193: 64247 | K193: Controles Empresariales LTDA | L193: aaa-00000
A194: 309 | B194: NO | C194: Región 4 | D194: Categoría 3 | F194: Soporte técnico reactivo - Plata | G194: Hora | H194: Und | I194: Servicio | J194: 64247 | K194: Controles Empresariales LTDA | L194: aaa-00000
A195: 313 | B195: NO | C195: Región 4 | D195: Categoría 3 | F195: Gerente de cuenta (soporte) | G195: Mes | H195: Und | I195: Servicio | J195: 6056129 | K195: Controles Empresariales LTDA | L195: aaa-00000
A196: 317 | B196: NO | C196: Región 4 | D196: Categoría 3 | F196: Capacitación a usuario final hasta diez (10) personas- Presencial | G196: Hora | H196: Und | I196: Servicio | J196: 116129 | K196: Controles Empresariales LTDA | L196: aaa-00000
A197: 322 | B197: NO | C197: Región 4 | D197: Categoría 3 | F197: Capacitación a usuario técnico o administrador - hasta diez (10) personas- presencial | G197: Hora | H197: Und | I197: Servicio | J197: 116129 | K197: Controles Empresariales LTDA | L197: aaa-00000
A198: 274 | B198: NO | C198: Región Todas | D198: Categoría 3 | F198: Instalación de Licencia o Licencia con Software Assurance- Plata | G198: Und | H198: Und | I198: Servicio | J198: 53226 | K198: Controles Empresariales LTDA | L198: aaa-00000
A199: 275 | B199: NO | C199: Región Todas | D199: Categoría 3 | F199: Instalación Suscripción anual- Plata | G199: Und | H199: Und | I199: Servicio | J199: 53226 | K199: Controles Empresariales LTDA | L199: aaa-00000
A200: 276 | B200: NO | C200: Región Todas | D200: Categoría 3 | F200: Instalación de Licencia o Licencia con Software Assurance- Oro | G200: Und | H200: Und | I200: Servicio | J200: 63871 | K200: Controles Empresariales LTDA | L200: aaa-00000
... 213 more rows

Sheet Categoría 4 (hidden)
A1: Código matriz | B1: Excento de IVA | C1: Region | D1: Categoria | E1: Familia | F1: Nombre Producto | G1: Unidad de Medida | H1: Unidad de servicio | I1: Tipo | J1: Precio | K1: Proveedor | L1: Número de parte | N1: Menor valor | O1: proveedor 1 | P1: proveedor 2 | Q1: proveedor 3 | R1: proveedor 4 | S1: proveedor 5
A2: 1 | B2: SI | C2: Región Todas | D2: Categoría 4 | E2: Azure | F2: AzureInfoProtPremP1Open ShrdSvr SubscriptionVL Government OLP 1License NoLevel Qualified Annual 1 Licencia por Unidad de Cómputo | G2: Und | H2: Und | I2: Producto | J2: 65061 | K2: Controles Empresariales LTDA | L2: N/A | N2: =MIN(IF(O2=0,1000000000000,O2),IF(P2=0,1000000000000,P2),IF(Q2=0,1000000000000,Q2),IF(R2=0,1000000000000,R2),IF(S2=0,1000000000000,S2)) -> 1358439 | O2: =SUM(IF($M:$M=1,$J:$J,0)) -> 1358439 | P2: =SUM(IF($M:$M=2,$J:$J,0)) -> 1642385 | Q2: =SUM(IF($M:$M=3,$J:$J,0)) -> 0 | R2: =SUM(IF($M:$M=4,$J:$J,0)) -> 0 | S2: =SUM(IF($M:$M=5,$J:$J,0)) -> 0
A3: 1 | B3: SI | C3: Región Todas | D3: Categoría 4 | E3: Azure | F3: AzureInfoProtPremP1Open ShrdSvr SubscriptionVL Government OLP 1License NoLevel Qualified Annual 1 Licencia por Unidad de Cómputo | G3: Und | H3: Und | I3: Producto | J3: 82216 | K3: Unión Temporal Nec-Intelecto Acuerdo Marco MS | L3: N/A
A4: 2 | B4: SI | C4: Región Todas | D4: Categoría 4 | E4: Azure | F4: AzureSubscriptionServicesOpen ShrdSvr SubscriptionVL Government OLP 1License NoLevel Qualified Annual 1 Licencia por Unidad de Cómputo | G4: Und | H4: Und | I4: Producto | J4: 309580 | K4: Controles Empresariales LTDA | L4: 5S2-00006
A5: 2 | B5: SI | C5: Región Todas | D5: Categoría 4 | E5: Azure | F5: AzureSubscriptionServicesOpen ShrdSvr SubscriptionVL Government OLP 1License NoLevel Qualified Annual 1 Licencia por Unidad de Cómputo | G5: Und | H5: Und | I5: Producto | J5: 391214 | K5: Unión Temporal Nec-Intelecto Acuerdo Marco MS | L5: 5S2-00006
A6: 3 | B6: NO | C6: Región Todas | D6: Categoría 4 | E6: Bases de Datos SQL Server | F6: Producto SQLCAL 2016 Government OLP 1License NoLevel DvcCAL Región 1 a 4 Una sola vez 1 Licencia por Dispositivo 1 Licencia por Dispositivo | G6: Und | H6: Und | I6: Producto | J6: 490787 | K6: Controles Empresariales LTDA | L6: 359-06353
A7: 3 | B7: NO | C7: Región Todas | D7: Categoría 4 | E7: Bases de Datos SQL Server | F7: Producto SQLCAL 2016 Government OLP 1License NoLevel DvcCAL Región 1 a 4 Una sola vez 1 Licencia por Dispositivo 1 Licencia por Dispositivo | G7: Und | H7: Und | I7: Producto | J7: 620204 | K7: Unión Temporal Nec-Intelecto Acuerdo Marco MS | L7: 359-06353
A8: 4 | B8: NO | C8: Región Todas | D8: Categoría 4 | E8: Bases de Datos SQL Server | F8: Producto SQLCAL 2016 Government OLP 1License NoLevel UsrCAL Región 1 a 4 Una sola vez 1 Licencia por Usuario 1 Licencia por Usuario | G8: Und | H8: Und | I8: Producto | J8: 490787 | K8: Controles Empresariales LTDA | L8: 359-06354
A9: 4 | B9: NO | C9: Región Todas | D9: Categoría 4 | E9: Bases de Datos SQL Server | F9: Producto SQLCAL 2016 Government OLP 1License NoLevel UsrCAL Región 1 a 4 Una sola vez 1 Licencia por Usuario 1 Licencia por Usuario | G9: Und | H9: Und | I9: Producto | J9: 620204 | K9: Unión Temporal Nec-Intelecto Acuerdo Marco MS | L9: 359-06354
A10: 5 | B10: NO | C10: Región Todas | D10: Categoría 4 | E10: Bases de Datos SQL Server | F10: Producto SQLCAL License/SoftwareAssurancePack Government OLP 1License NoLevel DvcCAL Región 1 a 4 Una sola vez 1 Licencia por Dispositivo 1 Licencia por Dispositivo | G10: Und | H10: Und | I10: Producto | J10: 736179 | K10: Controles Empresariales LTDA | L10: 359-01387
A11: 5 | B11: NO | C11: Región Todas | D11: Categoría 4 | E11: Bases de Datos SQL Server | F11: Producto SQLCAL License/SoftwareAssurancePack Government OLP 1License NoLevel DvcCAL Región 1 a 4 Una sola vez 1 Licencia por Dispositivo 1 Licencia por Dispositivo | G11: Und | H11: Und | I11: Producto | J11: 930306 | K11: Unión Temporal Nec-Intelecto Acuerdo Marco MS | L11: 359-01387
A12: 6 | B12: NO | C12: Región Todas | D12: Categoría 4 | E12: Bases de Datos SQL Server | F12: Producto SQLCAL License/SoftwareAssurancePack Government OLP 1License NoLevel UsrCAL Región 1 a 4 Una sola vez 1 Licencia por Usuario 1 Licencia por Usuario | G12: Und | H12: Und | I12: Producto | J12: 736179 | K12: Controles Empresariales LTDA | L12: 359-01386
A13: 6 | B13: NO | C13: Región Todas | D13: Categoría 4 | E13: Bases de Datos SQL Server | F13: Producto SQLCAL License/SoftwareAssurancePack Government OLP 1License NoLevel UsrCAL Región 1 a 4 Una sola vez 1 Licencia por Usuario 1 Licencia por Usuario | G13: Und | H13: Und | I13: Producto | J13: 930306 | K13: Unión Temporal Nec-Intelecto Acuerdo Marco MS | L13: 359-01386
A14: 7 | B14: NO | C14: Región Todas | D14: Categoría 4 | E14: Bases de Datos SQL Server | F14: Producto SQLCAL SoftwareAssurance Government OLP 1License NoLevel DvcCAL Región 1 a 4 Una sola vez 1 Licencia por Dispositivo 1 Licencia por Dispositivo | G14: Und | H14: Und | I14: Producto | J14: 245393 | K14: Controles Empresariales LTDA | L14: 359-01385
A15: 7 | B15: NO | C15: Región Todas | D15: Categoría 4 | E15: Bases de Datos SQL Server | F15: Producto SQLCAL SoftwareAssurance Government OLP 1License NoLevel DvcCAL Región 1 a 4 Una sola vez 1 Licencia por Dispositivo 1 Licencia por Dispositivo | G15: Und | H15: Und | I15: Producto | J15: 310102 | K15: Unión Temporal Nec-Intelecto Acuerdo Marco MS | L15: 359-01385
A16: 8 | B16: NO | C16: Región Todas | D16: Categoría 4 | E16: Bases de Datos SQL Server | F16: Producto SQLCAL SoftwareAssurance Government OLP 1License NoLevel UsrCAL Región 1 a 4 Una sola vez 1 Licencia por Usuario 1 Licencia por Usuario | G16: Und | H16: Und | I16: Producto | J16: 245393 | K16: Controles Empresariales LTDA | L16: 359-01384
A17: 8 | B17: NO | C17: Región Todas | D17: Categoría 4 | E17: Bases de Datos SQL Server | F17: Producto SQLCAL SoftwareAssurance Government OLP 1License NoLevel UsrCAL Región 1 a 4 Una sola vez 1 Licencia por Usuario 1 Licencia por Usuario | G17: Und | H17: Und | I17: Producto | J17: 310102 | K17: Unión Temporal Nec-Intelecto Acuerdo Marco MS | L17: 359-01384
A18: 9 | B18: NO | C18: Región Todas | D18: Categoría 4 | E18: Bases de Datos SQL Server | F18: Producto SQLServerEnterpriseEdition SoftwareAssurance Government OLP 1License NoLevel Región 1 a 4 Una sola vez 1 Licencia por Servidor 1 Licencia por Servidor | G18: Und | H18: Und | I18: Producto | J18: 10096928 | K18: Controles Empresariales LTDA | L18: 810-04848
A19: 9 | B19: NO | C19: Región Todas | D19: Categoría 4 | E19: Bases de Datos SQL Server | F19: Producto SQLServerEnterpriseEdition SoftwareAssurance Government OLP 1License NoLevel Región 1 a 4 Una sola vez 1 Licencia por Servidor 1 Licencia por Servidor | G19: Und | H19: Und | I19: Producto | J19: 12759433 | K19: Unión Temporal Nec-Intelecto Acuerdo Marco MS | L19: 810-04848
A20: 10 | B20: NO | C20: Región Todas | D20: Categoría 4 | E20: Bases de Datos SQL Server | F20: Producto SQLSvrEnterpriseCore 2016 Government OLP 2Licenses NoLevel CoreLic Qualified Región 1 a 4 Una sola vez 1 Licencia por cada 2 Cores 1 Licencia por cada 2 Cores | G20: Und | H20: Und | I20: Producto | J20: 32314623 | K20: Controles Empresariales LTDA | L20: 7JQ-01038
A21: 10 | B21: NO | C21: Región Todas | D21: Categoría 4 | E21: Bases de Datos SQL Server | F21: Producto SQLSvrEnterpriseCore 2016 Government OLP 2Licenses NoLevel CoreLic Qualified Región 1 a 4 Una sola vez 1 Licencia por cada 2 Cores 1 Licencia por cada 2 Cores | G21: Und | H21: Und | I21: Producto | J21: 40835811 | K21: Unión Temporal Nec-Intelecto Acuerdo Marco MS | L21: 7JQ-01038
A22: 11 | B22: NO | C22: Región Todas | D22: Categoría 4 | E22: Bases de Datos SQL Server | F22: Producto SQLSvrEnterpriseCore License/SoftwareAssurancePack Government OLP 2Licenses NoLevel CoreLic Qualified Región 1 a 4 Una sola vez 1 Licencia por cada 2 Cores 1 Licencia por cada 2 Cores | G22: Und | H22: Und | I22: Producto | J22: 48472151 | K22: Controles Empresariales LTDA | L22: 7JQ-00314
A23: 11 | B23: NO | C23: Región Todas | D23: Categoría 4 | E23: Bases de Datos SQL Server | F23: Producto SQLSvrEnterpriseCore License/SoftwareAssurancePack Government OLP 2Licenses NoLevel CoreLic Qualified Región 1 a 4 Una sola vez 1 Licencia por cada 2 Cores 1 Licencia por cada 2 Cores | G23: Und | H23: Und | I23: Producto | J23: 61253993 | K23: Unión Temporal Nec-Intelecto Acuerdo Marco MS | L23: 7JQ-00314
A24: 12 | B24: NO | C24: Región Todas | D24: Categoría 4 | E24: Bases de Datos SQL Server | F24: Producto SQLSvrEnterpriseCore SoftwareAssurance Government OLP 2Licenses NoLevel CoreLic Qualified Región 1 a 4 Una sola vez 1 Licencia por cada 2 Cores 1 Licencia por cada 2 Cores | G24: Und | H24: Und | I24: Producto | J24: 16157531 | K24: Controles Empresariales LTDA | L24: 7JQ-00315
A25: 12 | B25: NO | C25: Región Todas | D25: Categoría 4 | E25: Bases de Datos SQL Server | F25: Producto SQLSvrEnterpriseCore SoftwareAssurance Government OLP 2Licenses NoLevel CoreLic Qualified Región 1 a 4 Una sola vez 1 Licencia por cada 2 Cores 1 Licencia por cada 2 Cores | G25: Und | H25: Und | I25: Producto | J25: 20418181 | K25: Unión Temporal Nec-Intelecto Acuerdo Marco MS | L25: 7JQ-00315
A26: 13 | B26: NO | C26: Región Todas | D26: Categoría 4 | E26: Bases de Datos SQL Server | F26: Producto SQLServerStandardEdition 2016 Government OLP 1License NoLevel Región 1 a 4 Una sola vez 1 Licencia por Servidor 1 Licencia por Servidor | G26: Und | H26: Und | I26: Producto | J26: 2108984 | K26: Controles Empresariales LTDA | L26: 228-10833
A27: 13 | B27: NO | C27: Región Todas | D27: Categoría 4 | E27: Bases de Datos SQL Server | F27: Producto SQLServerStandardEdition 2016 Government OLP 1License NoLevel Región 1 a 4 Una sola vez 1 Licencia por Servidor 1 Licencia por Servidor | G27: Und | H27: Und | I27: Producto | J27: 2665113 | K27: Unión Temporal Nec-Intelecto Acuerdo Marco MS | L27: 228-10833
A28: 14 | B28: NO | C28: Región Todas | D28: Categoría 4 | E28: Bases de Datos SQL Server | F28: Producto SQLServerStandardEdition License/SoftwareAssurancePack Government OLP 1License NoLevel Región 1 a 4 Una sola vez 1 Licencia por Servidor 1 Licencia por Servidor | G28: Und | H28: Und | I28: Producto | J28: 3163041 | K28: Controles Empresariales LTDA | L28: 228-04513
A29: 14 | B29: NO | C29: Región Todas | D29: Categoría 4 | E29: Bases de Datos SQL Server | F29: Producto SQLServerStandardEdition License/SoftwareAssurancePack Government OLP 1License NoLevel Región 1 a 4 Una sola vez 1 Licencia por Servidor 1 Licencia por Servidor | G29: Und | H29: Und | I29: Producto | J29: 3997116 | K29: Unión Temporal Nec-Intelecto Acuerdo Marco MS | L29: 228-04513
A30: 15 | B30: NO | C30: Región Todas | D30: Categoría 4 | E30: Bases de Datos SQL Server | F30: Producto SQLServerStandardEdition SoftwareAssurance Government OLP 1License NoLevel Región 1 a 4 Una sola vez 1 Licencia por Servidor 1 Licencia por Servidor | G30: Und | H30: Und | I30: Producto | J30: 1054056 | K30: Controles Empresariales LTDA | L30: 228-04510
A31: 15 | B31: NO | C31: Región Todas | D31: Categoría 4 | E31: Bases de Datos SQL Server | F31: Producto SQLServerStandardEdition SoftwareAssurance Government OLP 1License NoLevel Región 1 a 4 Una sola vez 1 Licencia por Servidor 1 Licencia por Servidor | G31: Und | H31: Und | I31: Producto | J31: 1332005 | K31: Unión Temporal Nec-Intelecto Acuerdo Marco MS | L31: 228-04510
A32: 16 | B32: NO | C32: Región Todas | D32: Categoría 4 | E32: Bases de Datos SQL Server | F32: Producto SQLSvrStandardCore 2016 Government OLP 2Licenses NoLevel CoreLic Qualified Región 1 a 4 Una sola vez 1 Licencia por cada 2 Cores 1 Licencia por cada 2 Cores | G32: Und | H32: Und | I32: Producto | J32: 8427206 | K32: Controles Empresariales LTDA | L32: 7NQ-00831
A33: 16 | B33: NO | C33: Región Todas | D33: Categoría 4 | E33: Bases de Datos SQL Server | F33: Producto SQLSvrStandardCore 2016 Government OLP 2Licenses NoLevel CoreLic Qualified Región 1 a 4 Una sola vez 1 Licencia por cada 2 Cores 1 Licencia por cada 2 Cores | G33: Und | H33: Und | I33: Producto | J33: 10649414 | K33: Unión Temporal Nec-Intelecto Acuerdo Marco MS | L33: 7NQ-00831
A34: 17 | B34: NO | C34: Región Todas | D34: Categoría 4 | E34: Bases de Datos SQL Server | F34: Producto SQLSvrStandardCore License/SoftwareAssurancePack Government OLP 2Licenses NoLevel CoreLic Qualified Región 1 a 4 Una sola vez 1 Licencia por cada 2 Cores 1 Licencia por cada 2 Cores | G34: Und | H34: Und | I34: Producto | J34: 12640808 | K34: Controles Empresariales LTDA | L34: 7NQ-00266
A35: 17 | B35: NO | C35: Región Todas | D35: Categoría 4 | E35: Bases de Datos SQL Server | F35: Producto SQLSvrStandardCore License/SoftwareAssurancePack Government OLP 2Licenses NoLevel CoreLic Qualified Región 1 a 4 Una sola vez 1 Licencia por cada 2 Cores 1 Licencia por cada 2 Cores | G35: Und | H35: Und | I35: Producto | J35: 15974121 | K35: Unión Temporal Nec-Intelecto Acuerdo Marco MS | L35: 7NQ-00266
A36: 18 | B36: NO | C36: Región Todas | D36: Categoría 4 | E36: Bases de Datos SQL Server | F36: Producto SQLSvrStandardCore SoftwareAssurance Government OLP 2Licenses NoLevel CoreLic Qualified Región 1 a 4 Una sola vez 1 Licencia por cada 2 Cores 1 Licencia por cada 2 Cores | G36: Und | H36: Und | I36: Producto | J36: 4213602 | K36: Controles Empresariales LTDA | L36: 7NQ-00267
A37: 18 | B37: NO | C37: Región Todas | D37: Categoría 4 | E37: Bases de Datos SQL Server | F37: Producto SQLSvrStandardCore SoftwareAssurance Government OLP 2Licenses NoLevel CoreLic Qualified Región 1 a 4 Una sola vez 1 Licencia por cada 2 Cores 1 Licencia por cada 2 Cores | G37: Und | H37: Und | I37: Producto | J37: 5324707 | K37: Unión Temporal Nec-Intelecto Acuerdo Marco MS | L37: 7NQ-00267
A38: 73 | B38: NO | C38: Región Todas | D38: Categoría 4 | E38: CoreCAL Suite | F38: Producto CoreCALClientAccessLicense License/SoftwareAssurancePack Government OLP 1License NoLevel DvcCAL Región 1 a 4 Una sola vez 1 Licencia por Dispositivo 1 Licencia por Dispositivo | G38: Und | H38: Und | I38: Producto | J38: 767619 | K38: Controles Empresariales LTDA | L38: W06-00622
A39: 73 | B39: NO | C39: Región Todas | D39: Categoría 4 | E39: CoreCAL Suite | F39: Producto CoreCALClientAccessLicense License/SoftwareAssurancePack Government OLP 1License NoLevel DvcCAL Región 1 a 4 Una sola vez 1 Licencia por Dispositivo 1 Licencia por Dispositivo | G39: Und | H39: Und | I39: Producto | J39: 970035 | K39: Unión Temporal Nec-Intelecto Acuerdo Marco MS | L39: W06-00622
A40: 74 | B40: NO | C40: Región Todas | D40: Categoría 4 | E40: CoreCAL Suite | F40: Producto CoreCALClientAccessLicense License/SoftwareAssurancePack Government OLP 1License NoLevel UsrCAL Región 1 a 4 Una sola vez 1 Licencia por Usuario 1 Licencia por Usuario | G40: Und | H40: Und | I40: Producto | J40: 882455 | K40: Controles Empresariales LTDA | L40: W06-00623
A41: 74 | B41: NO | C41: Región Todas | D41: Categoría 4 | E41: CoreCAL Suite | F41: Producto CoreCALClientAccessLicense License/SoftwareAssurancePack Government OLP 1License NoLevel UsrCAL Región 1 a 4 Una sola vez 1 Licencia por Usuario 1 Licencia por Usuario | G41: Und | H41: Und | I41: Producto | J41: 1115154 | K41: Unión Temporal Nec-Intelecto Acuerdo Marco MS | L41: W06-00623
A42: 75 | B42: NO | C42: Región Todas | D42: Categoría 4 | E42: CoreCAL Suite | F42: Producto CoreCALClientAccessLicense SoftwareAssurance Government OLP 1License NoLevel DvcCAL Región 1 a 4 Una sola vez 1 Licencia por Dispositivo 1 Licencia por Dispositivo | G42: Und | H42: Und | I42: Producto | J42: 269845 | K42: Controles Empresariales LTDA | L42: W06-00621
A43: 75 | B43: NO | C43: Región Todas | D43: Categoría 4 | E43: CoreCAL Suite | F43: Producto CoreCALClientAccessLicense SoftwareAssurance Government OLP 1License NoLevel DvcCAL Región 1 a 4 Una sola vez 1 Licencia por Dispositivo 1 Licencia por Dispositivo | G43: Und | H43: Und | I43: Producto | J43: 341003 | K43: Unión Temporal Nec-Intelecto Acuerdo Marco MS | L43: W06-00621
A44: 76 | B44: NO | C44: Región Todas | D44: Categoría 4 | E44: CoreCAL Suite | F44: Producto CoreCALClientAccessLicense SoftwareAssurance Government OLP 1License NoLevel UsrCAL Región 1 a 4 Una sola vez 1 Licencia por Usuario 1 Licencia por Usuario | G44: Und | H44: Und | I44: Producto | J44: 310017 | K44: Controles Empresariales LTDA | L44: W06-00624
A45: 76 | B45: NO | C45: Región Todas | D45: Categoría 4 | E45: CoreCAL Suite | F45: Producto CoreCALClientAccessLicense SoftwareAssurance Government OLP 1License NoLevel UsrCAL Región 1 a 4 Una sola vez 1 Licencia por Usuario 1 Licencia por Usuario | G45: Und | H45: Und | I45: Producto | J45: 391766 | K45: Unión Temporal Nec-Intelecto Acuerdo Marco MS | L45: W06-00624
A46: 77 | B46: NO | C46: Región Todas | D46: Categoría 4 | E46: Dynamics CRM | F46: Producto DynamicsCRMBasicAddCAL License/SoftwareAssurancePack Government OLP 1License NoLevel DvcCAL Qualified Región 1 a 4 Una sola vez 1 Licencia por Dispositivo 1 Licencia por Dispositivo | G46: Und | H46: Und | I46: Producto | J46: 544493 | K46: Controles Empresariales LTDA | L46: 3EJ-01155
A47: 77 | B47: NO | C47: Región Todas | D47: Categoría 4 | E47: Dynamics CRM | F47: Producto DynamicsCRMBasicAddCAL License/SoftwareAssurancePack Government OLP 1License NoLevel DvcCAL Qualified Región 1 a 4 Una sola vez 1 Licencia por Dispositivo 1 Licencia por Dispositivo | G47: Und | H47: Und | I47: Producto | J47: 625722 | K47: Unión Temporal Nec-Intelecto Acuerdo Marco MS | L47: 3EJ-01155
A48: 78 | B48: NO | C48: Región Todas | D48: Categoría 4 | E48: Dynamics CRM | F48: Producto DynamicsCRMBasicAddCAL License/SoftwareAssurancePack Government OLP 1License NoLevel UsrCAL Qualified Región 1 a 4 Una sola vez 1 Licencia por Usuario 1 Licencia por Usuario | G48: Und | H48: Und | I48: Producto | J48: 1035279 | K48: Controles Empresariales LTDA | L48: 3EJ-01156
A49: 78 | B49: NO | C49: Región Todas | D49: Categoría 4 | E49: Dynamics CRM | F49: Producto DynamicsCRMBasicAddCAL License/SoftwareAssurancePack Government OLP 1License NoLevel UsrCAL Qualified Región 1 a 4 Una sola vez 1 Licencia por Usuario 1 Licencia por Usuario | G49: Und | H49: Und | I49: Producto | J49: 1047285 | K49: Unión Temporal Nec-Intelecto Acuerdo Marco MS | L49: 3EJ-01156
A50: 79 | B50: NO | C50: Región Todas | D50: Categoría 4 | E50: Dynamics CRM | F50: Producto DynamicsCRMBasicAddCAL SoftwareAssurance Government OLP 1License NoLevel DvcCAL Qualified Región 1 a 4 Una sola vez 1 Licencia por Dispositivo 1 Licencia por Dispositivo | G50: Und | H50: Und | I50: Producto | J50: 181641 | K50: Controles Empresariales LTDA | L50: 3EJ-01157
A51: 79 | B51: NO | C51: Región Todas | D51: Categoría 4 | E51: Dynamics CRM | F51: Producto DynamicsCRMBasicAddCAL SoftwareAssurance Government OLP 1License NoLevel DvcCAL Qualified Región 1 a 4 Una sola vez 1 Licencia por Dispositivo 1 Licencia por Dispositivo | G51: Und | H51: Und | I51: Producto | J51: 208575 | K51: Unión Temporal Nec-Intelecto Acuerdo Marco MS | L51: 3EJ-01157
A52: 80 | B52: NO | C52: Región Todas | D52: Categoría 4 | E52: Dynamics CRM | F52: Producto DynamicsCRMBasicAddCAL SoftwareAssurance Government OLP 1License NoLevel UsrCAL Qualified Región 1 a 4 Una sola vez 1 Licencia por Usuario 1 Licencia por Usuario | G52: Und | H52: Und | I52: Producto | J52: 344948 | K52: Controles Empresariales LTDA | L52: 3EJ-01158
A53: 80 | B53: NO | C53: Región Todas | D53: Categoría 4 | E53: Dynamics CRM | F53: Producto DynamicsCRMBasicAddCAL SoftwareAssurance Government OLP 1License NoLevel UsrCAL Qualified Región 1 a 4 Una sola vez 1 Licencia por Usuario 1 Licencia por Usuario | G53: Und | H53: Und | I53: Producto | J53: 348726 | K53: Unión Temporal Nec-Intelecto Acuerdo Marco MS | L53: 3EJ-01158
A54: 81 | B54: NO | C54: Región Todas | D54: Categoría 4 | E54: Dynamics CRM | F54: Producto DynamicsCRMBasicCAL License/SoftwareAssurancePack Government OLP 1License NoLevel DvcCAL Qualified Región 1 a 4 Una sola vez 1 Licencia por Dispositivo 1 Licencia por Dispositivo | G54: Und | H54: Und | I54: Producto | J54: 817395 | K54: Controles Empresariales LTDA | L54: QZA-00107
A55: 81 | B55: NO | C55: Región Todas | D55: Categoría 4 | E55: Dynamics CRM | F55: Producto DynamicsCRMBasicCAL License/SoftwareAssurancePack Government OLP 1License NoLevel DvcCAL Qualified Región 1 a 4 Una sola vez 1 Licencia por Dispositivo 1 Licencia por Dispositivo | G55: Und | H55: Und | I55: Producto | J55: 939135 | K55: Unión Temporal Nec-Intelecto Acuerdo Marco MS | L55: QZA-00107
A56: 82 | B56: NO | C56: Región Todas | D56: Categoría 4 | E56: Dynamics CRM | F56: Producto DynamicsCRMBasicCAL License/SoftwareAssurancePack Government OLP 1License NoLevel UsrCAL Qualified Región 1 a 4 Una sola vez 1 Licencia por Usuario 1 Licencia por Usuario | G56: Und | H56: Und | I56: Producto | J56: 1344859 | K56: Controles Empresariales LTDA | L56: QZA-00379
A57: 82 | B57: NO | C57: Región Todas | D57: Categoría 4 | E57: Dynamics CRM | F57: Producto DynamicsCRMBasicCAL License/SoftwareAssurancePack Government OLP 1License NoLevel UsrCAL Qualified Región 1 a 4 Una sola vez 1 Licencia por Usuario 1 Licencia por Usuario | G57: Und | H57: Und | I57: Producto | J57: 1361249 | K57: Unión Temporal Nec-Intelecto Acuerdo Marco MS | L57: QZA-00379
A58: 83 | B58: NO | C58: Región Todas | D58: Categoría 4 | E58: Dynamics CRM | F58: Producto DynamicsCRMBasicCAL SoftwareAssurance Government OLP 1License NoLevel DvcCAL Qualified Región 1 a 4 Una sola vez 1 Licencia por Dispositivo 1 Licencia por Dispositivo | G58: Und | H58: Und | I58: Producto | J58: 272466 | K58: Controles Empresariales LTDA | L58: QZA-00100
A59: 83 | B59: NO | C59: Región Todas | D59: Categoría 4 | E59: Dynamics CRM | F59: Producto DynamicsCRMBasicCAL SoftwareAssurance Government OLP 1License NoLevel DvcCAL Qualified Región 1 a 4 Una sola vez 1 Licencia por Dispositivo 1 Licencia por Dispositivo | G59: Und | H59: Und | I59: Producto | J59: 313413 | K59: Unión Temporal Nec-Intelecto Acuerdo Marco MS | L59: QZA-00100
A60: 84 | B60: NO | C60: Región Todas | D60: Categoría 4 | E60: Dynamics CRM | F60: Producto DynamicsCRMBasicCAL SoftwareAssurance Government OLP 1License NoLevel UsrCAL Qualified Región 1 a 4 Una sola vez 1 Licencia por Usuario 1 Licencia por Usuario | G60: Und | H60: Und | I60: Producto | J60: 447995 | K60: Controles Empresariales LTDA | L60: QZA-00378
A61: 84 | B61: NO | C61: Región Todas | D61: Categoría 4 | E61: Dynamics CRM | F61: Producto DynamicsCRMBasicCAL SoftwareAssurance Government OLP 1License NoLevel UsrCAL Qualified Región 1 a 4 Una sola vez 1 Licencia por Usuario 1 Licencia por Usuario | G61: Und | H61: Und | I61: Producto | J61: 453566 | K61: Unión Temporal Nec-Intelecto Acuerdo Marco MS | L61: QZA-00378
A62: 85 | B62: NO | C62: Región Todas | D62: Categoría 4 | E62: Dynamics CRM | F62: Producto DynamicsCRMEssentialCAL License/SoftwareAssurancePack Government OLP 1License NoLevel DvcCAL Qualified Región 1 a 4 Una sola vez 1 Licencia por Dispositivo 1 Licencia por Dispositivo | G62: Und | H62: Und | I62: Producto | J62: 272465 | K62: Controles Empresariales LTDA | L62: 3CJ-00114
A63: 85 | B63: NO | C63: Región Todas | D63: Categoría 4 | E63: Dynamics CRM | F63: Producto DynamicsCRMEssentialCAL License/SoftwareAssurancePack Government OLP 1License NoLevel DvcCAL Qualified Región 1 a 4 Una sola vez 1 Licencia por Dispositivo 1 Licencia por Dispositivo | G63: Und | H63: Und | I63: Producto | J63: 313965 | K63: Unión Temporal Nec-Intelecto Acuerdo Marco MS | L63: 3CJ-00114
A64: 86 | B64: NO | C64: Región Todas | D64: Categoría 4 | E64: Dynamics CRM | F64: Producto DynamicsCRMEssentialCAL License/SoftwareAssurancePack Government OLP 1License NoLevel UsrCAL Qualified Región 1 a 4 Una sola vez 1 Licencia por Usuario 1 Licencia por Usuario | G64: Und | H64: Und | I64: Producto | J64: 309578 | K64: Controles Empresariales LTDA | L64: 3CJ-00115
A65: 86 | B65: NO | C65: Región Todas | D65: Categoría 4 | E65: Dynamics CRM | F65: Producto DynamicsCRMEssentialCAL License/SoftwareAssurancePack Government OLP 1License NoLevel UsrCAL Qualified Región 1 a 4 Una sola vez 1 Licencia por Usuario 1 Licencia por Usuario | G65: Und | H65: Und | I65: Producto | J65: 313965 | K65: Unión Temporal Nec-Intelecto Acuerdo Marco MS | L65: 3CJ-00115
A66: 87 | B66: NO | C66: Región Todas | D66: Categoría 4 | E66: Dynamics CRM | F66: Producto DynamicsCRMEssentialCAL SoftwareAssurance Government OLP 1License NoLevel DvcCAL Qualified Región 1 a 4 Una sola vez 1 Licencia por Dispositivo 1 Licencia por Dispositivo | G66: Und | H66: Und | I66: Producto | J66: 90820 | K66: Controles Empresariales LTDA | L66: 3CJ-00116
A67: 87 | B67: NO | C67: Región Todas | D67: Categoría 4 | E67: Dynamics CRM | F67: Producto DynamicsCRMEssentialCAL SoftwareAssurance Government OLP 1License NoLevel DvcCAL Qualified Región 1 a 4 Una sola vez 1 Licencia por Dispositivo 1 Licencia por Dispositivo | G67: Und | H67: Und | I67: Producto | J67: 104838 | K67: Unión Temporal Nec-Intelecto Acuerdo Marco MS | L67: 3CJ-00116
A68: 88 | B68: NO | C68: Región Todas | D68: Categoría 4 | E68: Dynamics CRM | F68: Producto DynamicsCRMEssentialCAL SoftwareAssurance Government OLP 1License NoLevel UsrCAL Qualified Región 1 a 4 Una sola vez 1 Licencia por Usuario 1 Licencia por Usuario | G68: Und | H68: Und | I68: Producto | J68: 103047 | K68: Controles Empresariales LTDA | L68: 3CJ-00117
A69: 88 | B69: NO | C69: Región Todas | D69: Categoría 4 | E69: Dynamics CRM | F69: Producto DynamicsCRMEssentialCAL SoftwareAssurance Government OLP 1License NoLevel UsrCAL Qualified Región 1 a 4 Una sola vez 1 Licencia por Usuario 1 Licencia por Usuario | G69: Und | H69: Und | I69: Producto | J69: 104838 | K69: Unión Temporal Nec-Intelecto Acuerdo Marco MS | L69: 3CJ-00117
A70: 89 | B70: NO | C70: Región Todas | D70: Categoría 4 | E70: Dynamics CRM | F70: Producto DynamicsCRMExternalConnector License/SoftwareAssurancePack Government OLP 1License NoLevel Qualified Región 1 a 4 Una sola vez 1 Licencia por Servidor 1 Licencia por Servidor | G70: Und | H70: Und | I70: Producto | J70: 12418121 | K70: Controles Empresariales LTDA | L70: ZGA-00100
A71: 89 | B71: NO | C71: Región Todas | D71: Categoría 4 | E71: Dynamics CRM | F71: Producto DynamicsCRMExternalConnector License/SoftwareAssurancePack Government OLP 1License NoLevel Qualified Región 1 a 4 Una sola vez 1 Licencia por Servidor 1 Licencia por Servidor | G71: Und | H71: Und | I71: Producto | J71: 15692711 | K71: Unión Temporal Nec-Intelecto Acuerdo Marco MS | L71: ZGA-00100
A72: 90 | B72: NO | C72: Región Todas | D72: Categoría 4 | E72: Dynamics CRM | F72: Producto DynamicsCRMExternalConnector SoftwareAssurance Government OLP 1License NoLevel Qualified Región 1 a 4 Una sola vez 1 Licencia por Servidor 1 Licencia por Servidor | G72: Und | H72: Und | I72: Producto | J72: 4139374 | K72: Controles Empresariales LTDA | L72: ZGA-00099
A73: 90 | B73: NO | C73: Región Todas | D73: Categoría 4 | E73: Dynamics CRM | F73: Producto DynamicsCRMExternalConnector SoftwareAssurance Government OLP 1License NoLevel Qualified Región 1 a 4 Una sola vez 1 Licencia por Servidor 1 Licencia por Servidor | G73: Und | H73: Und | I73: Producto | J73: 5230904 | K73: Unión Temporal Nec-Intelecto Acuerdo Marco MS | L73: ZGA-00099
A74: 91 | B74: SI | C74: Región Todas | D74: Categoría 4 | E74: Dynamics CRM | F74: Producto DynamicsCRMOLBasicOpen ShrdSvr SubscriptionVL Government OLP 1License NoLevel Qualified Annual Región 1 a 4 Pago Anual Anticipado 1 Licencia por Usuario 1 Licencia por Usuario | G74: Und | H74: Und | I74: Producto | J74: 1004278 | K74: Controles Empresariales LTDA | L74: LT2-00017
A75: 91 | B75: SI | C75: Región Todas | D75: Categoría 4 | E75: Dynamics CRM | F75: Producto DynamicsCRMOLBasicOpen ShrdSvr SubscriptionVL Government OLP 1License NoLevel Qualified Annual Región 1 a 4 Pago Anual Anticipado 1 Licencia por Usuario 1 Licencia por Usuario | G75: Und | H75: Und | I75: Producto | J75: 1269102 | K75: Unión Temporal Nec-Intelecto Acuerdo Marco MS | L75: LT2-00017
A76: 91 | B76: SI | C76: Región Todas | D76: Categoría 5 | E76: Dynamics CRM | F76: DynamicsCRMOLBasicOpen ShrdSvr SubscriptionVL Government OLP 1License NoLevel Qualified Annual Región 1 a 4 Pago Anual Anticipado 1 Licencia por Usuario 1 Licencia por Usuario | G76: Und | H76: Und | I76: Producto | J76: 1004278 | K76: Controles Empresariales LTDA | L76: LT2-00017
A77: 91 | B77: SI | C77: Región Todas | D77: Categoría 5 | E77: Dynamics CRM | F77: DynamicsCRMOLBasicOpen ShrdSvr SubscriptionVL Government OLP 1License NoLevel Qualified Annual Región 1 a 4 Pago Anual Anticipado 1 Licencia por Usuario 1 Licencia por Usuario | G77: Und | H77: Und | I77: Producto | J77: 1269102 | K77: Unión Temporal Nec-Intelecto Acuerdo Marco MS | L77: LT2-00017
A78: 92 | B78: SI | C78: Región Todas | D78: Categoría 4 | E78: Dynamics CRM | F78: Producto DynamicsCRMOLEnhancedSuprtOpen ShrdSvr SubscriptionVL Government OLP 1License NoLevel Qualified Annual Región 1 a 4 Pago Anual Anticipado 1 Licencia por Usuario 1 Licencia por Usuario | G78: Und | H78: Und | I78: Producto | J78: 218322 | K78: Controles Empresariales LTDA | L78: NL2-00017
A79: 92 | B79: SI | C79: Región Todas | D79: Categoría 4 | E79: Dynamics CRM | F79: Producto DynamicsCRMOLEnhancedSuprtOpen ShrdSvr SubscriptionVL Government OLP 1License NoLevel Qualified Annual Región 1 a 4 Pago Anual Anticipado 1 Licencia por Usuario 1 Licencia por Usuario | G79: Und | H79: Und | I79: Producto | J79: 275890 | K79: Unión Temporal Nec-Intelecto Acuerdo Marco MS | L79: NL2-00017
A80: 92 | B80: SI | C80: Región Todas | D80: Categoría 5 | E80: Dynamics CRM | F80: DynamicsCRMOLEnhancedSuprtOpen ShrdSvr SubscriptionVL Government OLP 1License NoLevel Qualified Annual Región 1 a 4 Pago Anual Anticipado 1 Licencia por Usuario 1 Licencia por Usuario | G80: Und | H80: Und | I80: Producto | J80: 218322 | K80: Controles Empresariales LTDA | L80: NL2-00017
A81: 92 | B81: SI | C81: Región Todas | D81: Categoría 5 | E81: Dynamics CRM | F81: DynamicsCRMOLEnhancedSuprtOpen ShrdSvr SubscriptionVL Government OLP 1License NoLevel Qualified Annual Región 1 a 4 Pago Anual Anticipado 1 Licencia por Usuario 1 Licencia por Usuario | G81: Und | H81: Und | I81: Producto | J81: 275890 | K81: Unión Temporal Nec-Intelecto Acuerdo Marco MS | L81: NL2-00017
A82: 93 | B82: SI | C82: Región Todas | D82: Categoría 4 | E82: Dynamics CRM | F82: Producto DynamicsCRMOnlineEssentialOpen ShrdSvr SubscriptionVL Government OLP 1License NoLevel Qualified Annual Región 1 a 4 Pago Anual Anticipado 1 Licencia por Usuario 1 Licencia por Usuario | G82: Und | H82: Und | I82: Producto | J82: 502139 | K82: Controles Empresariales LTDA | L82: LP2-00017
A83: 93 | B83: SI | C83: Región Todas | D83: Categoría 4 | E83: Dynamics CRM | F83: Producto DynamicsCRMOnlineEssentialOpen ShrdSvr SubscriptionVL Government OLP 1License NoLevel Qualified Annual Región 1 a 4 Pago Anual Anticipado 1 Licencia por Usuario 1 Licencia por Usuario | G83: Und | H83: Und | I83: Producto | J83: 634551 | K83: Unión Temporal Nec-Intelecto Acuerdo Marco MS | L83: LP2-00017
A84: 93 | B84: SI | C84: Región Todas | D84: Categoría 5 | E84: Dynamics CRM | F84: DynamicsCRMOnlineEssentialOpen ShrdSvr SubscriptionVL Government OLP 1License NoLevel Qualified Annual Región 1 a 4 Pago Anual Anticipado 1 Licencia por Usuario 1 Licencia por Usuario | G84: Und | H84: Und | I84: Producto | J84: 502139 | K84: Controles Empresariales LTDA | L84: LP2-00017
A85: 93 | B85: SI | C85: Región Todas | D85: Categoría 5 | E85: Dynamics CRM | F85: DynamicsCRMOnlineEssentialOpen ShrdSvr SubscriptionVL Government OLP 1License NoLevel Qualified Annual Región 1 a 4 Pago Anual Anticipado 1 Licencia por Usuario 1 Licencia por Usuario | G85: Und | H85: Und | I85: Producto | J85: 634551 | K85: Unión Temporal Nec-Intelecto Acuerdo Marco MS | L85: LP2-00017
A86: 94 | B86: SI | C86: Región Todas | D86: Categoría 4 | E86: Dynamics CRM | F86: Producto DynamicsCRMOLNon-ProdOpen ShrdSvr SubscriptionVL Government OLP 1License NoLevel Srvcs Qualified Annual Región 1 a 4 Pago Anual Anticipado 1 Licencia por Usuario 1 Licencia por Usuario | G86: Und | H86: Und | I86: Producto | J86: 5065055 | K86: Controles Empresariales LTDA | L86: NU2-00017
A87: 94 | B87: SI | C87: Región Todas | D87: Categoría 4 | E87: Dynamics CRM | F87: Producto DynamicsCRMOLNon-ProdOpen ShrdSvr SubscriptionVL Government OLP 1License NoLevel Srvcs Qualified Annual Región 1 a 4 Pago Anual Anticipado 1 Licencia por Usuario 1 Licencia por Usuario | G87: Und | H87: Und | I87: Producto | J87: 6400684 | K87: Unión Temporal Nec-Intelecto Acuerdo Marco MS | L87: NU2-00017
A88: 94 | B88: SI | C88: Región Todas | D88: Categoría 5 | E88: Dynamics CRM | F88: DynamicsCRMOLNon-ProdOpen ShrdSvr SubscriptionVL Government OLP 1License NoLevel Srvcs Qualified Annual Región 1 a 4 Pago Anual Anticipado 1 Licencia por Usuario 1 Licencia por Usuario | G88: Und | H88: Und | I88: Producto | J88: 5065055 | K88: Controles Empresariales LTDA | L88: NU2-00017
A89: 94 | B89: SI | C89: Región Todas | D89: Categoría 5 | E89: Dynamics CRM | F89: DynamicsCRMOLNon-ProdOpen ShrdSvr SubscriptionVL Government OLP 1License NoLevel Srvcs Qualified Annual Región 1 a 4 Pago Anual Anticipado 1 Licencia por Usuario 1 Licencia por Usuario | G89: Und | H89: Und | I89: Producto | J89: 6400684 | K89: Unión Temporal Nec-Intelecto Acuerdo Marco MS | L89: NU2-00017
A90: 95 | B90: SI | C90: Región Todas | D90: Categoría 4 | E90: Dynamics CRM | F90: Producto DynamicsCRMOLProdInstOpen ShrdSvr SubscriptionVL Government OLP 1License NoLevel Srvcs Qualified Annual Región 1 a 4 Pago Anual Anticipado 1 Licencia por Usuario 1 Licencia por Usuario | G90: Und | H90: Und | I90: Producto | J90: 18557319 | K90: Controles Empresariales LTDA | L90: MF2-00017
A91: 95 | B91: SI | C91: Región Todas | D91: Categoría 4 | E91: Dynamics CRM | F91: Producto DynamicsCRMOLProdInstOpen ShrdSvr SubscriptionVL Government OLP 1License NoLevel Srvcs Qualified Annual Región 1 a 4 Pago Anual Anticipado 1 Licencia por Usuario 1 Licencia por Usuario | G91: Und | H91: Und | I91: Producto | J91: 23450783 | K91: Unión Temporal Nec-Intelecto Acuerdo Marco MS | L91: MF2-00017
A92: 95 | B92: SI | C92: Región Todas | D92: Categoría 5 | E92: Dynamics CRM | F92: DynamicsCRMOLProdInstOpen ShrdSvr SubscriptionVL Government OLP 1License NoLevel Srvcs Qualified Annual Región 1 a 4 Pago Anual Anticipado 1 Licencia por Usuario 1 Licencia por Usuario | G92: Und | H92: Und | I92: Producto | J92: 18557319 | K92: Controles Empresariales LTDA | L92: MF2-00017
A93: 95 | B93: SI | C93: Región Todas | D93: Categoría 5 | E93: Dynamics CRM | F93: DynamicsCRMOLProdInstOpen ShrdSvr SubscriptionVL Government OLP 1License NoLevel Srvcs Qualified Annual Región 1 a 4 Pago Anual Anticipado 1 Licencia por Usuario 1 Licencia por Usuario | G93: Und | H93: Und | I93: Producto | J93: 23450783 | K93: Unión Temporal Nec-Intelecto Acuerdo Marco MS | L93: MF2-00017
A94: 97 | B94: SI | C94: Región Todas | D94: Categoría 4 | E94: Dynamics CRM | F94: Producto DynamicsCRMOLProOpen ShrdSvr SubscriptionVL Government OLP 1License NoLevel Qualified Annual Región 1 a 4 Pago Anual Anticipado 1 Licencia por Usuario 1 Licencia por Usuario | G94: Und | H94: Und | I94: Producto | J94: 2183214 | K94: Controles Empresariales LTDA | L94: LX2-00017
A95: 97 | B95: SI | C95: Región Todas | D95: Categoría 4 | E95: Dynamics CRM | F95: Producto DynamicsCRMOLProOpen ShrdSvr SubscriptionVL Government OLP 1License NoLevel Qualified Annual Región 1 a 4 Pago Anual Anticipado 1 Licencia por Usuario 1 Licencia por Usuario | G95: Und | H95: Und | I95: Producto | J95: 2758916 | K95: Unión Temporal Nec-Intelecto Acuerdo Marco MS | L95: LX2-00017
A96: 97 | B96: SI | C96: Región Todas | D96: Categoría 5 | E96: Dynamics CRM | F96: DynamicsCRMOLProOpen ShrdSvr SubscriptionVL Government OLP 1License NoLevel Qualified Annual Región 1 a 4 Pago Anual Anticipado 1 Licencia por Usuario 1 Licencia por Usuario | G96: Und | H96: Und | I96: Producto | J96: 2183214 | K96: Controles Empresariales LTDA | L96: LX2-00017
A97: 97 | B97: SI | C97: Región Todas | D97: Categoría 5 | E97: Dynamics CRM | F97: DynamicsCRMOLProOpen ShrdSvr SubscriptionVL Government OLP 1License NoLevel Qualified Annual Región 1 a 4 Pago Anual Anticipado 1 Licencia por Usuario 1 Licencia por Usuario | G97: Und | H97: Und | I97: Producto | J97: 2758916 | K97: Unión Temporal Nec-Intelecto Acuerdo Marco MS | L97: LX2-00017
A98: 98 | B98: SI | C98: Región Todas | D98: Categoría 4 | E98: Dynamics CRM | F98: Producto DynamicsCRMOLStorageOpen ShrdSvr SubscriptionVL Government OLP 1License NoLevel AddOn Qualified Annual Región 1 a 4 Pago Anual Anticipado 1 Licencia por Usuario 1 Licencia por Usuario | G98: Und | H98: Und | I98: Producto | J98: 338399 | K98: Controles Empresariales LTDA | L98: MC2-00017
A99: 98 | B99: SI | C99: Región Todas | D99: Categoría 4 | E99: Dynamics CRM | F99: Producto DynamicsCRMOLStorageOpen ShrdSvr SubscriptionVL Government OLP 1License NoLevel AddOn Qualified Annual Región 1 a 4 Pago Anual Anticipado 1 Licencia por Usuario 1 Licencia por Usuario | G99: Und | H99: Und | I99: Producto | J99: 427632 | K99: Unión Temporal Nec-Intelecto Acuerdo Marco MS | L99: MC2-00017
A100: 98 | B100: SI | C100: Región Todas | D100: Categoría 5 | E100: Dynamics CRM | F100: DynamicsCRMOLStorageOpen ShrdSvr SubscriptionVL Government OLP 1License NoLevel AddOn Qualified Annual Región 1 a 4 Pago Anual Anticipado 1 Licencia por Usuario 1 Licencia por Usuario | G100: Und | H100: Und | I100: Producto | J100: 338399 | K100: Controles Empresariales LTDA | L100: MC2-00017
A101: 98 | B101: SI | C101: Región Todas | D101: Categoría 5 | E101: Dynamics CRM | F101: DynamicsCRMOLStorageOpen ShrdSvr SubscriptionVL Government OLP 1License NoLevel AddOn Qualified Annual Región 1 a 4 Pago Anual Anticipado 1 Licencia por Usuario 1 Licencia por Usuario | G101: Und | H101: Und | I101: Producto | J101: 427632 | K101: Unión Temporal Nec-Intelecto Acuerdo Marco MS | L101: MC2-00017
A102: 99 | B102: NO | C102: Región Todas | D102: Categoría 4 | E102: Dynamics CRM | F102: Producto DynamicsCRMProfessionalAddCAL License/SoftwareAssurancePack Government OLP 1License NoLevel DvcCAL Qualified Región 1 a 4 Una sola vez 1 Licencia por Dispositivo 1 Licencia por Dispositivo | G102: Und | H102: Und | I102: Producto | J102: 1912494 | K102: Controles Empresariales LTDA | L102: QYA-00258
A103: 99 | B103: NO | C103: Región Todas | D103: Categoría 4 | E103: Dynamics CRM | F103: Producto DynamicsCRMProfessionalAddCAL License/SoftwareAssurancePack Government OLP 1License NoLevel DvcCAL Qualified Región 1 a 4 Una sola vez 1 Licencia por Dispositivo 1 Licencia por Dispositivo | G103: Und | H103: Und | I103: Producto | J103: 2197201 | K103: Unión Temporal Nec-Intelecto Acuerdo Marco MS | L103: QYA-00258
A104: 100 | B104: NO | C104: Región Todas | D104: Categoría 4 | E104: Dynamics CRM | F104: Producto DynamicsCRMProfessionalAddCAL License/SoftwareAssurancePack Government OLP 1License NoLevel UsrCAL Qualified Región 1 a 4 Una sola vez 1 Licencia por Usuario 1 Licencia por Usuario | G104: Und | H104: Und | I104: Producto | J104: 2525105 | K104: Controles Empresariales LTDA | L104: QYA-00257
A105: 100 | B105: NO | C105: Región Todas | D105: Categoría 4 | E105: Dynamics CRM | F105: Producto DynamicsCRMProfessionalAddCAL License/SoftwareAssurancePack Government OLP 1License NoLevel UsrCAL Qualified Región 1 a 4 Una sola vez 1 Licencia por Usuario 1 Licencia por Usuario | G105: Und | H105: Und | I105: Producto | J105: 2555307 | K105: Unión Temporal Nec-Intelecto Acuerdo Marco MS | L105: QYA-00257
A106: 101 | B106: NO | C106: Región Todas | D106: Categoría 4 | E106: Dynamics CRM | F106: Producto DynamicsCRMProfessionalAddCAL SoftwareAssurance Government OLP 1License NoLevel DvcCAL Qualified Región 1 a 4 Una sola vez 1 Licencia por Dispositivo 1 Licencia por Dispositivo | G106: Und | H106: Und | I106: Producto | J106: 637497 | K106: Controles Empresariales LTDA | L106: QYA-00256
A107: 101 | B107: NO | C107: Región Todas | D107: Categoría 4 | E107: Dynamics CRM | F107: Producto DynamicsCRMProfessionalAddCAL SoftwareAssurance Government OLP 1License NoLevel DvcCAL Qualified Región 1 a 4 Una sola vez 1 Licencia por Dispositivo 1 Licencia por Dispositivo | G107: Und | H107: Und | I107: Producto | J107: 732769 | K107: Unión Temporal Nec-Intelecto Acuerdo Marco MS | L107: QYA-00256
A108: 102 | B108: NO | C108: Región Todas | D108: Categoría 4 | E108: Dynamics CRM | F108: Producto DynamicsCRMProfessionalAddCAL SoftwareAssurance Government OLP 1License NoLevel UsrCAL Qualified Región 1 a 4 Una sola vez 1 Licencia por Usuario 1 Licencia por Usuario | G108: Und | H108: Und | I108: Producto | J108: 841847 | K108: Controles Empresariales LTDA | L108: QYA-00255
A109: 102 | B109: NO | C109: Región Todas | D109: Categoría 4 | E109: Dynamics CRM | F109: Producto DynamicsCRMProfessionalAddCAL SoftwareAssurance Government OLP 1License NoLevel UsrCAL Qualified Región 1 a 4 Una sola vez 1 Licencia por Usuario 1 Licencia por Usuario | G109: Und | H109: Und | I109: Producto | J109: 851953 | K109: Unión Temporal Nec-Intelecto Acuerdo Marco MS | L109: QYA-00255
A110: 103 | B110: NO | C110: Región Todas | D110: Categoría 4 | E110: Dynamics CRM | F110: Producto DynamicsCRMProfessionalCAL License/SoftwareAssurancePack Government OLP 1License NoLevel DvcCAL Qualified Región 1 a 4 Una sola vez 1 Licencia por Dispositivo 1 Licencia por Dispositivo | G110: Und | H110: Und | I110: Producto | J110: 2727707 | K110: Controles Empresariales LTDA | L110: ZFA-00200
A111: 103 | B111: NO | C111: Región Todas | D111: Categoría 4 | E111: Dynamics CRM | F111: Producto DynamicsCRMProfessionalCAL License/SoftwareAssurancePack Government OLP 1License NoLevel DvcCAL Qualified Región 1 a 4 Una sola vez 1 Licencia por Dispositivo 1 Licencia por Dispositivo | G111: Und | H111: Und | I111: Producto | J111: 3133025 | K111: Unión Temporal Nec-Intelecto Acuerdo Marco MS | L111: ZFA-00200
A112: 104 | B112: NO | C112: Región Todas | D112: Categoría 4 | E112: Dynamics CRM | F112: Producto DynamicsCRMProfessionalCAL License/SoftwareAssurancePack Government OLP 1License NoLevel UsrCAL Qualified Región 1 a 4 Una sola vez 1 Licencia por Usuario 1 Licencia por Usuario | G112: Und | H112: Und | I112: Producto | J112: 3869964 | K112: Controles Empresariales LTDA | L112: ZFA-00199
A113: 104 | B113: NO | C113: Región Todas | D113: Categoría 4 | E113: Dynamics CRM | F113: Producto DynamicsCRMProfessionalCAL License/SoftwareAssurancePack Government OLP 1License NoLevel UsrCAL Qualified Región 1 a 4 Una sola vez 1 Licencia por Usuario 1 Licencia por Usuario | G113: Und | H113: Und | I113: Producto | J113: 3916557 | K113: Unión Temporal Nec-Intelecto Acuerdo Marco MS | L113: ZFA-00199
A114: 105 | B114: NO | C114: Región Todas | D114: Categoría 4 | E114: Dynamics CRM | F114: Producto DynamicsCRMProfessionalCAL SoftwareAssurance Government OLP 1License NoLevel DvcCAL Qualified Región 1 a 4 Una sola vez 1 Licencia por Dispositivo 1 Licencia por Dispositivo | G114: Und | H114: Und | I114: Producto | J114: 909089 | K114: Controles Empresariales LTDA | L114: ZFA-00198
A115: 105 | B115: NO | C115: Región Todas | D115: Categoría 4 | E115: Dynamics CRM | F115: Producto DynamicsCRMProfessionalCAL SoftwareAssurance Government OLP 1License NoLevel DvcCAL Qualified Región 1 a 4 Una sola vez 1 Licencia por Dispositivo 1 Licencia por Dispositivo | G115: Und | H115: Und | I115: Producto | J115: 1044046 | K115: Unión Temporal Nec-Intelecto Acuerdo Marco MS | L115: ZFA-00198
A116: 106 | B116: NO | C116: Región Todas | D116: Categoría 4 | E116: Dynamics CRM | F116: Producto DynamicsCRMProfessionalCAL SoftwareAssurance Government OLP 1License NoLevel UsrCAL Qualified Región 1 a 4 Una sola vez 1 Licencia por Usuario 1 Licencia por Usuario | G116: Und | H116: Und | I116: Producto | J116: 1289842 | K116: Controles Empresariales LTDA | L116: ZFA-00197 | M116: 1
A117: 106 | B117: NO | C117: Región Todas | D117: Categoría 4 | E117: Dynamics CRM | F117: Producto DynamicsCRMProfessionalCAL SoftwareAssurance Government OLP 1License NoLevel UsrCAL Qualified Región 1 a 4 Una sola vez 1 Licencia por Usuario 1 Licencia por Usuario | G117: Und | H117: Und | I117: Producto | J117: 1305520 | K117: Unión Temporal Nec-Intelecto Acuerdo Marco MS | L117: ZFA-00197 | M117: 2
A118: 107 | B118: NO | C118: Región Todas | D118: Categoría 4 | E118: Dynamics CRM | F118: Producto DynamicsCRMSvr License/SoftwareAssurancePack Government OLP 1License NoLevel 5Client Región 1 a 4 Una sola vez 1 Licencia por Servidor 1 Licencia por Servidor | G118: Und | H118: Und | I118: Producto | J118: 34121448 | K118: Controles Empresariales LTDA | L118: N9J-00335
A119: 107 | B119: NO | C119: Región Todas | D119: Categoría 4 | E119: Dynamics CRM | F119: Producto DynamicsCRMSvr License/SoftwareAssurancePack Government OLP 1License NoLevel 5Client Región 1 a 4 Una sola vez 1 Licencia por Servidor 1 Licencia por Servidor | G119: Und | H119: Und | I119: Producto | J119: 39199223 | K119: Unión Temporal Nec-Intelecto Acuerdo Marco MS | L119: N9J-00335
A120: 108 | B120: NO | C120: Región Todas | D120: Categoría 4 | E120: Dynamics CRM | F120: Producto DynamicsCRMSvr License/SoftwareAssurancePack Government OLP 1License NoLevel Qualified Región 1 a 4 Una sola vez 1 Licencia por Servidor 1 Licencia por Servidor | G120: Und | H120: Und | I120: Producto | J120: 17074476 | K120: Controles Empresariales LTDA | L120: N9J-00651
A121: 108 | B121: NO | C121: Región Todas | D121: Categoría 4 | E121: Dynamics CRM | F121: Producto DynamicsCRMSvr License/SoftwareAssurancePack Government OLP 1License NoLevel Qualified Región 1 a 4 Una sola vez 1 Licencia por Servidor 1 Licencia por Servidor | G121: Und | H121: Und | I121: Producto | J121: 19615889 | K121: Unión Temporal Nec-Intelecto Acuerdo Marco MS | L121: N9J-00651
A122: 109 | B122: NO | C122: Región Todas | D122: Categoría 4 | E122: Dynamics CRM | F122: Producto DynamicsCRMSvr SoftwareAssurance Government OLP 1License NoLevel 5Client Región 1 a 4 Una sola vez 1 Licencia por Servidor 1 Licencia por Servidor | G122: Und | H122: Und | I122: Producto | J122: 11373671 | K122: Controles Empresariales LTDA | L122: N9J-00336
A123: 109 | B123: NO | C123: Región Todas | D123: Categoría 4 | E123: Dynamics CRM | F123: Producto DynamicsCRMSvr SoftwareAssurance Government OLP 1License NoLevel 5Client Región 1 a 4 Una sola vez 1 Licencia por Servidor 1 Licencia por Servidor | G123: Und | H123: Und | I123: Producto | J123: 13066224 | K123: Unión Temporal Nec-Intelecto Acuerdo Marco MS | L123: N9J-00336
A124: 110 | B124: NO | C124: Región Todas | D124: Categoría 4 | E124: Dynamics CRM | F124: Producto DynamicsCRMSvr SoftwareAssurance Government OLP 1License NoLevel Qualified Región 1 a 4 Una sola vez 1 Licencia por Servidor 1 Licencia por Servidor | G124: Und | H124: Und | I124: Producto | J124: 5691201 | K124: Controles Empresariales LTDA | L124: N9J-00652
A125: 110 | B125: NO | C125: Región Todas | D125: Categoría 4 | E125: Dynamics CRM | F125: Producto DynamicsCRMSvr SoftwareAssurance Government OLP 1License NoLevel Qualified Región 1 a 4 Una sola vez 1 Licencia por Servidor 1 Licencia por Servidor | G125: Und | H125: Und | I125: Producto | J125: 6538630 | K125: Unión Temporal Nec-Intelecto Acuerdo Marco MS | L125: N9J-00652
A126: 111 | B126: NO | C126: Región Todas | D126: Categoría 4 | E126: Dynamics CRM | F126: Producto DynamicsCRMWorkgroupSvr License/SoftwareAssurancePack Government OLP 1License NoLevel Qualified Región 1 a 4 Una sola vez 1 Licencia por Servidor 1 Licencia por Servidor | G126: Und | H126: Und | I126: Producto | J126: 8538548 | K126: Controles Empresariales LTDA | L126: QAA-00201
A127: 111 | B127: NO | C127: Región Todas | D127: Categoría 4 | E127: Dynamics CRM | F127: Producto DynamicsCRMWorkgroupSvr License/SoftwareAssurancePack Government OLP 1License NoLevel Qualified Región 1 a 4 Una sola vez 1 Licencia por Servidor 1 Licencia por Servidor | G127: Und | H127: Und | I127: Producto | J127: 9806842 | K127: Unión Temporal Nec-Intelecto Acuerdo Marco MS | L127: QAA-00201
A128: 112 | B128: NO | C128: Región Todas | D128: Categoría 4 | E128: Dynamics CRM | F128: Producto DynamicsCRMWorkgroupSvr SoftwareAssurance Government OLP 1License NoLevel Qualified Región 1 a 4 Una sola vez 1 Licencia por Servidor 1 Licencia por Servidor | G128: Und | H128: Und | I128: Producto | J128: 2846036 | K128: Controles Empresariales LTDA | L128: QAA-00200
A129: 112 | B129: NO | C129: Región Todas | D129: Categoría 4 | E129: Dynamics CRM | F129: Producto DynamicsCRMWorkgroupSvr SoftwareAssurance Government OLP 1License NoLevel Qualified Región 1 a 4 Una sola vez 1 Licencia por Servidor 1 Licencia por Servidor | G129: Und | H129: Und | I129: Producto | J129: 3268763 | K129: Unión Temporal Nec-Intelecto Acuerdo Marco MS | L129: QAA-00200
A130: 121 | B130: NO | C130: Región Todas | D130: Categoría 4 | E130: Gestión de Identidades MIM | F130: IdentityManager-CAL 2016 Government OLP 1License NoLevel UsrCAL 1 Licencia por Usuario | G130: Und | H130: Und | I130: Producto | J130: 41917 | K130: Controles Empresariales LTDA | L130: N/A
A131: 121 | B131: NO | C131: Región Todas | D131: Categoría 4 | E131: Gestión de Identidades MIM | F131: IdentityManager-CAL 2016 Government OLP 1License NoLevel UsrCAL 1 Licencia por Usuario | G131: Und | H131: Und | I131: Producto | J131: 52970 | K131: Unión Temporal Nec-Intelecto Acuerdo Marco MS | L131: N/A
A132: 122 | B132: NO | C132: Región Todas | D132: Categoría 4 | E132: Gestión de Identidades MIM | F132: IdentityManager-CAL License/SoftwareAssurancePack Government OLP 1License NoLevel UsrCAL 1 Licencia por Usuario | G132: Und | H132: Und | I132: Producto | J132: 62876 | K132: Controles Empresariales LTDA | L132: N/A
A133: 122 | B133: NO | C133: Región Todas | D133: Categoría 4 | E133: Gestión de Identidades MIM | F133: IdentityManager-CAL License/SoftwareAssurancePack Government OLP 1License NoLevel UsrCAL 1 Licencia por Usuario | G133: Und | H133: Und | I133: Producto | J133: 79457 | K133: Unión Temporal Nec-Intelecto Acuerdo Marco MS | L133: N/A
A134: 123 | B134: NO | C134: Región Todas | D134: Categoría 4 | E134: Gestión de Identidades MIM | F134: IdentityManager-CAL SoftwareAssurance Government OLP 1License NoLevel UsrCAL 1 Licencia por Usuario | G134: Und | H134: Und | I134: Producto | J134: 20959 | K134: Controles Empresariales LTDA | L134: N/A
A135: 123 | B135: NO | C135: Región Todas | D135: Categoría 4 | E135: Gestión de Identidades MIM | F135: IdentityManager-CAL SoftwareAssurance Government OLP 1License NoLevel UsrCAL 1 Licencia por Usuario | G135: Und | H135: Und | I135: Producto | J135: 26485 | K135: Unión Temporal Nec-Intelecto Acuerdo Marco MS | L135: N/A
A136: 124 | B136: NO | C136: Región Todas | D136: Categoría 4 | E136: Gestión de Identidades MIM | F136: IdentityManagerExternalConnector 2016 Government OLP 1License NoLevel Qualified 1 Licencia por Servidor | G136: Und | H136: Und | I136: Producto | J136: 43023722 | K136: Controles Empresariales LTDA | L136: N/A
A137: 124 | B137: NO | C137: Región Todas | D137: Categoría 4 | E137: Gestión de Identidades MIM | F137: IdentityManagerExternalConnector 2016 Government OLP 1License NoLevel Qualified 1 Licencia por Servidor | G137: Und | H137: Und | I137: Producto | J137: 54368844 | K137: Unión Temporal Nec-Intelecto Acuerdo Marco MS | L137: N/A
A138: 125 | B138: NO | C138: Región Todas | D138: Categoría 4 | E138: Gestión de Identidades MIM | F138: IdentityManagerExternalConnector License/SoftwareAssurancePack Government OLP 1License NoLevel Qualified 1 Licencia por Servidor | G138: Und | H138: Und | I138: Producto | J138: 64535366 | K138: Controles Empresariales LTDA | L138: N/A
A139: 125 | B139: NO | C139: Región Todas | D139: Categoría 4 | E139: Gestión de Identidades MIM | F139: IdentityManagerExternalConnector License/SoftwareAssurancePack Government OLP 1License NoLevel Qualified 1 Licencia por Servidor | G139: Und | H139: Und | I139: Producto | J139: 81552989 | K139: Unión Temporal Nec-Intelecto Acuerdo Marco MS | L139: N/A
A140: 126 | B140: NO | C140: Región Todas | D140: Categoría 4 | E140: Gestión de Identidades MIM | F140: IdentityManagerExternalConnector SoftwareAssurance Government OLP 1License NoLevel Qualified 1 Licencia por Servidor | G140: Und | H140: Und | I140: Producto | J140: 21511644 | K140: Controles Empresariales LTDA | L140: N/A
A141: 126 | B141: NO | C141: Región Todas | D141: Categoría 4 | E141: Gestión de Identidades MIM | F141: IdentityManagerExternalConnector SoftwareAssurance Government OLP 1License NoLevel Qualified 1 Licencia por Servidor | G141: Und | H141: Und | I141: Producto | J141: 27184147 | K141: Unión Temporal Nec-Intelecto Acuerdo Marco MS | L141: N/A
A142: 235 | B142: NO | C142: Región Todas | D142: Categoría 4 | E142: Right Management Services | F142: Producto WindowsRightsMgtServicesCAL 2016 Government OLP 1License NoLevel DvcCAL Región 1 a 4 Una sola vez 1 Licencia por Dispositivo 1 Licencia por Dispositivo | G142: Und | H142: Und | I142: Producto | J142: 85582 | K142: Controles Empresariales LTDA | L142: T98-02846
A143: 235 | B143: NO | C143: Región Todas | D143: Categoría 4 | E143: Right Management Services | F143: Producto WindowsRightsMgtServicesCAL 2016 Government OLP 1License NoLevel DvcCAL Región 1 a 4 Una sola vez 1 Licencia por Dispositivo 1 Licencia por Dispositivo | G143: Und | H143: Und | I143: Producto | J143: 108149 | K143: Unión Temporal Nec-Intelecto Acuerdo Marco MS | L143: T98-02846
A144: 236 | B144: NO | C144: Región Todas | D144: Categoría 4 | E144: Right Management Services | F144: Producto WindowsRightsMgtServicesCAL 2016 Government OLP 1License NoLevel UsrCAL Región 1 a 4 Una sola vez 1 Licencia por Usuario 1 Licencia por Usuario | G144: Und | H144: Und | I144: Producto | J144: 98682 | K144: Controles Empresariales LTDA | L144: T98-02847
A145: 236 | B145: NO | C145: Región Todas | D145: Categoría 4 | E145: Right Management Services | F145: Producto WindowsRightsMgtServicesCAL 2016 Government OLP 1License NoLevel UsrCAL Región 1 a 4 Una sola vez 1 Licencia por Usuario 1 Licencia por Usuario | G145: Und | H145: Und | I145: Producto | J145: 136809 | K145: Unión Temporal Nec-Intelecto Acuerdo Marco MS | L145: T98-02847
A146: 237 | B146: NO | C146: Región Todas | D146: Categoría 4 | E146: Right Management Services | F146: Producto WindowsRightsMgtServicesCAL WinNT License/SoftwareAssurancePack Government OLP 1License NoLevel DvcCAL Región 1 a 4 Una sola vez 1 Licencia por Dispositivo 1 Licencia por Dispositivo | G146: Und | H146: Und | I146: Producto | J146: 128372 | K146: Controles Empresariales LTDA | L146: T98-01066
A147: 237 | B147: NO | C147: Región Todas | D147: Categoría 4 | E147: Right Management Services | F147: Producto WindowsRightsMgtServicesCAL WinNT License/SoftwareAssurancePack Government OLP 1License NoLevel DvcCAL Región 1 a 4 Una sola vez 1 Licencia por Dispositivo 1 Licencia por Dispositivo | G147: Und | H147: Und | I147: Producto | J147: 162224 | K147: Unión Temporal Nec-Intelecto Acuerdo Marco MS | L147: T98-01066
A148: 238 | B148: NO | C148: Región Todas | D148: Categoría 4 | E148: Right Management Services | F148: Producto WindowsRightsMgtServicesCAL WinNT License/SoftwareAssurancePack Government OLP 1License NoLevel UsrCAL Región 1 a 4 Una sola vez 1 Licencia por Usuario 1 Licencia por Usuario | G148: Und | H148: Und | I148: Producto | J148: 147586 | K148: Controles Empresariales LTDA | L148: T98-01068
A149: 238 | B149: NO | C149: Región Todas | D149: Categoría 4 | E149: Right Management Services | F149: Producto WindowsRightsMgtServicesCAL WinNT License/SoftwareAssurancePack Government OLP 1License NoLevel UsrCAL Región 1 a 4 Una sola vez 1 Licencia por Usuario 1 Licencia por Usuario | G149: Und | H149: Und | I149: Producto | J149: 186502 | K149: Unión Temporal Nec-Intelecto Acuerdo Marco MS | L149: T98-01068
A150: 239 | B150: NO | C150: Región Todas | D150: Categoría 4 | E150: Right Management Services | F150: Producto WindowsRightsMgtServicesCAL WinNT SoftwareAssurance Government OLP 1License NoLevel DvcCAL Región 1 a 4 Una sola vez 1 Licencia por Dispositivo 1 Licencia por Dispositivo | G150: Und | H150: Und | I150: Producto | J150: 42791 | K150: Controles Empresariales LTDA | L150: T98-01067
A151: 239 | B151: NO | C151: Región Todas | D151: Categoría 4 | E151: Right Management Services | F151: Producto WindowsRightsMgtServicesCAL WinNT SoftwareAssurance Government OLP 1License NoLevel DvcCAL Región 1 a 4 Una sola vez 1 Licencia por Dispositivo 1 Licencia por Dispositivo | G151: Und | H151: Und | I151: Producto | J151: 54074 | K151: Unión Temporal Nec-Intelecto Acuerdo Marco MS | L151: T98-01067
A152: 240 | B152: NO | C152: Región Todas | D152: Categoría 4 | E152: Right Management Services | F152: Producto WindowsRightsMgtServicesCAL WinNT SoftwareAssurance Government OLP 1License NoLevel UsrCAL Región 1 a 4 Una sola vez 1 Licencia por Usuario 1 Licencia por Usuario | G152: Und | H152: Und | I152: Producto | J152: 48904 | K152: Controles Empresariales LTDA | L152: T98-01069
A153: 240 | B153: NO | C153: Región Todas | D153: Categoría 4 | E153: Right Management Services | F153: Producto WindowsRightsMgtServicesCAL WinNT SoftwareAssurance Government OLP 1License NoLevel UsrCAL Región 1 a 4 Una sola vez 1 Licencia por Usuario 1 Licencia por Usuario | G153: Und | H153: Und | I153: Producto | J153: 61798 | K153: Unión Temporal Nec-Intelecto Acuerdo Marco MS | L153: T98-01069
A154: 241 | B154: NO | C154: Región Todas | D154: Categoría 4 | E154: Right Management Services | F154: Producto WindowsRightsMgtServicesExternalConnector 2016 Government OLP 1License NoLevel Qualified Región 1 a 4 Una sola vez 1 Licencia por Servidor 1 Licencia por Servidor | G154: Und | H154: Und | I154: Producto | J154: 42839458 | K154: Controles Empresariales LTDA | L154: T99-01135
A155: 241 | B155: NO | C155: Región Todas | D155: Categoría 4 | E155: Right Management Services | F155: Producto WindowsRightsMgtServicesExternalConnector 2016 Government OLP 1License NoLevel Qualified Región 1 a 4 Una sola vez 1 Licencia por Servidor 1 Licencia por Servidor | G155: Und | H155: Und | I155: Producto | J155: 54135992 | K155: Unión Temporal Nec-Intelecto Acuerdo Marco MS | L155: T99-01135
A156: 242 | B156: NO | C156: Región Todas | D156: Categoría 4 | E156: Right Management Services | F156: Producto WindowsRightsMgtServicesExternalConnector WinNT License/SoftwareAssurancePack Government OLP 1License NoLevel Qualified Región 1 a 4 Una sola vez 1 Licencia por Servidor 1 Licencia por Servidor | G156: Und | H156: Und | I156: Producto | J156: 64259407 | K156: Controles Empresariales LTDA | L156: T99-00478
A157: 242 | B157: NO | C157: Región Todas | D157: Categoría 4 | E157: Right Management Services | F157: Producto WindowsRightsMgtServicesExternalConnector WinNT License/SoftwareAssurancePack Government OLP 1License NoLevel Qualified Región 1 a 4 Una sola vez 1 Licencia por Servidor 1 Licencia por Servidor | G157: Und | H157: Und | I157: Producto | J157: 81204263 | K157: Unión Temporal Nec-Intelecto Acuerdo Marco MS | L157: T99-00478
A158: 243 | B158: NO | C158: Región Todas | D158: Categoría 4 | E158: Right Management Services | F158: Producto WindowsRightsMgtServicesExternalConnector WinNT SoftwareAssurance Government OLP 1License NoLevel Qualified Región 1 a 4 Una sola vez 1 Licencia por Servidor 1 Licencia por Servidor | G158: Und | H158: Und | I158: Producto | J158: 21419948 | K158: Controles Empresariales LTDA | L158: T99-00476
A159: 243 | B159: NO | C159: Región Todas | D159: Categoría 4 | E159: Right Management Services | F159: Producto WindowsRightsMgtServicesExternalConnector WinNT SoftwareAssurance Government OLP 1License NoLevel Qualified Región 1 a 4 Una sola vez 1 Licencia por Servidor 1 Licencia por Servidor | G159: Und | H159: Und | I159: Producto | J159: 27068271 | K159: Unión Temporal Nec-Intelecto Acuerdo Marco MS | L159: T99-00476
A160: 246 | B160: NO | C160: Región Todas | D160: Categoría 4 | E160: Sistema Operativo Windows Server | F160: Windows®ServerCAL 2016 Government OLP 1License NoLevel DvcCAL 1 Licencia por Dispositivo | G160: Und | H160: Und | I160: Producto | J160: 68553 | K160: Controles Empresariales LTDA | L160: R18-05158
A161: 246 | B161: NO | C161: Región Todas | D161: Categoría 4 | E161: Sistema Operativo Windows Server | F161: Windows®ServerCAL 2016 Government OLP 1License NoLevel DvcCAL 1 Licencia por Dispositivo | G161: Und | H161: Und | I161: Producto | J161: 86630 | K161: Unión Temporal Nec-Intelecto Acuerdo Marco MS | L161: R18-05158
A162: 247 | B162: NO | C162: Región Todas | D162: Categoría 4 | E162: Sistema Operativo Windows Server | F162: Windows®ServerCAL 2016 Government OLP 1License NoLevel UsrCAL 1 Licencia por Usuario | G162: Und | H162: Und | I162: Producto | J162: 79032 | K162: Controles Empresariales LTDA | L162: R18-05159
A163: 247 | B163: NO | C163: Región Todas | D163: Categoría 4 | E163: Sistema Operativo Windows Server | F163: Windows®ServerCAL 2016 Government OLP 1License NoLevel UsrCAL 1 Licencia por Usuario | G163: Und | H163: Und | I163: Producto | J163: 99872 | K163: Unión Temporal Nec-Intelecto Acuerdo Marco MS | L163: R18-05159
A164: 248 | B164: NO | C164: Región Todas | D164: Categoría 4 | E164: Sistema Operativo Windows Server | F164: Windows®ServerCAL License/SoftwareAssurancePack Government OLP 1License NoLevel DvcCAL 1 Licencia por Dispositivo | G164: Und | H164: Und | I164: Producto | J164: 102611 | K164: Controles Empresariales LTDA | L164: R18-01634
A165: 248 | B165: NO | C165: Región Todas | D165: Categoría 4 | E165: Sistema Operativo Windows Server | F165: Windows®ServerCAL License/SoftwareAssurancePack Government OLP 1License NoLevel DvcCAL 1 Licencia por Dispositivo | G165: Und | H165: Und | I165: Producto | J165: 129670 | K165: Unión Temporal Nec-Intelecto Acuerdo Marco MS | L165: R18-01634
A166: 249 | B166: NO | C166: Región Todas | D166: Categoría 4 | E166: Sistema Operativo Windows Server | F166: Windows®ServerCAL License/SoftwareAssurancePack Government OLP 1License NoLevel UsrCAL 1 Licencia por Usuario | G166: Und | H166: Und | I166: Producto | J166: 118331 | K166: Controles Empresariales LTDA | L166: R18-01633
A167: 249 | B167: NO | C167: Región Todas | D167: Categoría 4 | E167: Sistema Operativo Windows Server | F167: Windows®ServerCAL License/SoftwareAssurancePack Government OLP 1License NoLevel UsrCAL 1 Licencia por Usuario | G167: Und | H167: Und | I167: Producto | J167: 149534 | K167: Unión Temporal Nec-Intelecto Acuerdo Marco MS | L167: R18-01633
A168: 250 | B168: NO | C168: Región Todas | D168: Categoría 4 | E168: Sistema Operativo Windows Server | F168: Windows®ServerCAL SoftwareAssurance Government OLP 1License NoLevel DvcCAL 1 Licencia por Dispositivo | G168: Und | H168: Und | I168: Producto | J168: 34059 | K168: Controles Empresariales LTDA | L168: R18-01636
A169: 250 | B169: NO | C169: Región Todas | D169: Categoría 4 | E169: Sistema Operativo Windows Server | F169: Windows®ServerCAL SoftwareAssurance Government OLP 1License NoLevel DvcCAL 1 Licencia por Dispositivo | G169: Und | H169: Und | I169: Producto | J169: 43039 | K169: Unión Temporal Nec-Intelecto Acuerdo Marco MS | L169: R18-01636
A170: 251 | B170: NO | C170: Región Todas | D170: Categoría 4 | E170: Sistema Operativo Windows Server | F170: Windows®ServerCAL SoftwareAssurance Government OLP 1License NoLevel UsrCAL 1 Licencia por Usuario | G170: Und | H170: Und | I170: Producto | J170: 39298 | K170: Controles Empresariales LTDA | L170: R18-01635
A171: 251 | B171: NO | C171: Región Todas | D171: Categoría 4 | E171: Sistema Operativo Windows Server | F171: Windows®ServerCAL SoftwareAssurance Government OLP 1License NoLevel UsrCAL 1 Licencia por Usuario | G171: Und | H171: Und | I171: Producto | J171: 49661 | K171: Unión Temporal Nec-Intelecto Acuerdo Marco MS | L171: R18-01635
A172: 255 | B172: NO | C172: Región Todas | D172: Categoría 4 | E172: Sistema Operativo Windows Server | F172: Windows®ServerExternalConnector 2016 Government OLP 1License NoLevel Qualified 1 Licencia por Servidor | G172: Und | H172: Und | I172: Producto | J172: 4745871 | K172: Controles Empresariales LTDA | L172: R39-01199
A173: 255 | B173: NO | C173: Región Todas | D173: Categoría 4 | E173: Sistema Operativo Windows Server | F173: Windows®ServerExternalConnector 2016 Government OLP 1License NoLevel Qualified 1 Licencia por Servidor | G173: Und | H173: Und | I173: Producto | J173: 5997318 | K173: Unión Temporal Nec-Intelecto Acuerdo Marco MS | L173: R39-01199
A174: 256 | B174: NO | C174: Región Todas | D174: Categoría 4 | E174: Sistema Operativo Windows Server | F174: Windows®ServerExternalConnector License/SoftwareAssurancePack Government OLP 1License NoLevel Qualified 1 Licencia por Servidor | G174: Und | H174: Und | I174: Producto | J174: 7118587 | K174: Controles Empresariales LTDA | L174: R39-00557
A175: 256 | B175: NO | C175: Región Todas | D175: Categoría 4 | E175: Sistema Operativo Windows Server | F175: Windows®ServerExternalConnector License/SoftwareAssurancePack Government OLP 1License NoLevel Qualified 1 Licencia por Servidor | G175: Und | H175: Und | I175: Producto | J175: 8995720 | K175: Unión Temporal Nec-Intelecto Acuerdo Marco MS | L175: R39-00557
A176: 257 | B176: NO | C176: Región Todas | D176: Categoría 4 | E176: Sistema Operativo Windows Server | F176: Windows®ServerExternalConnector SoftwareAssurance Government OLP 1License NoLevel Qualified 1 Licencia por Servidor | G176: Und | H176: Und | I176: Producto | J176: 2372717 | K176: Controles Empresariales LTDA | L176: R39-00558
A177: 257 | B177: NO | C177: Región Todas | D177: Categoría 4 | E177: Sistema Operativo Windows Server | F177: Windows®ServerExternalConnector SoftwareAssurance Government OLP 1License NoLevel Qualified 1 Licencia por Servidor | G177: Und | H177: Und | I177: Producto | J177: 2998390 | K177: Unión Temporal Nec-Intelecto Acuerdo Marco MS | L177: R39-00558
A178: 261 | B178: NO | C178: Región Todas | D178: Categoría 4 | E178: Social Listening | F178: Producto SocialListeningAddlPostsOpen ShrdSvr SubscriptionVL Government OLP 1License NoLevel AddOn Qualified Annual Región 1 a 4 Pago Anual Anticipado 1 Licencia por Usuario 1 Licencia por Usuario | G178: Und | H178: Und | I178: Producto | J178: 3381362 | K178: Controles Empresariales LTDA | L178: N/A
A179: 261 | B179: NO | C179: Región Todas | D179: Categoría 4 | E179: Social Listening | F179: Producto SocialListeningAddlPostsOpen ShrdSvr SubscriptionVL Government OLP 1License NoLevel AddOn Qualified Annual Región 1 a 4 Pago Anual Anticipado 1 Licencia por Usuario 1 Licencia por Usuario | G179: Und | H179: Und | I179: Producto | J179: 44941182 | K179: Unión Temporal Nec-Intelecto Acuerdo Marco MS | L179: N/A
A180: 274 | B180: NO | C180: Región Todas | D180: Categoría 4 | F180: Instalación de Licencia o Licencia con Software Assurance- Plata | G180: Und | H180: Und | I180: Servicio | J180: 56829 | K180: Controles Empresariales LTDA | L180: aaa-00000
A181: 274 | B181: NO | C181: Región Todas | D181: Categoría 4 | F181: Instalación de Licencia o Licencia con Software Assurance- Plata | G181: Und | H181: Und | I181: Servicio | J181: 353324 | K181: Unión Temporal Nec-Intelecto Acuerdo Marco MS | L181: aaa-00000
A182: 275 | B182: NO | C182: Región Todas | D182: Categoría 4 | F182: Instalación Suscripción anual- Plata | G182: Und | H182: Und | I182: Servicio | J182: 56829 | K182: Controles Empresariales LTDA | L182: aaa-00000
A183: 275 | B183: NO | C183: Región Todas | D183: Categoría 4 | F183: Instalación Suscripción anual- Plata | G183: Und | H183: Und | I183: Servicio | J183: 353324 | K183: Unión Temporal Nec-Intelecto Acuerdo Marco MS | L183: aaa-00000
A184: 276 | B184: NO | C184: Región Todas | D184: Categoría 4 | F184: Instalación de Licencia o Licencia con Software Assurance- Oro | G184: Und | H184: Und | I184: Servicio | J184: 68195 | K184: Controles Empresariales LTDA | L184: aaa-00000
A185: 276 | B185: NO | C185: Región Todas | D185: Categoría 4 | F185: Instalación de Licencia o Licencia con Software Assurance- Oro | G185: Und | H185: Und | I185: Servicio | J185: 421769 | K185: Unión Temporal Nec-Intelecto Acuerdo Marco MS | L185: aaa-00000
A186: 277 | B186: NO | C186: Región Todas | D186: Categoría 4 | F186: Instalación Suscripción anual Oro | G186: Und | H186: Und | I186: Servicio | J186: 68195 | K186: Controles Empresariales LTDA | L186: aaa-00000
A187: 277 | B187: NO | C187: Región Todas | D187: Categoría 4 | F187: Instalación Suscripción anual Oro | G187: Und | H187: Und | I187: Servicio | J187: 37397 | K187: Unión Temporal Nec-Intelecto Acuerdo Marco MS | L187: aaa-00000
A188: 278 | B188: NO | C188: Región 1 | D188: Categoría 4 | F188: Soporte técnico en sitio - profesional plata | G188: Mes | H188: Und | I188: Servicio | J188: 4752987 | K188: Controles Empresariales LTDA | L188: aaa-00000
A189: 278 | B189: NO | C189: Región 1 | D189: Categoría 4 | F189: Soporte técnico en sitio - profesional plata | G189: Mes | H189: Und | I189: Servicio | J189: 15279873 | K189: Unión Temporal Nec-Intelecto Acuerdo Marco MS | L189: aaa-00000
A190: 279 | B190: NO | C190: Región 1 | D190: Categoría 4 | F190: Soporte técnico en sitio - Técnico plata | G190: Mes | H190: Und | I190: Servicio | J190: 2296129 | K190: Controles Empresariales LTDA | L190: aaa-00000
A191: 279 | B191: NO | C191: Región 1 | D191: Categoría 4 | F191: Soporte técnico en sitio - Técnico plata | G191: Mes | H191: Und | I191: Servicio | J191: 17333220 | K191: Unión Temporal Nec-Intelecto Acuerdo Marco MS | L191: aaa-00000
A192: 280 | B192: NO | C192: Región 2 | D192: Categoría 4 | F192: Soporte técnico en sitio - profesional plata | G192: Mes | H192: Und | I192: Servicio | J192: 4752987 | K192: Controles Empresariales LTDA | L192: aaa-00000
A193: 280 | B193: NO | C193: Región 2 | D193: Categoría 4 | F193: Soporte técnico en sitio - profesional plata | G193: Mes | H193: Und | I193: Servicio | J193: 15279873 | K193: Unión Temporal Nec-Intelecto Acuerdo Marco MS | L193: aaa-00000
A194: 281 | B194: NO | C194: Región 2 | D194: Categoría 4 | F194: Soporte técnico en sitio - Técnico plata | G194: Mes | H194: Und | I194: Servicio | J194: 2296129 | K194: Controles Empresariales LTDA | L194: aaa-00000
A195: 281 | B195: NO | C195: Región 2 | D195: Categoría 4 | F195: Soporte técnico en sitio - Técnico plata | G195: Mes | H195: Und | I195: Servicio | J195: 17333220 | K195: Unión Temporal Nec-Intelecto Acuerdo Marco MS | L195: aaa-00000
A196: 282 | B196: NO | C196: Región 3 | D196: Categoría 4 | F196: Soporte técnico en sitio - profesional plata | G196: Mes | H196: Und | I196: Servicio | J196: 4752987 | K196: Controles Empresariales LTDA | L196: aaa-00000
A197: 282 | B197: NO | C197: Región 3 | D197: Categoría 4 | F197: Soporte técnico en sitio - profesional plata | G197: Mes | H197: Und | I197: Servicio | J197: 15279873 | K197: Unión Temporal Nec-Intelecto Acuerdo Marco MS | L197: aaa-00000
A198: 283 | B198: NO | C198: Región 3 | D198: Categoría 4 | F198: Soporte técnico en sitio - Técnico plata | G198: Mes | H198: Und | I198: Servicio | J198: 2296129 | K198: Controles Empresariales LTDA | L198: aaa-00000
A199: 283 | B199: NO | C199: Región 3 | D199: Categoría 4 | F199: Soporte técnico en sitio - Técnico plata | G199: Mes | H199: Und | I199: Servicio | J199: 17333220 | K199: Unión Temporal Nec-Intelecto Acuerdo Marco MS | L199: aaa-00000
A200: 284 | B200: NO | C200: Región 4 | D200: Categoría 4 | F200: Soporte técnico en sitio - profesional plata | G200: Mes | H200: Und | I200: Servicio | J200: 5703584 | K200: Controles Empresariales LTDA | L200: aaa-00000
... 181 more rows

Sheet Categoría 5 (hidden)
A1: Código matriz | B1: Excento de IVA | C1: Region | D1: Categoria | E1: Familia | F1: Nombre Producto | G1: Unidad de Medida | H1: Unidad de Servicio | I1: Tipo | J1: Precio | K1: Proveedor | L1: Número de parte | N1: Menor valor | O1: proveedor 1 | P1: proveedor 2 | Q1: proveedor 3 | R1: proveedor 4 | S1: proveedor 5
A2: 1 | B2: SI | C2: Región Todas | D2: Categoría 5 | E2: Azure | F2: AzureInfoProtPremP1Open ShrdSvr SubscriptionVL Government OLP 1License NoLevel Qualified Annual 1 Licencia por Unidad de Cómputo | G2: Und | H2: Und | I2: Producto | J2: 65061 | K2: Controles Empresariales LTDA | L2: N/A | N2: =MIN(IF(O2=0,1000000000000,O2),IF(P2=0,1000000000000,P2),IF(Q2=0,1000000000000,Q2),IF(R2=0,1000000000000,R2),IF(S2=0,1000000000000,S2)) -> 37718 | O2: =SUM(IF($M:$M=1,$J:$J,0)) -> 37718 | P2: =SUM(IF($M:$M=2,$J:$J,0)) -> 41182 | Q2: =SUM(IF($M:$M=3,$J:$J,0)) -> 48236 | R2: =SUM(IF($M:$M=4,$J:$J,0)) -> 0 | S2: =SUM(IF($M:$M=5,$J:$J,0)) -> 0
A3: 1 | B3: SI | C3: Región Todas | D3: Categoría 5 | E3: Azure | F3: AzureInfoProtPremP1Open ShrdSvr SubscriptionVL Government OLP 1License NoLevel Qualified Annual 1 Licencia por Unidad de Cómputo | G3: Und | H3: Und | I3: Producto | J3: 62343 | K3: Unión temporal Software y Servicios Eficientes | L3: N/A
A4: 1 | B4: SI | C4: Región Todas | D4: Categoría 5 | E4: Azure | F4: AzureInfoProtPremP1Open ShrdSvr SubscriptionVL Government OLP 1License NoLevel Qualified Annual 1 Licencia por Unidad de Cómputo | G4: Und | H4: Und | I4: Producto | J4: 58097 | K4: UT Soft-IG | L4: N/A
A5: 2 | B5: SI | C5: Región Todas | D5: Categoría 5 | E5: Azure | F5: AzureSubscriptionServicesOpen ShrdSvr SubscriptionVL Government OLP 1License NoLevel Qualified Annual 1 Licencia por Unidad de Cómputo | G5: Und | H5: Und | I5: Producto | J5: 309580 | K5: Controles Empresariales LTDA | L5: 5S2-00006
A6: 2 | B6: SI | C6: Región Todas | D6: Categoría 5 | E6: Azure | F6: AzureSubscriptionServicesOpen ShrdSvr SubscriptionVL Government OLP 1License NoLevel Qualified Annual 1 Licencia por Unidad de Cómputo | G6: Und | H6: Und | I6: Producto | J6: 282055 | K6: Unión temporal Software y Servicios Eficientes | L6: 5S2-00006
A7: 2 | B7: SI | C7: Región Todas | D7: Categoría 5 | E7: Azure | F7: AzureSubscriptionServicesOpen ShrdSvr SubscriptionVL Government OLP 1License NoLevel Qualified Annual 1 Licencia por Unidad de Cómputo | G7: Und | H7: Und | I7: Producto | J7: 276453 | K7: UT Soft-IG | L7: 5S2-00006
A8: 3 | B8: NO | C8: Región Todas | D8: Categoría 5 | E8: Bases de Datos SQL Server | F8: SQLCAL 2016 Government OLP 1License NoLevel DvcCAL Región 1 a 4 Una sola vez 1 Licencia por Dispositivo 1 Licencia por Dispositivo | G8: Und | H8: Und | I8: Producto | J8: 490787 | K8: Controles Empresariales LTDA | L8: 359-06353
A9: 3 | B9: NO | C9: Región Todas | D9: Categoría 5 | E9: Bases de Datos SQL Server | F9: SQLCAL 2016 Government OLP 1License NoLevel DvcCAL Región 1 a 4 Una sola vez 1 Licencia por Dispositivo 1 Licencia por Dispositivo | G9: Und | H9: Und | I9: Producto | J9: 447293 | K9: Unión temporal Software y Servicios Eficientes | L9: 359-06353
A10: 3 | B10: NO | C10: Región Todas | D10: Categoría 5 | E10: Bases de Datos SQL Server | F10: SQLCAL 2016 Government OLP 1License NoLevel DvcCAL Región 1 a 4 Una sola vez 1 Licencia por Dispositivo 1 Licencia por Dispositivo | G10: Und | H10: Und | I10: Producto | J10: 438270 | K10: UT Soft-IG | L10: 359-06353
A11: 4 | B11: NO | C11: Región Todas | D11: Categoría 5 | E11: Bases de Datos SQL Server | F11: SQLCAL 2016 Government OLP 1License NoLevel UsrCAL Región 1 a 4 Una sola vez 1 Licencia por Usuario 1 Licencia por Usuario | G11: Und | H11: Und | I11: Producto | J11: 490787 | K11: Controles Empresariales LTDA | L11: 359-06354
A12: 4 | B12: NO | C12: Región Todas | D12: Categoría 5 | E12: Bases de Datos SQL Server | F12: SQLCAL 2016 Government OLP 1License NoLevel UsrCAL Región 1 a 4 Una sola vez 1 Licencia por Usuario 1 Licencia por Usuario | G12: Und | H12: Und | I12: Producto | J12: 446931 | K12: Unión temporal Software y Servicios Eficientes | L12: 359-06354
A13: 4 | B13: NO | C13: Región Todas | D13: Categoría 5 | E13: Bases de Datos SQL Server | F13: SQLCAL 2016 Government OLP 1License NoLevel UsrCAL Región 1 a 4 Una sola vez 1 Licencia por Usuario 1 Licencia por Usuario | G13: Und | H13: Und | I13: Producto | J13: 438270 | K13: UT Soft-IG | L13: 359-06354
A14: 5 | B14: NO | C14: Región Todas | D14: Categoría 5 | E14: Bases de Datos SQL Server | F14: SQLCAL License/SoftwareAssurancePack Government OLP 1License NoLevel DvcCAL Región 1 a 4 Una sola vez 1 Licencia por Dispositivo 1 Licencia por Dispositivo | G14: Und | H14: Und | I14: Producto | J14: 736179 | K14: Controles Empresariales LTDA | L14: 359-01387
A15: 5 | B15: NO | C15: Región Todas | D15: Categoría 5 | E15: Bases de Datos SQL Server | F15: SQLCAL License/SoftwareAssurancePack Government OLP 1License NoLevel DvcCAL Región 1 a 4 Una sola vez 1 Licencia por Dispositivo 1 Licencia por Dispositivo | G15: Und | H15: Und | I15: Producto | J15: 670396 | K15: Unión temporal Software y Servicios Eficientes | L15: 359-01387
A16: 5 | B16: NO | C16: Región Todas | D16: Categoría 5 | E16: Bases de Datos SQL Server | F16: SQLCAL License/SoftwareAssurancePack Government OLP 1License NoLevel DvcCAL Región 1 a 4 Una sola vez 1 Licencia por Dispositivo 1 Licencia por Dispositivo | G16: Und | H16: Und | I16: Producto | J16: 657405 | K16: UT Soft-IG | L16: 359-01387
A17: 6 | B17: NO | C17: Región Todas | D17: Categoría 5 | E17: Bases de Datos SQL Server | F17: SQLCAL License/SoftwareAssurancePack Government OLP 1License NoLevel UsrCAL Región 1 a 4 Una sola vez 1 Licencia por Usuario 1 Licencia por Usuario | G17: Und | H17: Und | I17: Producto | J17: 736179 | K17: Controles Empresariales LTDA | L17: 359-01386
A18: 6 | B18: NO | C18: Región Todas | D18: Categoría 5 | E18: Bases de Datos SQL Server | F18: SQLCAL License/SoftwareAssurancePack Government OLP 1License NoLevel UsrCAL Región 1 a 4 Una sola vez 1 Licencia por Usuario 1 Licencia por Usuario | G18: Und | H18: Und | I18: Producto | J18: 670396 | K18: Unión temporal Software y Servicios Eficientes | L18: 359-01386
A19: 6 | B19: NO | C19: Región Todas | D19: Categoría 5 | E19: Bases de Datos SQL Server | F19: SQLCAL License/SoftwareAssurancePack Government OLP 1License NoLevel UsrCAL Región 1 a 4 Una sola vez 1 Licencia por Usuario 1 Licencia por Usuario | G19: Und | H19: Und | I19: Producto | J19: 657405 | K19: UT Soft-IG | L19: 359-01386
A20: 7 | B20: NO | C20: Región Todas | D20: Categoría 5 | E20: Bases de Datos SQL Server | F20: SQLCAL SoftwareAssurance Government OLP 1License NoLevel DvcCAL Región 1 a 4 Una sola vez 1 Licencia por Dispositivo 1 Licencia por Dispositivo | G20: Und | H20: Und | I20: Producto | J20: 245393 | K20: Controles Empresariales LTDA | L20: 359-01385
A21: 7 | B21: NO | C21: Región Todas | D21: Categoría 5 | E21: Bases de Datos SQL Server | F21: SQLCAL SoftwareAssurance Government OLP 1License NoLevel DvcCAL Región 1 a 4 Una sola vez 1 Licencia por Dispositivo 1 Licencia por Dispositivo | G21: Und | H21: Und | I21: Producto | J21: 223465 | K21: Unión temporal Software y Servicios Eficientes | L21: 359-01385
A22: 7 | B22: NO | C22: Región Todas | D22: Categoría 5 | E22: Bases de Datos SQL Server | F22: SQLCAL SoftwareAssurance Government OLP 1License NoLevel DvcCAL Región 1 a 4 Una sola vez 1 Licencia por Dispositivo 1 Licencia por Dispositivo | G22: Und | H22: Und | I22: Producto | J22: 219135 | K22: UT Soft-IG | L22: 359-01385
A23: 8 | B23: NO | C23: Región Todas | D23: Categoría 5 | E23: Bases de Datos SQL Server | F23: SQLCAL SoftwareAssurance Government OLP 1License NoLevel UsrCAL Región 1 a 4 Una sola vez 1 Licencia por Usuario 1 Licencia por Usuario | G23: Und | H23: Und | I23: Producto | J23: 245393 | K23: Controles Empresariales LTDA | L23: 359-01384
A24: 8 | B24: NO | C24: Región Todas | D24: Categoría 5 | E24: Bases de Datos SQL Server | F24: SQLCAL SoftwareAssurance Government OLP 1License NoLevel UsrCAL Región 1 a 4 Una sola vez 1 Licencia por Usuario 1 Licencia por Usuario | G24: Und | H24: Und | I24: Producto | J24: 223465 | K24: Unión temporal Software y Servicios Eficientes | L24: 359-01384
A25: 8 | B25: NO | C25: Región Todas | D25: Categoría 5 | E25: Bases de Datos SQL Server | F25: SQLCAL SoftwareAssurance Government OLP 1License NoLevel UsrCAL Región 1 a 4 Una sola vez 1 Licencia por Usuario 1 Licencia por Usuario | G25: Und | H25: Und | I25: Producto | J25: 219135 | K25: UT Soft-IG | L25: 359-01384
A26: 9 | B26: NO | C26: Región Todas | D26: Categoría 5 | E26: Bases de Datos SQL Server | F26: SQLServerEnterpriseEdition SoftwareAssurance Government OLP 1License NoLevel Región 1 a 4 Una sola vez 1 Licencia por Servidor 1 Licencia por Servidor | G26: Und | H26: Und | I26: Producto | J26: 10096928 | K26: Controles Empresariales LTDA | L26: 810-04848
A27: 9 | B27: NO | C27: Región Todas | D27: Categoría 5 | E27: Bases de Datos SQL Server | F27: SQLServerEnterpriseEdition SoftwareAssurance Government OLP 1License NoLevel Región 1 a 4 Una sola vez 1 Licencia por Servidor 1 Licencia por Servidor | G27: Und | H27: Und | I27: Producto | J27: 9193423 | K27: Unión temporal Software y Servicios Eficientes | L27: 810-04848
A28: 9 | B28: NO | C28: Región Todas | D28: Categoría 5 | E28: Bases de Datos SQL Server | F28: SQLServerEnterpriseEdition SoftwareAssurance Government OLP 1License NoLevel Región 1 a 4 Una sola vez 1 Licencia por Servidor 1 Licencia por Servidor | G28: Und | H28: Und | I28: Producto | J28: 9016517 | K28: UT Soft-IG | L28: 810-04848
A29: 10 | B29: NO | C29: Región Todas | D29: Categoría 5 | E29: Bases de Datos SQL Server | F29: SQLSvrEnterpriseCore 2016 Government OLP 2Licenses NoLevel CoreLic Qualified Región 1 a 4 Una sola vez 1 Licencia por cada 2 Cores 1 Licencia por cada 2 Cores | G29: Und | H29: Und | I29: Producto | J29: 32314623 | K29: Controles Empresariales LTDA | L29: 7JQ-01038
A30: 10 | B30: NO | C30: Región Todas | D30: Categoría 5 | E30: Bases de Datos SQL Server | F30: SQLSvrEnterpriseCore 2016 Government OLP 2Licenses NoLevel CoreLic Qualified Región 1 a 4 Una sola vez 1 Licencia por cada 2 Cores 1 Licencia por cada 2 Cores | G30: Und | H30: Und | I30: Producto | J30: 29423309 | K30: Unión temporal Software y Servicios Eficientes | L30: 7JQ-01038
A31: 10 | B31: NO | C31: Región Todas | D31: Categoría 5 | E31: Bases de Datos SQL Server | F31: SQLSvrEnterpriseCore 2016 Government OLP 2Licenses NoLevel CoreLic Qualified Región 1 a 4 Una sola vez 1 Licencia por cada 2 Cores 1 Licencia por cada 2 Cores | G31: Und | H31: Und | I31: Producto | J31: 28856832 | K31: UT Soft-IG | L31: 7JQ-01038
A32: 11 | B32: NO | C32: Región Todas | D32: Categoría 5 | E32: Bases de Datos SQL Server | F32: SQLSvrEnterpriseCore License/SoftwareAssurancePack Government OLP 2Licenses NoLevel CoreLic Qualified Región 1 a 4 Una sola vez 1 Licencia por cada 2 Cores 1 Licencia por cada 2 Cores | G32: Und | H32: Und | I32: Producto | J32: 48472151 | K32: Controles Empresariales LTDA | L32: 7JQ-00314
A33: 11 | B33: NO | C33: Región Todas | D33: Categoría 5 | E33: Bases de Datos SQL Server | F33: SQLSvrEnterpriseCore License/SoftwareAssurancePack Government OLP 2Licenses NoLevel CoreLic Qualified Región 1 a 4 Una sola vez 1 Licencia por cada 2 Cores 1 Licencia por cada 2 Cores | G33: Und | H33: Und | I33: Producto | J33: 44134963 | K33: Unión temporal Software y Servicios Eficientes | L33: 7JQ-00314
A34: 11 | B34: NO | C34: Región Todas | D34: Categoría 5 | E34: Bases de Datos SQL Server | F34: SQLSvrEnterpriseCore License/SoftwareAssurancePack Government OLP 2Licenses NoLevel CoreLic Qualified Región 1 a 4 Una sola vez 1 Licencia por cada 2 Cores 1 Licencia por cada 2 Cores | G34: Und | H34: Und | I34: Producto | J34: 43285442 | K34: UT Soft-IG | L34: 7JQ-00314
A35: 12 | B35: NO | C35: Región Todas | D35: Categoría 5 | E35: Bases de Datos SQL Server | F35: SQLSvrEnterpriseCore SoftwareAssurance Government OLP 2Licenses NoLevel CoreLic Qualified Región 1 a 4 Una sola vez 1 Licencia por cada 2 Cores 1 Licencia por cada 2 Cores | G35: Und | H35: Und | I35: Producto | J35: 16157531 | K35: Controles Empresariales LTDA | L35: 7JQ-00315
A36: 12 | B36: NO | C36: Región Todas | D36: Categoría 5 | E36: Bases de Datos SQL Server | F36: SQLSvrEnterpriseCore SoftwareAssurance Government OLP 2Licenses NoLevel CoreLic Qualified Región 1 a 4 Una sola vez 1 Licencia por cada 2 Cores 1 Licencia por cada 2 Cores | G36: Und | H36: Und | I36: Producto | J36: 14711654 | K36: Unión temporal Software y Servicios Eficientes | L36: 7JQ-00315
A37: 12 | B37: NO | C37: Región Todas | D37: Categoría 5 | E37: Bases de Datos SQL Server | F37: SQLSvrEnterpriseCore SoftwareAssurance Government OLP 2Licenses NoLevel CoreLic Qualified Región 1 a 4 Una sola vez 1 Licencia por cada 2 Cores 1 Licencia por cada 2 Cores | G37: Und | H37: Und | I37: Producto | J37: 14428610 | K37: UT Soft-IG | L37: 7JQ-00315
A38: 13 | B38: NO | C38: Región Todas | D38: Categoría 5 | E38: Bases de Datos SQL Server | F38: SQLServerStandardEdition 2016 Government OLP 1License NoLevel Región 1 a 4 Una sola vez 1 Licencia por Servidor 1 Licencia por Servidor | G38: Und | H38: Und | I38: Producto | J38: 2108984 | K38: Controles Empresariales LTDA | L38: 228-10833
A39: 13 | B39: NO | C39: Región Todas | D39: Categoría 5 | E39: Bases de Datos SQL Server | F39: SQLServerStandardEdition 2016 Government OLP 1License NoLevel Región 1 a 4 Una sola vez 1 Licencia por Servidor 1 Licencia por Servidor | G39: Und | H39: Und | I39: Producto | J39: 1921122 | K39: Unión temporal Software y Servicios Eficientes | L39: 228-10833
A40: 13 | B40: NO | C40: Región Todas | D40: Categoría 5 | E40: Bases de Datos SQL Server | F40: SQLServerStandardEdition 2016 Government OLP 1License NoLevel Región 1 a 4 Una sola vez 1 Licencia por Servidor 1 Licencia por Servidor | G40: Und | H40: Und | I40: Producto | J40: 1883313 | K40: UT Soft-IG | L40: 228-10833
A41: 14 | B41: NO | C41: Región Todas | D41: Categoría 5 | E41: Bases de Datos SQL Server | F41: SQLServerStandardEdition License/SoftwareAssurancePack Government OLP 1License NoLevel Región 1 a 4 Una sola vez 1 Licencia por Servidor 1 Licencia por Servidor | G41: Und | H41: Und | I41: Producto | J41: 3163041 | K41: Controles Empresariales LTDA | L41: 228-04513
A42: 14 | B42: NO | C42: Región Todas | D42: Categoría 5 | E42: Bases de Datos SQL Server | F42: SQLServerStandardEdition License/SoftwareAssurancePack Government OLP 1License NoLevel Región 1 a 4 Una sola vez 1 Licencia por Servidor 1 Licencia por Servidor | G42: Und | H42: Und | I42: Producto | J42: 2881077 | K42: Unión temporal Software y Servicios Eficientes | L42: 228-04513
A43: 14 | B43: NO | C43: Región Todas | D43: Categoría 5 | E43: Bases de Datos SQL Server | F43: SQLServerStandardEdition License/SoftwareAssurancePack Government OLP 1License NoLevel Región 1 a 4 Una sola vez 1 Licencia por Servidor 1 Licencia por Servidor | G43: Und | H43: Und | I43: Producto | J43: 2824581 | K43: UT Soft-IG | L43: 228-04513
A44: 15 | B44: NO | C44: Región Todas | D44: Categoría 5 | E44: Bases de Datos SQL Server | F44: SQLServerStandardEdition SoftwareAssurance Government OLP 1License NoLevel Región 1 a 4 Una sola vez 1 Licencia por Servidor 1 Licencia por Servidor | G44: Und | H44: Und | I44: Producto | J44: 1054056 | K44: Controles Empresariales LTDA | L44: 228-04510
A45: 15 | B45: NO | C45: Región Todas | D45: Categoría 5 | E45: Bases de Datos SQL Server | F45: SQLServerStandardEdition SoftwareAssurance Government OLP 1License NoLevel Región 1 a 4 Una sola vez 1 Licencia por Servidor 1 Licencia por Servidor | G45: Und | H45: Und | I45: Producto | J45: 959956 | K45: Unión temporal Software y Servicios Eficientes | L45: 228-04510
A46: 15 | B46: NO | C46: Región Todas | D46: Categoría 5 | E46: Bases de Datos SQL Server | F46: SQLServerStandardEdition SoftwareAssurance Government OLP 1License NoLevel Región 1 a 4 Una sola vez 1 Licencia por Servidor 1 Licencia por Servidor | G46: Und | H46: Und | I46: Producto | J46: 941267 | K46: UT Soft-IG | L46: 228-04510
A47: 16 | B47: NO | C47: Región Todas | D47: Categoría 5 | E47: Bases de Datos SQL Server | F47: SQLSvrStandardCore 2016 Government OLP 2Licenses NoLevel CoreLic Qualified Región 1 a 4 Una sola vez 1 Licencia por cada 2 Cores 1 Licencia por cada 2 Cores | G47: Und | H47: Und | I47: Producto | J47: 8427206 | K47: Controles Empresariales LTDA | L47: 7NQ-00831
A48: 16 | B48: NO | C48: Región Todas | D48: Categoría 5 | E48: Bases de Datos SQL Server | F48: SQLSvrStandardCore 2016 Government OLP 2Licenses NoLevel CoreLic Qualified Región 1 a 4 Una sola vez 1 Licencia por cada 2 Cores 1 Licencia por cada 2 Cores | G48: Und | H48: Und | I48: Producto | J48: 7673592 | K48: Unión temporal Software y Servicios Eficientes | L48: 7NQ-00831
A49: 16 | B49: NO | C49: Región Todas | D49: Categoría 5 | E49: Bases de Datos SQL Server | F49: SQLSvrStandardCore 2016 Government OLP 2Licenses NoLevel CoreLic Qualified Región 1 a 4 Una sola vez 1 Licencia por cada 2 Cores 1 Licencia por cada 2 Cores | G49: Und | H49: Und | I49: Producto | J49: 7525461 | K49: UT Soft-IG | L49: 7NQ-00831
A50: 17 | B50: NO | C50: Región Todas | D50: Categoría 5 | E50: Bases de Datos SQL Server | F50: SQLSvrStandardCore License/SoftwareAssurancePack Government OLP 2Licenses NoLevel CoreLic Qualified Región 1 a 4 Una sola vez 1 Licencia por cada 2 Cores 1 Licencia por cada 2 Cores | G50: Und | H50: Und | I50: Producto | J50: 12640808 | K50: Controles Empresariales LTDA | L50: 7NQ-00266
A51: 17 | B51: NO | C51: Región Todas | D51: Categoría 5 | E51: Bases de Datos SQL Server | F51: SQLSvrStandardCore License/SoftwareAssurancePack Government OLP 2Licenses NoLevel CoreLic Qualified Región 1 a 4 Una sola vez 1 Licencia por cada 2 Cores 1 Licencia por cada 2 Cores | G51: Und | H51: Und | I51: Producto | J51: 11509786 | K51: Unión temporal Software y Servicios Eficientes | L51: 7NQ-00266
A52: 17 | B52: NO | C52: Región Todas | D52: Categoría 5 | E52: Bases de Datos SQL Server | F52: SQLSvrStandardCore License/SoftwareAssurancePack Government OLP 2Licenses NoLevel CoreLic Qualified Región 1 a 4 Una sola vez 1 Licencia por cada 2 Cores 1 Licencia por cada 2 Cores | G52: Und | H52: Und | I52: Producto | J52: 11288192 | K52: UT Soft-IG | L52: 7NQ-00266
A53: 18 | B53: NO | C53: Región Todas | D53: Categoría 5 | E53: Bases de Datos SQL Server | F53: SQLSvrStandardCore SoftwareAssurance Government OLP 2Licenses NoLevel CoreLic Qualified Región 1 a 4 Una sola vez 1 Licencia por cada 2 Cores 1 Licencia por cada 2 Cores | G53: Und | H53: Und | I53: Producto | J53: 4213602 | K53: Controles Empresariales LTDA | L53: 7NQ-00267
A54: 18 | B54: NO | C54: Región Todas | D54: Categoría 5 | E54: Bases de Datos SQL Server | F54: SQLSvrStandardCore SoftwareAssurance Government OLP 2Licenses NoLevel CoreLic Qualified Región 1 a 4 Una sola vez 1 Licencia por cada 2 Cores 1 Licencia por cada 2 Cores | G54: Und | H54: Und | I54: Producto | J54: 3836191 | K54: Unión temporal Software y Servicios Eficientes | L54: 7NQ-00267
A55: 18 | B55: NO | C55: Región Todas | D55: Categoría 5 | E55: Bases de Datos SQL Server | F55: SQLSvrStandardCore SoftwareAssurance Government OLP 2Licenses NoLevel CoreLic Qualified Región 1 a 4 Una sola vez 1 Licencia por cada 2 Cores 1 Licencia por cada 2 Cores | G55: Und | H55: Und | I55: Producto | J55: 3762731 | K55: UT Soft-IG | L55: 7NQ-00267
A56: 19 | B56: NO | C56: Región Todas | D56: Categoría 5 | E56: Bus de Integración Biztalk | F56: BizTalkServerBranch 2016 Government OLP 2Licenses NoLevel CoreLic Qualified Región 1 a 4 Una sola vez 1 Licencia por cada 2 Cores 1 Licencia por cada 2 Cores | G56: Und | H56: Und | I56: Producto | J56: 2971354 | K56: Controles Empresariales LTDA | L56: HJA-01096
A57: 19 | B57: NO | C57: Región Todas | D57: Categoría 5 | E57: Bus de Integración Biztalk | F57: BizTalkServerBranch 2016 Government OLP 2Licenses NoLevel CoreLic Qualified Región 1 a 4 Una sola vez 1 Licencia por cada 2 Cores 1 Licencia por cada 2 Cores | G57: Und | H57: Und | I57: Producto | J57: 2879532 | K57: Unión temporal Software y Servicios Eficientes | L57: HJA-01096
A58: 19 | B58: NO | C58: Región Todas | D58: Categoría 5 | E58: Bus de Integración Biztalk | F58: BizTalkServerBranch 2016 Government OLP 2Licenses NoLevel CoreLic Qualified Región 1 a 4 Una sola vez 1 Licencia por cada 2 Cores 1 Licencia por cada 2 Cores | G58: Und | H58: Und | I58: Producto | J58: 2653406 | K58: UT Soft-IG | L58: HJA-01096
A59: 20 | B59: NO | C59: Región Todas | D59: Categoría 5 | E59: Bus de Integración Biztalk | F59: BizTalkServerBranch License/SoftwareAssurancePack Government OLP 2Licenses NoLevel CoreLic Qualified Región 1 a 4 Una sola vez 1 Licencia por cada 2 Cores 1 Licencia por cada 2 Cores | G59: Und | H59: Und | I59: Producto | J59: 4456813 | K59: Controles Empresariales LTDA | L59: HJA-00756
A60: 20 | B60: NO | C60: Región Todas | D60: Categoría 5 | E60: Bus de Integración Biztalk | F60: BizTalkServerBranch License/SoftwareAssurancePack Government OLP 2Licenses NoLevel CoreLic Qualified Región 1 a 4 Una sola vez 1 Licencia por cada 2 Cores 1 Licencia por cada 2 Cores | G60: Und | H60: Und | I60: Producto | J60: 4319298 | K60: Unión temporal Software y Servicios Eficientes | L60: HJA-00756
A61: 20 | B61: NO | C61: Región Todas | D61: Categoría 5 | E61: Bus de Integración Biztalk | F61: BizTalkServerBranch License/SoftwareAssurancePack Government OLP 2Licenses NoLevel CoreLic Qualified Región 1 a 4 Una sola vez 1 Licencia por cada 2 Cores 1 Licencia por cada 2 Cores | G61: Und | H61: Und | I61: Producto | J61: 3979916 | K61: UT Soft-IG | L61: HJA-00756
A62: 21 | B62: NO | C62: Región Todas | D62: Categoría 5 | E62: Bus de Integración Biztalk | F62: BizTalkServerBranch SoftwareAssurance Government OLP 2Licenses NoLevel CoreLic Qualified Región 1 a 4 Una sola vez 1 Licencia por cada 2 Cores 1 Licencia por cada 2 Cores | G62: Und | H62: Und | I62: Producto | J62: 1485459 | K62: Controles Empresariales LTDA | L62: HJA-00757
A63: 21 | B63: NO | C63: Región Todas | D63: Categoría 5 | E63: Bus de Integración Biztalk | F63: BizTalkServerBranch SoftwareAssurance Government OLP 2Licenses NoLevel CoreLic Qualified Región 1 a 4 Una sola vez 1 Licencia por cada 2 Cores 1 Licencia por cada 2 Cores | G63: Und | H63: Und | I63: Producto | J63: 1439765 | K63: Unión temporal Software y Servicios Eficientes | L63: HJA-00757
A64: 21 | B64: NO | C64: Región Todas | D64: Categoría 5 | E64: Bus de Integración Biztalk | F64: BizTalkServerBranch SoftwareAssurance Government OLP 2Licenses NoLevel CoreLic Qualified Región 1 a 4 Una sola vez 1 Licencia por cada 2 Cores 1 Licencia por cada 2 Cores | G64: Und | H64: Und | I64: Producto | J64: 1326509 | K64: UT Soft-IG | L64: HJA-00757
A65: 23 | B65: NO | C65: Región Todas | D65: Categoría 5 | E65: Bus de Integración Biztalk | F65: BizTalk®ServerEnterprise 2016 Government OLP 2Licenses NoLevel CoreLic Qualified Región 1 a 4 Una sola vez 1 Licencia por cada 2 Cores 1 Licencia por cada 2 Cores | G65: Und | H65: Und | I65: Producto | J65: 51979703 | K65: Controles Empresariales LTDA | L65: F52-02655
A66: 23 | B66: NO | C66: Región Todas | D66: Categoría 5 | E66: Bus de Integración Biztalk | F66: BizTalk®ServerEnterprise 2016 Government OLP 2Licenses NoLevel CoreLic Qualified Región 1 a 4 Una sola vez 1 Licencia por cada 2 Cores 1 Licencia por cada 2 Cores | G66: Und | H66: Und | I66: Producto | J66: 50351637 | K66: Unión temporal Software y Servicios Eficientes | L66: F52-02655
A67: 23 | B67: NO | C67: Región Todas | D67: Categoría 5 | E67: Bus de Integración Biztalk | F67: BizTalk®ServerEnterprise 2016 Government OLP 2Licenses NoLevel CoreLic Qualified Región 1 a 4 Una sola vez 1 Licencia por cada 2 Cores 1 Licencia por cada 2 Cores | G67: Und | H67: Und | I67: Producto | J67: 46417671 | K67: UT Soft-IG | L67: F52-02655
A68: 24 | B68: NO | C68: Región Todas | D68: Categoría 5 | E68: Bus de Integración Biztalk | F68: BizTalk®ServerEnterprise License/SoftwareAssurancePack Government OLP 2Licenses NoLevel CoreLic Qualified Región 1 a 4 Una sola vez 1 Licencia por cada 2 Cores 1 Licencia por cada 2 Cores | G68: Und | H68: Und | I68: Producto | J68: 77969553 | K68: Controles Empresariales LTDA | L68: F52-02136
A69: 24 | B69: NO | C69: Región Todas | D69: Categoría 5 | E69: Bus de Integración Biztalk | F69: BizTalk®ServerEnterprise License/SoftwareAssurancePack Government OLP 2Licenses NoLevel CoreLic Qualified Región 1 a 4 Una sola vez 1 Licencia por cada 2 Cores 1 Licencia por cada 2 Cores | G69: Und | H69: Und | I69: Producto | J69: 75524108 | K69: Unión temporal Software y Servicios Eficientes | L69: F52-02136
A70: 24 | B70: NO | C70: Región Todas | D70: Categoría 5 | E70: Bus de Integración Biztalk | F70: BizTalk®ServerEnterprise License/SoftwareAssurancePack Government OLP 2Licenses NoLevel CoreLic Qualified Región 1 a 4 Una sola vez 1 Licencia por cada 2 Cores 1 Licencia por cada 2 Cores | G70: Und | H70: Und | I70: Producto | J70: 69626507 | K70: UT Soft-IG | L70: F52-02136
A71: 25 | B71: NO | C71: Región Todas | D71: Categoría 5 | E71: Bus de Integración Biztalk | F71: BizTalk®ServerEnterprise SoftwareAssurance Government OLP 2Licenses NoLevel CoreLic Qualified Región 1 a 4 Una sola vez 1 Licencia por cada 2 Cores 1 Licencia por cada 2 Cores | G71: Und | H71: Und | I71: Producto | J71: 25989852 | K71: Controles Empresariales LTDA | L71: F52-02137
A72: 25 | B72: NO | C72: Región Todas | D72: Categoría 5 | E72: Bus de Integración Biztalk | F72: BizTalk®ServerEnterprise SoftwareAssurance Government OLP 2Licenses NoLevel CoreLic Qualified Región 1 a 4 Una sola vez 1 Licencia por cada 2 Cores 1 Licencia por cada 2 Cores | G72: Und | H72: Und | I72: Producto | J72: 25175819 | K72: Unión temporal Software y Servicios Eficientes | L72: F52-02137
A73: 25 | B73: NO | C73: Región Todas | D73: Categoría 5 | E73: Bus de Integración Biztalk | F73: BizTalk®ServerEnterprise SoftwareAssurance Government OLP 2Licenses NoLevel CoreLic Qualified Región 1 a 4 Una sola vez 1 Licencia por cada 2 Cores 1 Licencia por cada 2 Cores | G73: Und | H73: Und | I73: Producto | J73: 23208835 | K73: UT Soft-IG | L73: F52-02137
A74: 26 | B74: NO | C74: Región Todas | D74: Categoría 5 | E74: Bus de Integración Biztalk | F74: BizTalk®ServerStandard 2016 Government OLP 2Licenses NoLevel CoreLic Qualified Región 1 a 4 Una sola vez 1 Licencia por cada 2 Cores 1 Licencia por cada 2 Cores | G74: Und | H74: Und | I74: Producto | J74: 11915107 | K74: Controles Empresariales LTDA | L74: D75-02372
A75: 26 | B75: NO | C75: Región Todas | D75: Categoría 5 | E75: Bus de Integración Biztalk | F75: BizTalk®ServerStandard 2016 Government OLP 2Licenses NoLevel CoreLic Qualified Región 1 a 4 Una sola vez 1 Licencia por cada 2 Cores 1 Licencia por cada 2 Cores | G75: Und | H75: Und | I75: Producto | J75: 11541568 | K75: Unión temporal Software y Servicios Eficientes | L75: D75-02372
